{"text_format":"2","workbook":"xlsx","n_sheets":10,"sheets":["Sheet1","Tool Use By Data Type","Tool Recommendations","Current Tracking","Future Tracking Intent","Personal Tool UseOwnership","Total Tool Use","Tool Usage Pivot","Revised Tool Name List","Response Frequency"],"not_rendered":{"charts":0,"images":0,"macros":0,"external_links":0,"defined_names":3,"comments":0,"pivot_tables":1},"unopened":[],"bounds":{"document_bytes":16777216,"sheet_cells":100000,"run_cost":"one","rows_first":2000,"rows_last":500,"rows_between":2000,"halvings":0,"cell_chars":16384,"cell_head_chars":4096},"cells_cut":0,"cells_raw":0,"read":"whole","date_system":"1900"}

{"sheet":"Sheet1","index":0,"n_rows":540,"n_cols":2,"rows_kept":540,"cut":false,"hidden":true,"merged":[]}
["Name","Number of times Mentioned"]
["Spreadsheet",179.0]
["Pen & Paper",78.0]
["Fitbit",49.0]
["Moves",31.0]
["MyFitnessPal",29.0]
["Withings Scales",22.0]
["Diary",21.0]
["Jawbone UP",21.0]
["RunKeeper",20.0]
["RescueTime",19.0]
["Endomondo",14.0]
["Structured Text File",13.0]
["Foursquare",12.0]
["Garmin 610/910/810",12.0]
["Statistica",12.0]
["Google Calendar",11.0]
["Polar HRM",11.0]
["Tape Measure",10.0]
["Withings",10.0]
["Scale",9.0]
["Strava",9.0]
["Evernote",8.0]
["Facebook",8.0]
["Fitbit Flex",8.0]
["Fitbit One",8.0]
["Nike Fuelband",8.0]
["Weighing Scales",8.0]
["Garmin Forerunner",7.0]
["Goodreads",7.0]
["GP",7.0]
["PureLifeStyle app",7.0]
["Runtastic",7.0]
["Zeo",7.0]
["Activ8rlives",6.0]
["Fitbit Aria",6.0]
["Google My Tracks",6.0]
["Misfit Shine",6.0]
["Online Banking UI",6.0]
["Sleep Cycle",6.0]
["Fitness Pal",5.0]
["Fitocracy",5.0]
["Google Latitude",5.0]
["Last.fm",5.0]
["Menstrual Calendar Premium for Android",5.0]
["Microsoft Money",5.0]
["Omron Blood Pressure Monitor",5.0]
["Phone app",5.0]
["Suunto Heart Rate Monitor",5.0]
["Taniata Scales",5.0]
["TicTrac",5.0]
["Withings Pulse",5.0]
["Garmin Connect website",4.0]
["Garmin Edge 800",4.0]
["MapMyRun",4.0]
["MBTI",4.0]
["Money Dash Board",4.0]
["Moodscope",4.0]
["My Fat Secret",4.0]
["My NetDiary",4.0]
["Nike+",4.0]
["Noom",4.0]
["Pen and Pencil",4.0]
["Polar Heart Rate Monitor",4.0]
["Quicken",4.0]
["Sleep As Android",4.0]
["Strava web site",4.0]
["Wahoo HRM",4.0]
["Account Tracker",3.0]
["Basis Wristwatch",3.0]
["Calendar ",3.0]
["chronos",3.0]
["custom made Android app",3.0]
["dailyburn.com",3.0]
["Electronic scale Homedics/Salter",3.0]
["Gmail",3.0]
["IBG Star",3.0]
["KiFit",3.0]
["LinkedIn",3.0]
["Lumosity",3.0]
["Manually Tracking a Number",3.0]
["MapMyFitness",3.0]
["MapMyWalk",3.0]
["Mappiness",3.0]
["Measuring Tape",3.0]
["Menstrual Cycle",3.0]
["Mint",3.0]
["Mobile app",3.0]
["MoodPanda",3.0]
["mysql database",3.0]
["P tracker",3.0]
["Pedometer",3.0]
["Polar H7",3.0]
["SportsTracker",3.0]
["Tanita InnerScan Body Composition Monitor",3.0]
["Text file",3.0]
["Wahoo",3.0]
["Walkmeter on iPhone",3.0]
["Alertme",2.0]
["beeminder.com",2.0]
["Blood Glucose Meter",2.0]
["Blood pressure monitor",2.0]
["Callipers",2.0]
["Daytum",2.0]
["Doris",2.0]
["Emotion Sense app",2.0]
["Endomondo app",2.0]
["financisto android app",2.0]
["Fitbit dashboard",2.0]
["Fitbit scale",2.0]
["Fitbrain",2.0]
["fitocracy.com",2.0]
["Garmin Heart-Rate Monitor",2.0]
["Generic Arm Band Blood Pressure Monitor",2.0]
["Getsomeheadspace app",2.0]
["Heart rate monitor app using smartphone flash",2.0]
["https://sapa-project.org/",2.0]
["iPhone",2.0]
["ithlete ecg receiver",2.0]
["ithlete HRV",2.0]
["ithlete Precision Pulse app",2.0]
["jefit.com",2.0]
["journaling",2.0]
["Manual scale",2.0]
["Manual Workout Log",2.0]
["map my tracks",2.0]
["MapMyRide",2.0]
["Mappiness app",2.0]
["Mappiness iOS",2.0]
["Micoach",2.0]
["MIT Elite Plus",2.0]
["Moneywiz",2.0]
["MotionX-GPS iPhone app",2.0]
["Moves on iPhone",2.0]
["MS Word",2.0]
["My Fitness Pal (app)",2.0]
["Omie",2.0]
["on track",2.0]
["Online Bank App",2.0]
["Online Tests",2.0]
["paco",2.0]
["photographs",2.0]
["Photos",2.0]
["Python Code",2.0]
["Python scripts",2.0]
["Resoph Notes",2.0]
["self-written program",2.0]
["Shine by Misfits",2.0]
["Sleep Cycle iPhone app",2.0]
["Sleep Time",2.0]
["Sleepbot",2.0]
["SMS notifications",2.0]
["Specialised Blood Pressure Meter",2.0]
["Spend App",2.0]
["Spending App",2.0]
["Stop watch",2.0]
["Strava App",2.0]
["Stronger (RunKeeper App)",2.0]
["Suunto Movescount web site",2.0]
["SVT Accounts App",2.0]
["Tanita Scales BC545",2.0]
["TapLog Android App",2.0]
["thermometer",2.0]
["Untapp.d",2.0]
["various apps",2.0]
["Wattson power meter",2.0]
["Weight",2.0]
["Weight-watchers electro scales",2.0]
["Wellman - Nuffield",2.0]
["Wellness FX",2.0]
["whiteboard",2.0]
["Withings Blood Pressure Monitor",2.0]
["Wolfram Alpha Personal Analytics",2.0]
["Wunderlist",2.0]
["Your Flowing Data Twitter app",2.0]
["Zephyr HxM",2.0]
[" measure out of ten, ten being goo mood, zero bad",1.0]
["23andme",1.0]
["A daily journal in Word",1.0]
["A Doctor",1.0]
["A home made tool which was a grid with a day for a year that I coloured according to my mood that day",1.0]
["a Nintendo brain training game",1.0]
["A paper diary (this was pre-app!)",1.0]
["a sleep tracker app on the iPhone whose name I forgot",1.0]
["a tape measure",1.0]
["A tool I wrote myself to draw art while I sleep",1.0]
["Accumeasure (Tape Measure)",1.0]
["Alarm app",1.0]
["Alcodroid",1.0]
["Amex breakdown",1.0]
["An app on my old mobile phone",1.0]
["an out of ten number, higher the better for me as indifvidual then for specifc countries and universal.",1.0]
["Android daily activity tracker",1.0]
["Anki",1.0]
["Ankilearn",1.0]
["ANT+",1.0]
["app",1.0]
["App (cannot remember name)",1.0]
["argos cheap electro scales Ã‚Â£5?",1.0]
["Argus",1.0]
["Aria scales",1.0]
["ascii text file",1.0]
["Azumio iphone app",1.0]
["backpacker app",1.0]
["Bank Account Downloads",1.0]
["Bank CSV Download",1.0]
["Bank statement",1.0]
["Basic digital scales",1.0]
["Basic scale and fitnesspal",1.0]
["Basis Wristband",1.0]
["Bayer with usb",1.0]
["Beddit",1.0]
["Beddit, Fitbit, Snorelab",1.0]
["beeminder",1.0]
["Belbin",1.0]
["Big Five Personality test in the Internet",1.0]
["Blog",1.0]
["Blood glucose testing kit",1.0]
["Blood Ketones",1.0]
["Bodpod",1.0]
["Body fat measurement at Boots ",1.0]
["Body measurements ",1.0]
["bodyfat scale",1.0]
["BodyMedia FIT",1.0]
["BP cuff",1.0]
["bp device",1.0]
["brain workshop (for n-back training)",1.0]
["Brainworks",1.0]
["Breathsync app",1.0]
["Brewster",1.0]
["British Gas 'Energy Smart' metering",1.0]
["British Gas Smart Meter",1.0]
["BT4 temp probes",1.0]
["BUPA exercycle test",1.0]
["Carb counting",1.0]
["Carbodydrates, measure by looking up in google. ie carbs in fried egg",1.0]
["Cateye Strada cycling computer and Fizztrain logging web site",1.0]
["CBT questionaire",1.0]
["Chrome productivity extension",1.0]
["Clement Clarke Mini-Wright Peak Flow Meter",1.0]
["Coinkeeper",1.0]
["collect receipts",1.0]
["concept 2 rowing monitor card",1.0]
["Concept2 PM3 rowing computer",1.0]
["concept2 rower + log card",1.0]
["Contactually",1.0]
["CSV files",1.0]
["CurrentCost energy monitor",1.0]
["custom made app",1.0]
["cvs temple thermometer",1.0]
["cycle computer",1.0]
["dailymile",1.0]
["Dayone",1.0]
["Delicious",1.0]
["Diary (paper and pen)",1.0]
["Digital BP cuff",1.0]
["digital peak flow monitor",1.0]
["Digital scale",1.0]
["Digital scales (no wifi or bodyfat sensor)",1.0]
["dream diary",1.0]
["DrinksTracker (NHS Choices iPHone app)",1.0]
["Duolingo",1.0]
["DuoLingo app to learn Portuguese",1.0]
["ECG monitor (portable)",1.0]
["EcoDrive, comes inbuilt with Fiats",1.0]
["electronic calendar in iphone",1.0]
["Electrophoresis",1.0]
["EM wave 2",1.0]
["Email Game",1.0]
["emwave2 device (plus desktop version)",1.0]
["Enobio",1.0]
["EON analyzer",1.0]
["equanimity",1.0]
["Eternity",1.0]
["Eternity (iOS)",1.0]
["Exercycle",1.0]
["Expereal app",1.0]
["Facebook app",1.0]
["Faviki",1.0]
["Faviki.com (bookmarking)",1.0]
["finance diary",1.0]
["Firstbeat",1.0]
["FitBit app",1.0]
["Fitbit ultra",1.0]
["Fitbit, Moves",1.0]
["fitbits for comparison",1.0]
["fitfiit",1.0]
["Fitness app",1.0]
["fitness test by expert",1.0]
["fizztrain web site",1.0]
["Flickr",1.0]
["Fog of the World app",1.0]
["Food",1.0]
["Food Tracker",1.0]
["Fooducate",1.0]
["FT portfolio",1.0]
["full fitness",1.0]
["Galvanic Skin Response (own)",1.0]
["Garmin (for long bike rides)",1.0]
["Garmin Footpod",1.0]
["Garmin head unit + ANT HRM ",1.0]
["garmin online software",1.0]
["Garmin Oregon 450",1.0]
["Garmin Vector",1.0]
["garmin xt",1.0]
["ginger.io",1.0]
["Gnotime",1.0]
["GolfSense",1.0]
["Golfshot GPS",1.0]
["Good reads app",1.0]
["goodreads.com",1.0]
["Google documents",1.0]
["Google Earth for distance; now dropped",1.0]
["google fusion to store in cloud as searchable activity record",1.0]
["Google Keep",1.0]
["Google Location History",1.0]
["google mail plugin",1.0]
["Google maps",1.0]
["Google+ Photos",1.0]
["gottaFeeling app",1.0]
["GPS mapping",1.0]
["GPSBabel",1.0]
["GPSVisualizer",1.0]
["Gym equipment",1.0]
["Handheld GPS units",1.0]
["Happiness iPhone app",1.0]
["Hargreaves Landsdown Portfolio Manager",1.0]
["Heart rate app",1.0]
["HeartMath em wave desktop",1.0]
["HeartMath inner balance app",1.0]
["HomeBudget app",1.0]
["HRM",1.0]
["http://cognitivefun.net/",1.0]
["http://Intelligencetest.com",1.0]
["http://www.good.co/",1.0]
["http://www.omnifolio.org",1.0]
["http://www.personal.psu.edu/j5j/IPIP/",1.0]
["hydration",1.0]
["Hyperthermia times (abandoned)",1.0]
["I read the meter every night",1.0]
["IBG Star Blood Glucose App",1.0]
["iCardio linked with Zephyr",1.0]
["Ihealth and Iphone",1.0]
["Imdb",1.0]
["immersion to visualise social network",1.0]
["in person tests",1.0]
["indirect measure via hr performance and body metrics",1.0]
["inFlow",1.0]
["Instagram via Statigram",1.0]
["instant heart rate app",1.0]
["Investment account statements",1.0]
["ios 7 sleep time free app",1.0]
["ios7 calendar",1.0]
["ipad",1.0]
["Iphone app to track",1.0]
["iPhone Budgeting Apps",1.0]
["iPhone heart rate app",1.0]
["iphone location data",1.0]
["iphone notes",1.0]
["iRunner",1.0]
["ithlete heart rate monitor",1.0]
["ithlete hrv ios app",1.0]
["ithlete pulse meter on ipod w bluetooth strap",1.0]
["jawbone up for comparison",1.0]
["Jawbone Up! & Fitness Pal",1.0]
["Journeying or not",1.0]
["kept daily on spreadsheet",1.0]
["Ki Performance BodPod",1.0]
["klout",1.0]
["lancet + digital reader",1.0]
["lancet + paper strip",1.0]
["Last.fm audioscrobbler",1.0]
["librarything.com",1.0]
["LifeLogger",1.0]
["LifeSlice",1.0]
["Lifesum",1.0]
["Lift (app)",1.0]
["Lloyds Pharmacy scale ",1.0]
["Lovemoney.com tracker",1.0]
["Lumen Trails",1.0]
["Luminosity",1.0]
["Lux meters",1.0]
["manual processing",1.0]
["McQuag",1.0]
["measure contact be usefulness out of 100",1.0]
["mechanical scales",1.0]
["medical IQ tests",1.0]
["meditation app",1.0]
["meditation helper pro (Android)",1.0]
["MeditationsAppen",1.0]
["Memrise",1.0]
["Meter readings",1.0]
["meters",1.0]
["Microsoft Outlook",1.0]
["Mind Snacks",1.0]
["MLSS Test",1.0]
["Mobile notepad",1.0]
["Mood Agent for Android",1.0]
["my blog",1.0]
["My fingers",1.0]
["my ithlete with bluetooth strap",1.0]
["my memory",1.0]
["my normal paper-pased diary",1.0]
["My own 'face-matching' scales",1.0]
["myfitnesspal.com",1.0]
["NeuroSky MindWave",1.0]
["NHS drinks tracker",1.0]
["NHS Sleep monitoring machine ",1.0]
["Nike+ Running app",1.0]
["Nintendo Wii with their WiiActive thing",1.0]
["no tools",1.0]
["Noom Android App",1.0]
["Noom walk",1.0]
["normal bp auto device",1.0]
["Normal scales",1.0]
["noting call / email / meeting etc",1.0]
["Nutmeg",1.0]
["Observation on clothes",1.0]
["OhLife",1.0]
["Omron",1.0]
["Omron mx2",1.0]
["Omron pedometer",1.0]
["Omron Scales with bodyfat estimation",1.0]
["on track - diabetes tracking app",1.0]
["One-Touch Ultra 2",1.0]
["on-line log",1.0]
["Open Source Brain-Computer Interface",1.0]
["OpenPaths iOS app",1.0]
["Orthotic professional",1.0]
["OS maps",1.0]
["other online programmes",1.0]
["Outlook",1.0]
["Outlook export",1.0]
["OWL energy monitor",1.0]
["Own website",1.0]
["Oxygination",1.0]
["Paper",1.0]
["Pebble",1.0]
["Period tracker app",1.0]
["Personal Coach",1.0]
["Pert of counting Carbohydrates",1.0]
["Photograph meters. gas, elec, water.",1.0]
["photography",1.0]
["plusnet monitor",1.0]
["Polar H6 + Sweatbeat iPhone app",1.0]
["Polar watch",1.0]
["price comparison sites",1.0]
["private blood test",1.0]
["Private clinics",1.0]
["Prorietary Program",1.0]
["puzzles",1.0]
["Qlikview",1.0]
["Qstarz BT-Q1000 GPS travel recorder",1.0]
["qualitative data",1.0]
["qualitative record 1-10",1.0]
["quantified-mind.com",1.0]
["questionaires",1.0]
["Reading",1.0]
["Readout aloud Lords Prayer",1.0]
["Reciepts",1.0]
["Regular scale",1.0]
["regular scale and mobile phone calendar",1.0]
["Remember the milk",1.0]
["rescuetime free account to monitor computer usage",1.0]
["Resistance training",1.0]
["reverse analysis from fitbit or jawbone",1.0]
["rowing 2000m time trial",1.0]
["RunKeeper, Noom",1.0]
["Runtasctic pedometer app",1.0]
["Runtastic Heart Rate",1.0]
["schemer.com",1.0]
["Scrobbler.fm",1.0]
["self assessment questionaire",1.0]
["self track",1.0]
["single expert assessment",1.0]
["skin fold calipers",1.0]
["sleave cuff",1.0]
["Sleep Talk",1.0]
["sleeptime app",1.0]
["Small Wrist Device",1.0]
["Smart phone app (SHealth)",1.0]
["Smiling Mind",1.0]
["Snorelab",1.0]
["Soehnle BBS Comfort 5",1.0]
["Soehnle FS Comfort 5",1.0]
["Software",1.0]
["Songkick",1.0]
["SPO2 monitor",1.0]
["SPSS",1.0]
["step on scales and Tactio health App",1.0]
["StressCheck",1.0]
["subjective feeling",1.0]
["Sudoku",1.0]
["Suunto HRM watch",1.0]
["Suunto M4 watch",1.0]
["Suunto M4 watch / heartband",1.0]
["Suunto T6",1.0]
["Sweetbeat",1.0]
["Swimming Garmin 910",1.0]
["Tableau Desktop software",1.0]
["Tacx Training Software, on PC connected indoor trainer.",1.0]
["Tape",1.0]
["TaskCoach",1.0]
["Text document",1.0]
["The same mobile app for tracking menstrual cycle",1.0]
["Timex HRM watch",1.0]
["Timing, try 10 mins per day in quiet setting(church at lunchtime near work)",1.0]
["tinderbox",1.0]
["Tip sheet",1.0]
["travel",1.0]
["Tripit",1.0]
["True Weight iOS app",1.0]
["Twitter",1.0]
["Twitter/ Linkedin/Facebook analysis availble to users.",1.0]
["Twittercounter and Tweetstats",1.0]
["Ubiqi app",1.0]
["Ubiqlog",1.0]
["Uptime",1.0]
["vo2max formula",1.0]
["vo2max tests with kettlebells",1.0]
["Voice analysis (own)",1.0]
["W-2",1.0]
["Walkmeter",1.0]
["wallet",1.0]
["Weather",1.0]
["website",1.0]
["weekly review",1.0]
["weights machines",1.0]
["Well Man via Nuffield",1.0]
["Wii fit",1.0]
["Wii scale",1.0]
["Wiki page",1.0]
["Wild-Divine lightstone",1.0]
["withings ipad cuff",1.0]
["Withings, Fatwatch",1.0]
["Withings, Polar band",1.0]
["Workflowy",1.0]
["zenobase.com",1.0]
["Zoopla",1.0]
["zypher",1.0]

{"sheet":"Tool Use By Data Type","index":1,"n_rows":920,"n_cols":5,"rows_kept":920,"cut":false,"hidden":false,"merged":[]}
["Data Type","Tool Name","Frequency of Mentions",null,"This table shows the number of times a tool has been mentioned in conjunction with tracking a particular data type"]
["Eating / Diet / Supplement Data","MyFitnessPal",15.0]
["Steps / Walking Data","Fitbit",15.0]
["Spending & Purchases Data","Spreadsheet",14.0]
["Weight Data","Spreadsheet",14.0]
["Running Data","RunKeeper",13.0]
["Sleep Data","Fitbit",13.0]
["Weight Data","Withings Scales",13.0]
["Steps / Walking Data","Moves",12.0]
["Income Data","Spreadsheet",11.0]
["Investments Data","Spreadsheet",10.0]
["Activity Log / Timekeeping Data","Spreadsheet",9.0]
["Body Fat Data","Withings Scales",9.0]
["Reading Data","Goodreads",9.0]
["Waist Data","Tape Measure",9.0]
["Cycling Data","Strava",8.0]
["Exercise Data (not including Running, Walking or Cycling)","Spreadsheet",8.0]
["Mood / Happiness Data","Spreadsheet",8.0]
["Productivity Data","RescueTime",8.0]
["Sleep Data","Sleep Cycle",8.0]
["Alcohol Data","Spreadsheet",7.0]
["Body Fat Data","Spreadsheet",7.0]
["Gym Workouts Data","Pen & Paper",7.0]
["Mood / Happiness Data","Pen & Paper",7.0]
["Weight Data","Weighing Scales",7.0]
["Activity Log / Timekeeping Data","Pen & Paper",6.0]
["Cycling Data","Endomondo",6.0]
["Eating / Diet / Supplement Data","Spreadsheet",6.0]
["Exercise Data (not including Running, Walking or Cycling)","Pen & Paper",6.0]
["Heart-Rate Data","Polar HRM",6.0]
["Location / Position-logging / Altitude Data","Moves",6.0]
["Running Data","Endomondo",6.0]
["Sleep Data","Spreadsheet",6.0]
["Steps / Walking Data","Jawbone UP",6.0]
["Travel / Places Visited Data","Foursquare",6.0]
["Weight Data","Scale",6.0]
["Activity Log / Timekeeping Data","RescueTime",5.0]
["Cycling Data","Moves",5.0]
["Location / Position-logging / Altitude Data","Foursquare",5.0]
["Music Consumption Data","Last.fm",5.0]
["Sleep Data","Jawbone UP",5.0]
["Sleep Data","Zeo",5.0]
["Steps / Walking Data","Nike Fuelband",5.0]
["Waist Data","Spreadsheet",5.0]
["Activity Log / Timekeeping Data","Diary (pen and paper)",4.0]
["Activity Log / Timekeeping Data","Google Calendar",4.0]
["Activity Log / Timekeeping Data","Moves",4.0]
["Eating / Diet / Supplement Data","Fitbit",4.0]
["Exercise Data (not including Running, Walking or Cycling)","Jawbone UP",4.0]
["Gym Workouts Data","Spreadsheet",4.0]
["Heart-Rate Data","Garmin Forerunner",4.0]
["Internet Usage Data","RescueTime",4.0]
["Medication Data","Spreadsheet",4.0]
["Menstrual Cycle Data","Pen & Paper",4.0]
["Mood / Happiness Data","Moodscope",4.0]
["Psychometrics Data (Personality profiling, MBTI etc.)","MBTI",4.0]
["Running Data","Garmin 610/910/810",4.0]
["Running Data","MapMyRun",4.0]
["Running Data","Moves",4.0]
["Running Data","Spreadsheet",4.0]
["Sleep Data","Fitbit Flex",4.0]
["Sleep Data","Pen & Paper",4.0]
["Sleep Data","Sleep As Android",4.0]
["Steps / Walking Data","Fitbit One",4.0]
["Travel / Places Visited Data","Facebook",4.0]
["Weight Data","Fitbit Aria",4.0]
["Activity Log / Timekeeping Data","Evernote",3.0]
["Activity Log / Timekeeping Data","Fitbit",3.0]
["Alcohol Data","MyFitnessPal",3.0]
["Blood Glucose Data","Spreadsheet",3.0]
["Blood Pressure Data","Omron Blood Pressure Monitor",3.0]
["Blood Pressure Data","Spreadsheet",3.0]
["Body Fat Data","Scale",3.0]
["Body Fat Data","Taniata Scales",3.0]
["Body Fat Data","Withings",3.0]
["Caffeine Data","Spreadsheet",3.0]
["Email / Contacts / Network Connections Data","Gmail",3.0]
["Email / Contacts / Network Connections Data","Spreadsheet",3.0]
["Emotional & Mental Data selected as 'Other'","Spreadsheet",3.0]
["Exercise Data (not including Running, Walking or Cycling)","Fitocracy",3.0]
["Heart-Rate Data","Pen & Paper",3.0]
["Heart-Rate Data","Spreadsheet",3.0]
["Income Data","Online Banking UI",3.0]
["Intelligence Data (IQ, Brain-Training)","Lumosity",3.0]
["Location / Position-logging / Altitude Data","Google Latitude",3.0]
["Meditation Data","Spreadsheet",3.0]
["Menstrual Cycle Data","Spreadsheet",3.0]
["Migraine Data","Pen & Paper",3.0]
["Mood / Happiness Data","Mappiness",3.0]
["Mood / Happiness Data","MoodPanda",3.0]
["Productivity Data","Spreadsheet",3.0]
["Psychometrics Data (Personality profiling, MBTI etc.)","Spreadsheet",3.0]
["Running Data","Runtastic",3.0]
["Sex Data","Spreadsheet",3.0]
["Sleep Data","Fitbit One",3.0]
["Spending & Purchases Data","Money Dash Board",3.0]
["Spending & Purchases Data","Online Banking UI",3.0]
["Spending & Purchases Data","Pen & Paper",3.0]
["Steps / Walking Data","Fitbit Flex",3.0]
["Steps / Walking Data","Pedometer",3.0]
["Waist Data","Pen & Paper",3.0]
["Weight Data","Pen & Paper",3.0]
["Allergies Data","MyFitnessPal",2.0]
["Allergies Data","Spreadsheet",2.0]
["Blood Glucose Data","Blood Glucose Meter",2.0]
["Blood Pressure Data","Blood pressure monitor",2.0]
["Blood Pressure Data","GP",2.0]
["Blood Pressure Data","Pen & Paper",2.0]
["Blood Pressure Data","Withings",2.0]
["Body Fat Data","Callipers",2.0]
["Body Fat Data","Fitbit Aria",2.0]
["Brainwaves Data","Zeo",2.0]
["Caffeine Data","MyFitnessPal",2.0]
["Cycling Data","Fitbit",2.0]
["Cycling Data","Garmin 610/910/810",2.0]
["Cycling Data","Garmin Edge 800",2.0]
["Cycling Data","MapMyRide",2.0]
["Cycling Data","Strava web site",2.0]
["Cycling Data","Wahoo",2.0]
["Eating / Diet / Supplement Data","Fitness Pal",2.0]
["Eating / Diet / Supplement Data","Pen & Paper",2.0]
["Email / Contacts / Network Connections Data","LinkedIn",2.0]
["Email / Contacts / Network Connections Data","Wolfram Alpha Personal Analytics",2.0]
["Energy Data (e.g. electricity use in the home)","Alertme",2.0]
["Energy Data (e.g. electricity use in the home)","Spreadsheet",2.0]
["Energy Data (e.g. electricity use in the home)","Wattson power meter",2.0]
["Exercise Data (not including Running, Walking or Cycling)","Endomondo",2.0]
["Exercise Data (not including Running, Walking or Cycling)","MyFitnessPal",2.0]
["Exercise Data (not including Running, Walking or Cycling)","RunKeeper",2.0]
["Fasting Data","Spreadsheet",2.0]
["Gym Workouts Data","Endomondo",2.0]
["Gym Workouts Data","Fitocracy",2.0]
["Gym Workouts Data","MyFitnessPal",2.0]
["Heart-Rate Data","Garmin 610/910/810",2.0]
["Heart-Rate Data","Garmin Heart-Rate Monitor",2.0]
["Heart-Rate Data","Heart rate monitor app using smartphone flash",2.0]
["Heart-Rate Data","Polar H7",2.0]
["Heart-Rate Data","Polar Heart Rate Monitor",2.0]
["Heart-Rate Data","Suunto Heart Rate Monitor",2.0]
["Heart-Rate Data","Wahoo HRM",2.0]
["Heart-Rate Data","Withings Pulse",2.0]
["Income Data","Microsoft Money",2.0]
["Income Data","Quicken",2.0]
["Income Data","Spending App",2.0]
["Intelligence Data (IQ, Brain-Training)","Fitbrain",2.0]
["Learning Data","Duolingo",2.0]
["Learning Data","Spreadsheet",2.0]
["Left Right Leg Fat Difference Data","Spreadsheet",2.0]
["Location / Position-logging / Altitude Data","Google My Tracks",2.0]
["Meditation Data","Getsomeheadspace app",2.0]
["Meditation Data","Pen & Paper",2.0]
["Mood / Happiness Data","Diary (pen and paper)",2.0]
["Mood / Happiness Data","Mappiness app",2.0]
["Mood / Happiness Data","Mappiness iOS",2.0]
["Other","Spreadsheet",2.0]
["Ovulation Data","Pen & Paper",2.0]
["People You Are With Data","Pen & Paper",2.0]
["Physical Data selected as 'Other'","Spreadsheet",2.0]
["Productivity Data","Pen & Paper",2.0]
["Psychometrics Data (Personality profiling, MBTI etc.)","Online Tests",2.0]
["Reading Data","Pen & Paper",2.0]
["Reading Data","Spreadsheet",2.0]
["Running Data","Fitbit",2.0]
["Running Data","Fitocracy",2.0]
["Running Data","Garmin Forerunner",2.0]
["Running Data","Nike+",2.0]
["Running Data","Strava",2.0]
["Sleep Data","Misfit Shine",2.0]
["Sleep Data","Phone app",2.0]
["Sleep Data","Sleep Time",2.0]
["Sleep Data","Sleepbot",2.0]
["Social Media Usage Data (Facebook, Twitter, del.icio.us, Tumblr etc.)","Facebook",2.0]
["Social Media Usage Data (Facebook, Twitter, del.icio.us, Tumblr etc.)","Twitter",2.0]
["Spending & Purchases Data","Microsoft Money",2.0]
["Spending & Purchases Data","Mint",2.0]
["Spending & Purchases Data","Spending App",2.0]
["Steps / Walking Data","Misfit Shine",2.0]
["Steps / Walking Data","Runtastic",2.0]
["Travel / Places Visited Data","Moves",2.0]
["TV viewing Data","Diary (pen and paper)",2.0]
["VO2max Data","Polar HRM",2.0]
["VO2max Data","Spreadsheet",2.0]
["Waist Data","Fitbit",2.0]
["Waist Data","Measuring Tape",2.0]
["Weight Data","Diary (pen and paper)",2.0]
["Weight Data","Electronic scale Homedics/Salter",2.0]
["Weight Data","Fitbit",2.0]
["Weight Data","GP",2.0]
["Weight Data","Manual scale",2.0]
["Weight Data","MyFitnessPal",2.0]
["Weight Data","Pen and Pencil",2.0]
["Weight Data","Taniata Scales",2.0]
["Weight Data","Withings",2.0]
["Activity & Consumption Data selected as 'Other'","Diary (pen and paper)",1.0]
["Activity & Consumption Data selected as 'Other'","Gnotime",1.0]
["Activity & Consumption Data selected as 'Other'","GolfSense",1.0]
["Activity & Consumption Data selected as 'Other'","Golfshot GPS",1.0]
["Activity & Consumption Data selected as 'Other'","Meditation helper pro (Android)",1.0]
["Activity & Consumption Data selected as 'Other'","Self-written program",1.0]
["Activity & Consumption Data selected as 'Other'","Spreadsheet",1.0]
["Activity & Consumption Data selected as 'Other'","TaskCoach",1.0]
["Activity Log / Timekeeping Data","Android daily activity tracker",1.0]
["Activity Log / Timekeeping Data","Backpacker app",1.0]
["Activity Log / Timekeeping Data","Chronos",1.0]
["Activity Log / Timekeeping Data","Doris",1.0]
["Activity Log / Timekeeping Data","Eternity",1.0]
["Activity Log / Timekeeping Data","Faviki",1.0]
["Activity Log / Timekeeping Data","Fitbit, Moves",1.0]
["Activity Log / Timekeeping Data","Fitfiit",1.0]
["Activity Log / Timekeeping Data","Garmin 610/910/810",1.0]
["Activity Log / Timekeeping Data","Google fusion table",1.0]
["Activity Log / Timekeeping Data","Google Keep",1.0]
["Activity Log / Timekeeping Data","Ios7 calendar",1.0]
["Activity Log / Timekeeping Data","Iphone notes",1.0]
["Activity Log / Timekeeping Data","Jawbone Up! & Fitness Pal",1.0]
["Activity Log / Timekeeping Data","Journaling",1.0]
["Activity Log / Timekeeping Data","LifeLogger",1.0]
["Activity Log / Timekeeping Data","LifeSlice",1.0]
["Activity Log / Timekeeping Data","Lumen Trails",1.0]
["Activity Log / Timekeeping Data","Microsoft Outlook",1.0]
["Activity Log / Timekeeping Data","Nike Fuelband",1.0]
["Activity Log / Timekeeping Data","Outlook",1.0]
["Activity Log / Timekeeping Data","Prorietary Program",1.0]
["Activity Log / Timekeeping Data","Remember the milk",1.0]
["Activity Log / Timekeeping Data","Rescuetime free account to monitor computer usage",1.0]
["Activity Log / Timekeeping Data","RunKeeper",1.0]
["Activity Log / Timekeeping Data","Schemer.com",1.0]
["Activity Log / Timekeeping Data","Structured Text File",1.0]
["Activity Log / Timekeeping Data","TicTrac",1.0]
["Activity Log / Timekeeping Data","Uptime",1.0]
["Activity Log / Timekeeping Data","Various apps",1.0]
["Activity Log / Timekeeping Data","Walkmeter",1.0]
["Activity Log / Timekeeping Data","Wiki page",1.0]
["Activity Log / Timekeeping Data","Withings",1.0]
["Activity Log / Timekeeping Data","Wunderlist",1.0]
["Alcohol Data","Activ8rlives",1.0]
["Alcohol Data","Alcodroid",1.0]
["Alcohol Data","Custom made app",1.0]
["Alcohol Data","Dailyburn.com",1.0]
["Alcohol Data","DrinksTracker (NHS Choices iPHone app)",1.0]
["Alcohol Data","Fitness Pal",1.0]
["Alcohol Data","Google Calendar",1.0]
["Alcohol Data","IBG Star",1.0]
["Alcohol Data","My Fat Secret",1.0]
["Alcohol Data","My NetDiary",1.0]
["Alcohol Data","NHS drinks tracker",1.0]
["Alcohol Data","Paco",1.0]
["Alcohol Data","Pen & Paper",1.0]
["Alcohol Data","Pert of counting Carbohydrates",1.0]
["Alcohol Data","Photographs",1.0]
["Alcohol Data","Photos",1.0]
["Alcohol Data","PureLifeStyle app",1.0]
["Alcohol Data","Statistica",1.0]
["Alcohol Data","Structured Text File",1.0]
["Alcohol Data","TapLog Android App",1.0]
["Alcohol Data","Untapp.d",1.0]
["Alcohol Data","Your Flowing Data Twitter app",1.0]
["Allergies Data","Dayone",1.0]
["Allergies Data","Evernote",1.0]
["Allergies Data","Fitbit",1.0]
["Allergies Data","Fooducate",1.0]
["Allergies Data","Jawbone UP",1.0]
["Allergies Data","Lifesum",1.0]
["Allergies Data","My Fat Secret",1.0]
["Allergies Data","My NetDiary",1.0]
["Allergies Data","Pen & Paper",1.0]
["Allergies Data","Thermometer",1.0]
["Allergies Data","Wellness FX",1.0]
["Arterial Stiffness Data","Fitness test by expert",1.0]
["Arterial Stiffness Data","Specialised Blood Pressure Meter",1.0]
["Blood Glucose Data","Bayer with usb",1.0]
["Blood Glucose Data","Blood glucose testing kit",1.0]
["Blood Glucose Data","Blood Ketones",1.0]
["Blood Glucose Data","GP",1.0]
["Blood Glucose Data","IBG Star Blood Glucose App",1.0]
["Blood Glucose Data","Lancet + digital reader",1.0]
["Blood Glucose Data","Lancet + paper strip",1.0]
["Blood Glucose Data","Meters",1.0]
["Blood Glucose Data","On track - diabetes tracking app",1.0]
["Blood Glucose Data","One-Touch Ultra 2",1.0]
["Blood Glucose Data","Pen & Paper",1.0]
["Blood Glucose Data","Private blood test",1.0]
["Blood Glucose Data","Well Man via Nuffield",1.0]
["Blood Glucose Data","Wellness FX",1.0]
["Blood Pressure Data","A Doctor",1.0]
["Blood Pressure Data","Activ8rlives",1.0]
["Blood Pressure Data","Digital BP cuff",1.0]
["Blood Pressure Data","Generic Arm Band Blood Pressure Monitor",1.0]
["Blood Pressure Data","Ihealth and Iphone",1.0]
["Blood Pressure Data","Iphone app to track",1.0]
["Blood Pressure Data","MIT Elite Plus",1.0]
["Blood Pressure Data","Normal bp auto device",1.0]
["Blood Pressure Data","Omron",1.0]
["Blood Pressure Data","Omron mx2",1.0]
["Blood Pressure Data","Small Wrist Device",1.0]
["Blood Pressure Data","Specialised Blood Pressure Meter",1.0]
["Blood Pressure Data","Statistica",1.0]
["Blood Pressure Data","Wellman - Nuffield",1.0]
["Blood Pressure Data","Withings Blood Pressure Monitor",1.0]
["Blood Pressure Data","Withings ipad cuff",1.0]
["Body Fat Data","Activ8rlives",1.0]
["Body Fat Data","Bodpod",1.0]
["Body Fat Data","Body fat measurement at Boots",1.0]
["Body Fat Data","Body measurements",1.0]
["Body Fat Data","Bodyfat scale",1.0]
["Body Fat Data","Diary (pen and paper)",1.0]
["Body Fat Data","Electronic scale Homedics/Salter",1.0]
["Body Fat Data","Fitbit",1.0]
["Body Fat Data","Fitbit scale",1.0]
["Body Fat Data","Google Calendar",1.0]
["Body Fat Data","GP",1.0]
["Body Fat Data","Ki Performance BodPod",1.0]
["Body Fat Data","MyFitnessPal",1.0]
["Body Fat Data","Omron Scales with bodyfat estimation",1.0]
["Body Fat Data","Pen & Paper",1.0]
["Body Fat Data","Photography",1.0]
["Body Fat Data","PureLifeStyle app",1.0]
["Body Fat Data","RunKeeper",1.0]
["Body Fat Data","Soehnle BBS Comfort 5",1.0]
["Body Fat Data","SPSS",1.0]
["Body Fat Data","Statistica",1.0]
["Body Fat Data","Tanita InnerScan Body Composition Monitor",1.0]
["Body Fat Data","Tanita Scales BC545",1.0]
["Body Fat Data","Tape Measure",1.0]
["Body Fat Data","Weighing Scales",1.0]
["Body Fat Data","Weight",1.0]
["Body Fat Data","Weight-watchers electro scales",1.0]
["Body Temperature Data","Cvs temple thermometer",1.0]
["Body Temperature Data","Pen & Paper",1.0]
["Body Temperature Data","Thermometer",1.0]
["Brainwaves Data","Brainworks",1.0]
["Brainwaves Data","Enobio",1.0]
["Brainwaves Data","NeuroSky MindWave",1.0]
["Caffeine Data","Custom made Android app",1.0]
["Caffeine Data","Dailyburn.com",1.0]
["Caffeine Data","Fitness Pal",1.0]
["Caffeine Data","Lift (app)",1.0]
["Caffeine Data","My Fat Secret",1.0]
["Caffeine Data","My NetDiary",1.0]
["Caffeine Data","My normal paper-pased diary",1.0]
["Caffeine Data","Statistica",1.0]
["Caffeine Data","Structured Text File",1.0]
["Caffeine Data","TicTrac",1.0]
["Creativity Data","Pen & Paper",1.0]
["Creativity Data","Spreadsheet",1.0]
["Cycling Data","Cateye Strada cycling computer",1.0]
["Cycling Data","Cycle computer",1.0]
["Cycling Data","Fitness Pal",1.0]
["Cycling Data","Garmin (for long bike rides)",1.0]
["Cycling Data","Garmin Connect website",1.0]
["Cycling Data","Garmin Vector",1.0]
["Cycling Data","Google My Tracks",1.0]
["Cycling Data","Ithlete Precision Pulse app",1.0]
["Cycling Data","Map my tracks",1.0]
["Cycling Data","MotionX-GPS iPhone app",1.0]
["Cycling Data","Paco",1.0]
["Cycling Data","RunKeeper",1.0]
["Cycling Data","Runtastic",1.0]
["Cycling Data","Spreadsheet",1.0]
["Cycling Data","Suunto Movescount web site",1.0]
["Cycling Data","Tacx Training Software",1.0]
["Cycling Data","Wahoo HRM",1.0]
["Cycling Data","Walkmeter on iPhone",1.0]
["Eating / Diet / Supplement Data","Carb counting",1.0]
["Eating / Diet / Supplement Data","Custom made Android app",1.0]
["Eating / Diet / Supplement Data","Dailyburn.com",1.0]
["Eating / Diet / Supplement Data","Diary (pen and paper)",1.0]
["Eating / Diet / Supplement Data","Electronic scales",1.0]
["Eating / Diet / Supplement Data","Food",1.0]
["Eating / Diet / Supplement Data","Food Tracker",1.0]
["Eating / Diet / Supplement Data","IBG Star",1.0]
["Eating / Diet / Supplement Data","Jawbone UP",1.0]
["Eating / Diet / Supplement Data","My Fat Secret",1.0]
["Eating / Diet / Supplement Data","My NetDiary",1.0]
["Eating / Diet / Supplement Data","Noom",1.0]
["Eating / Diet / Supplement Data","On-line log",1.0]
["Eating / Diet / Supplement Data","Resoph Notes",1.0]
["Eating / Diet / Supplement Data","Statistica",1.0]
["Eating / Diet / Supplement Data","Structured Text File",1.0]
["Eating / Diet / Supplement Data","Text file",1.0]
["Eating / Diet / Supplement Data","TicTrac",1.0]
["Email / Contacts / Network Connections Data","Beeminder",1.0]
["Email / Contacts / Network Connections Data","Brewster",1.0]
["Email / Contacts / Network Connections Data","Contactually",1.0]
["Email / Contacts / Network Connections Data","Email Game",1.0]
["Email / Contacts / Network Connections Data","Facebook",1.0]
["Email / Contacts / Network Connections Data","Google mail plugin",1.0]
["Email / Contacts / Network Connections Data","Immersion",1.0]
["Email / Contacts / Network Connections Data","Manually Tracking a Number",1.0]
["Email / Contacts / Network Connections Data","Noting call / email / meeting etc",1.0]
["Email / Contacts / Network Connections Data","Outlook export",1.0]
["Emotional & Mental Data selected as 'Other'","Pen & Paper",1.0]
["Emotional & Mental Data selected as 'Other'","Qlikview",1.0]
["Emotional & Mental Data selected as 'Other'","Readout aloud Lords Prayer",1.0]
["Energy Data (e.g. electricity use in the home)","British Gas 'Energy Smart' metering",1.0]
["Energy Data (e.g. electricity use in the home)","British Gas Smart Meter",1.0]
["Energy Data (e.g. electricity use in the home)","CurrentCost energy monitor",1.0]
["Energy Data (e.g. electricity use in the home)","EON analyzer",1.0]
["Energy Data (e.g. electricity use in the home)","Manual meter reading",1.0]
["Energy Data (e.g. electricity use in the home)","Meter readings",1.0]
["Energy Data (e.g. electricity use in the home)","OWL energy monitor",1.0]
["Energy Data (e.g. electricity use in the home)","Pen & Paper",1.0]
["Energy Data (e.g. electricity use in the home)","Photograph meters. gas, elec, water.",1.0]
["Energy Data (e.g. electricity use in the home)","Text file",1.0]
["Exercise Data (not including Running, Walking or Cycling)","Concept2 PM3 rowing computer",1.0]
["Exercise Data (not including Running, Walking or Cycling)","Concept2 rower + log card",1.0]
["Exercise Data (not including Running, Walking or Cycling)","Daytum",1.0]
["Exercise Data (not including Running, Walking or Cycling)","Diary (pen and paper)",1.0]
["Exercise Data (not including Running, Walking or Cycling)","Evernote",1.0]
["Exercise Data (not including Running, Walking or Cycling)","Fitbit",1.0]
["Exercise Data (not including Running, Walking or Cycling)","Fitbit One",1.0]
["Exercise Data (not including Running, Walking or Cycling)","Fitness app",1.0]
["Exercise Data (not including Running, Walking or Cycling)","Garmin Forerunner",1.0]
["Exercise Data (not including Running, Walking or Cycling)","Handheld GPS units",1.0]
["Exercise Data (not including Running, Walking or Cycling)","Ipad",1.0]
["Exercise Data (not including Running, Walking or Cycling)","Jefit.com",1.0]
["Exercise Data (not including Running, Walking or Cycling)","Manual Workout Log",1.0]
["Exercise Data (not including Running, Walking or Cycling)","MapMyFitness",1.0]
["Exercise Data (not including Running, Walking or Cycling)","Micoach",1.0]
["Exercise Data (not including Running, Walking or Cycling)","Misfit Shine",1.0]
["Exercise Data (not including Running, Walking or Cycling)","Nike Fuelband",1.0]
["Exercise Data (not including Running, Walking or Cycling)","Nike+",1.0]
["Exercise Data (not including Running, Walking or Cycling)","On track",1.0]
["Exercise Data (not including Running, Walking or Cycling)","OS maps",1.0]
["Exercise Data (not including Running, Walking or Cycling)","Own website",1.0]
["Exercise Data (not including Running, Walking or Cycling)","Pebble",1.0]
["Exercise Data (not including Running, Walking or Cycling)","Polar Heart Rate Monitor",1.0]
["Exercise Data (not including Running, Walking or Cycling)","SportsTracker",1.0]
["Exercise Data (not including Running, Walking or Cycling)","Statistica",1.0]
["Exercise Data (not including Running, Walking or Cycling)","Stop watch",1.0]
["Exercise Data (not including Running, Walking or Cycling)","Stronger (RunKeeper App)",1.0]
["Exercise Data (not including Running, Walking or Cycling)","Structured Text File",1.0]
["Exercise Data (not including Running, Walking or Cycling)","Suunto M4 watch / heartband",1.0]
["Exercise Data (not including Running, Walking or Cycling)","Swimming Garmin 910",1.0]
["Exercise Data (not including Running, Walking or Cycling)","Withings Pulse",1.0]
["Exercise Data (not including Running, Walking or Cycling)","Zephyr HxM",1.0]
["Fasting Data","Diary (pen and paper)",1.0]
["Fasting Data","Statistica",1.0]
["Gym Workouts Data","Daytum",1.0]
["Gym Workouts Data","Diary (pen and paper)",1.0]
["Gym Workouts Data","Evernote",1.0]
["Gym Workouts Data","Exercycle",1.0]
["Gym Workouts Data","Fitbit",1.0]
["Gym Workouts Data","Foursquare",1.0]
["Gym Workouts Data","Full fitness",1.0]
["Gym Workouts Data","Jawbone UP",1.0]
["Gym Workouts Data","Jefit.com",1.0]
["Gym Workouts Data","Manual Workout Log",1.0]
["Gym Workouts Data","MapMyFitness",1.0]
["Gym Workouts Data","Mobile notepad",1.0]
["Gym Workouts Data","My memory",1.0]
["Gym Workouts Data","Noom",1.0]
["Gym Workouts Data","Resistance training",1.0]
["Gym Workouts Data","Statistica",1.0]
["Gym Workouts Data","Stronger (RunKeeper App)",1.0]
["Gym Workouts Data","Suunto Heart Rate Monitor",1.0]
["Gym Workouts Data","Text file",1.0]
["Gym Workouts Data","Weights machines",1.0]
["Gym Workouts Data","Zypher",1.0]
["Hair Data","Google Calendar",1.0]
["Heart-Rate Variability Data","Breathsync app",1.0]
["Heart-Rate Variability Data","EM wave 2",1.0]
["Heart-Rate Variability Data","Emwave2 device (plus desktop version)",1.0]
["Heart-Rate Variability Data","Firstbeat",1.0]
["Heart-Rate Variability Data","HeartMath em wave desktop",1.0]
["Heart-Rate Variability Data","HeartMath inner balance app",1.0]
["Heart-Rate Variability Data","Ithlete ecg receiver",1.0]
["Heart-Rate Variability Data","Ithlete HRV",1.0]
["Heart-Rate Variability Data","Ithlete hrv ios app",1.0]
["Heart-Rate Variability Data","My ithlete with bluetooth strap",1.0]
["Heart-Rate Variability Data","Omron Blood Pressure Monitor",1.0]
["Heart-Rate Variability Data","Polar H6 + Sweatbeat iPhone app",1.0]
["Heart-Rate Variability Data","Polar H7",1.0]
["Heart-Rate Variability Data","Polar Heart Rate Monitor",1.0]
["Heart-Rate Variability Data","Polar HRM",1.0]
["Heart-Rate Variability Data","Suunto Heart Rate Monitor",1.0]
["Heart-Rate Variability Data","Sweetbeat",1.0]
["Heart-Rate Variability Data","Wild-Divine lightstone",1.0]
["Heart-Rate Variability Data","Withings",1.0]
["Heart-Rate Data","Activ8rlives",1.0]
["Heart-Rate Data","ANT+",1.0]
["Heart-Rate Data","Azumio iphone app",1.0]
["Heart-Rate Data","Basis Wristwatch",1.0]
["Heart-Rate Data","BP cuff",1.0]
["Heart-Rate Data","Bp device",1.0]
["Heart-Rate Data","ECG monitor (portable)",1.0]
["Heart-Rate Data","Fitbit",1.0]
["Heart-Rate Data","Garmin Connect website",1.0]
["Heart-Rate Data","Garmin Edge 800",1.0]
["Heart-Rate Data","Garmin head unit + ANT HRM",1.0]
["Heart-Rate Data","Generic Arm Band Blood Pressure Monitor",1.0]
["Heart-Rate Data","GP",1.0]
["Heart-Rate Data","Heart rate app",1.0]
["Heart-Rate Data","HRM",1.0]
["Heart-Rate Data","Instant heart rate app",1.0]
["Heart-Rate Data","IPhone heart rate app",1.0]
["Heart-Rate Data","Ithlete ecg receiver",1.0]
["Heart-Rate Data","Ithlete heart rate monitor",1.0]
["Heart-Rate Data","Ithlete Precision Pulse app",1.0]
["Heart-Rate Data","Ithlete pulse meter on ipod w bluetooth strap",1.0]
["Heart-Rate Data","MIT Elite Plus",1.0]
["Heart-Rate Data","My fingers",1.0]
["Heart-Rate Data","Omron Blood Pressure Monitor",1.0]
["Heart-Rate Data","Polar watch",1.0]
["Heart-Rate Data","RunKeeper",1.0]
["Heart-Rate Data","Runtastic Heart Rate",1.0]
["Heart-Rate Data","Sleave cuff",1.0]
["Heart-Rate Data","SPO2 monitor",1.0]
["Heart-Rate Data","Statistica",1.0]
["Heart-Rate Data","Strava",1.0]
["Heart-Rate Data","Strava web site",1.0]
["Heart-Rate Data","StressCheck",1.0]
["Heart-Rate Data","Suunto HRM watch",1.0]
["Heart-Rate Data","Suunto T6",1.0]
["Heart-Rate Data","TicTrac",1.0]
["Heart-Rate Data","Timex HRM watch",1.0]
["Heart-Rate Data","Walkmeter on iPhone",1.0]
["Heart-Rate Data","Withings",1.0]
["Heart-Rate Data","Withings Blood Pressure Monitor",1.0]
["Heart-Rate Data","Withings, Polar band",1.0]
["Heart-Rate Data","Zephyr HxM",1.0]
["Income Data","Account Tracker",1.0]
["Income Data","Bank Account Downloads",1.0]
["Income Data","Bank statement",1.0]
["Income Data","Coinkeeper",1.0]
["Income Data","CSV files",1.0]
["Income Data","Financisto android app",1.0]
["Income Data","Manually Tracking a Number",1.0]
["Income Data","Mint",1.0]
["Income Data","Money Dash Board",1.0]
["Income Data","Moneywiz",1.0]
["Income Data","Omie",1.0]
["Income Data","Online Bank App",1.0]
["Income Data","Pen & Paper",1.0]
["Income Data","Python Code",1.0]
["Income Data","Python scripts",1.0]
["Income Data","SMS notifications",1.0]
["Income Data","SVT Accounts App",1.0]
["Income Data","W-2",1.0]
["Income Data","Whiteboard",1.0]
["Intelligence Data (IQ, Brain-Training)","Brain workshop (for n-back training)",1.0]
["Intelligence Data (IQ, Brain-Training)","cognitivefun.net/",1.0]
["Intelligence Data (IQ, Brain-Training)","Diary (pen and paper)",1.0]
["Intelligence Data (IQ, Brain-Training)","Intelligencetest.com",1.0]
["Intelligence Data (IQ, Brain-Training)","Luminosity",1.0]
["Intelligence Data (IQ, Brain-Training)","Medical IQ tests",1.0]
["Intelligence Data (IQ, Brain-Training)","Nintendo brain training game",1.0]
["Intelligence Data (IQ, Brain-Training)","Other online programmes",1.0]
["Intelligence Data (IQ, Brain-Training)","Puzzles",1.0]
["Intelligence Data (IQ, Brain-Training)","Quantified-mind.com",1.0]
["Intelligence Data (IQ, Brain-Training)","Reading",1.0]
["Intelligence Data (IQ, Brain-Training)","sapa-project.org/",1.0]
["Intelligence Data (IQ, Brain-Training)","Software",1.0]
["Intelligence Data (IQ, Brain-Training)","Spreadsheet",1.0]
["Intelligence Data (IQ, Brain-Training)","Sudoku",1.0]
["Internet Usage Data","Calendar",1.0]
["Internet Usage Data","Plusnet monitor",1.0]
["Internet Usage Data","Spreadsheet",1.0]
["Investments Data","Account Tracker",1.0]
["Investments Data","FT portfolio",1.0]
["Investments Data","Hargreaves Landsdown Portfolio Manager",1.0]
["Investments Data","Investment account statements",1.0]
["Investments Data","Manual processing",1.0]
["Investments Data","Microsoft Money",1.0]
["Investments Data","Nutmeg",1.0]
["Investments Data","Online Bank App",1.0]
["Investments Data","Quicken",1.0]
["Investments Data","Tip sheet",1.0]
["Investments Data","Zoopla",1.0]
["Learning Data","Anki",1.0]
["Learning Data","Ankilearn",1.0]
["Learning Data","Beeminder.com",1.0]
["Learning Data","Diary (pen and paper)",1.0]
["Learning Data","Evernote",1.0]
["Learning Data","Faviki",1.0]
["Learning Data","Memrise",1.0]
["Learning Data","Mind Snacks",1.0]
["Learning Data","Structured Text File",1.0]
["Left Right Leg Fat Difference Data","Measuring Tape",1.0]
["Left Right Leg Fat Difference Data","Orthotic professional",1.0]
["Left Right Leg Fat Difference Data","Skin fold calipers",1.0]
["Left Right Leg Fat Difference Data","Statistica",1.0]
["Left Right Leg Fat Difference Data","Tanita InnerScan Body Composition Monitor",1.0]
["Left Right Leg Fat Difference Data","Tape Measure",1.0]
["Location / Position-logging / Altitude Data","Chronos",1.0]
["Location / Position-logging / Altitude Data","Facebook",1.0]
["Location / Position-logging / Altitude Data","Fog of the World app",1.0]
["Location / Position-logging / Altitude Data","Garmin 610/910/810",1.0]
["Location / Position-logging / Altitude Data","Garmin Connect website",1.0]
["Location / Position-logging / Altitude Data","Garmin Edge 800",1.0]
["Location / Position-logging / Altitude Data","Garmin Oregon 450",1.0]
["Location / Position-logging / Altitude Data","Google Location History",1.0]
["Location / Position-logging / Altitude Data","GPSBabel",1.0]
["Location / Position-logging / Altitude Data","GPSVisualizer",1.0]
["Location / Position-logging / Altitude Data","Iphone location data",1.0]
["Location / Position-logging / Altitude Data","MapMyWalk",1.0]
["Location / Position-logging / Altitude Data","OpenPaths iOS app",1.0]
["Location / Position-logging / Altitude Data","Pen & Paper",1.0]
["Location / Position-logging / Altitude Data","Qstarz BT-Q1000 GPS travel recorder",1.0]
["Location / Position-logging / Altitude Data","RunKeeper",1.0]
["Location / Position-logging / Altitude Data","Runtastic",1.0]
["Location / Position-logging / Altitude Data","SportsTracker",1.0]
["Location / Position-logging / Altitude Data","Strava web site",1.0]
["Location / Position-logging / Altitude Data","Tableau Desktop software",1.0]
["Medication Data","Diary (pen and paper)",1.0]
["Medication Data","IBG Star",1.0]
["Medication Data","Menstrual Calendar Premium for Android",1.0]
["Medication Data","On track",1.0]
["Medication Data","Paper",1.0]
["Medication Data","Statistica",1.0]
["Meditation Data","Beeminder.com",1.0]
["Meditation Data","Equanimity",1.0]
["Meditation Data","Meditation app",1.0]
["Meditation Data","MeditationsAppen",1.0]
["Meditation Data","Qualitative data",1.0]
["Meditation Data","RescueTime",1.0]
["Meditation Data","Smiling Mind",1.0]
["Meditation Data","Structured Text File",1.0]
["Meditation Data","TicTrac",1.0]
["Meditation Data","Timing",1.0]
["Menstrual Cycle Data","Ascii text file",1.0]
["Menstrual Cycle Data","Calendar",1.0]
["Menstrual Cycle Data","Google Calendar",1.0]
["Menstrual Cycle Data","Menstrual Calendar Premium for Android",1.0]
["Menstrual Cycle Data","Menstrual Cycle",1.0]
["Menstrual Cycle Data","Mobile app",1.0]
["Menstrual Cycle Data","Mobile Phone App",1.0]
["Menstrual Cycle Data","P tracker",1.0]
["Menstrual Cycle Data","Period tracker app",1.0]
["Migraine Data","Hydration",1.0]
["Migraine Data","IPhone Calendar",1.0]
["Migraine Data","Pen and Pencil",1.0]
["Migraine Data","Spreadsheet",1.0]
["Migraine Data","Structured Text File",1.0]
["Migraine Data","Travel",1.0]
["Migraine Data","Ubiqi app",1.0]
["Migraine Data","Weather",1.0]
["Mood / Happiness Data","Activ8rlives",1.0]
["Mood / Happiness Data","CBT questionaire",1.0]
["Mood / Happiness Data","Emotion Sense app",1.0]
["Mood / Happiness Data","Expereal app",1.0]
["Mood / Happiness Data","Galvanic Skin Response (own)",1.0]
["Mood / Happiness Data","Ginger.io",1.0]
["Mood / Happiness Data","GottaFeeling app",1.0]
["Mood / Happiness Data","Happiness iPhone app",1.0]
["Mood / Happiness Data","Homemade paper-based colour grid",1.0]
["Mood / Happiness Data","InFlow",1.0]
["Mood / Happiness Data","Ithlete HRV",1.0]
["Mood / Happiness Data","Jawbone UP",1.0]
["Mood / Happiness Data","Journaling",1.0]
["Mood / Happiness Data","Manually Tracking a Number",1.0]
["Mood / Happiness Data","Menstrual Calendar Premium for Android",1.0]
["Mood / Happiness Data","Mobile app",1.0]
["Mood / Happiness Data","Mood Agent for Android",1.0]
["Mood / Happiness Data","MS Word",1.0]
["Mood / Happiness Data","My own 'face-matching' scales",1.0]
["Mood / Happiness Data","OhLife",1.0]
["Mood / Happiness Data","Self track",1.0]
["Mood / Happiness Data","Self-reported scale 1-10",1.0]
["Mood / Happiness Data","Self-written program",1.0]
["Mood / Happiness Data","Structured Text File",1.0]
["Mood / Happiness Data","Subjective feeling",1.0]
["Mood / Happiness Data","Voice analysis (own)",1.0]
["Music Consumption Data","Last.fm audioscrobbler",1.0]
["Music Consumption Data","Scrobbler.fm",1.0]
["Music Consumption Data","Songkick",1.0]
["Music Consumption Data","Spreadsheet",1.0]
["Other","Activ8rlives",1.0]
["Other","BT4 temp probes",1.0]
["Other","EcoDrive, comes inbuilt with Fiats",1.0]
["Other","Google Latitude",1.0]
["Other","Kept daily on spreadsheet",1.0]
["Other","Lux meters",1.0]
["Other","Open Source Brain-Computer Interface",1.0]
["Other","Pen & Paper",1.0]
["Other","Photographs",1.0]
["Other","PureLifeStyle app",1.0]
["Other","Reverse analysis from fitbit or jawbone",1.0]
["Other","Self-reported scale 1-10",1.0]
["Other","Ubiqlog",1.0]
["Other","Untapp.d",1.0]
["Ovulation Data","Menstrual Calendar Premium for Android",1.0]
["Ovulation Data","Menstrual Cycle",1.0]
["Ovulation Data","P tracker",1.0]
["Ovulation Data","Pen and Pencil",1.0]
["People You Are With Data","Facebook",1.0]
["People You Are With Data","Spreadsheet",1.0]
["Perspiration Data","Basis Wristwatch",1.0]
["Perspiration Data","No tools",1.0]
["Phenotype Data (static physical traits e.g. eye colour)","23andme",1.0]
["Phenotype Data (static physical traits e.g. eye colour)","PureLifeStyle app",1.0]
["Phenotype Data (static physical traits e.g. eye colour)","Spreadsheet",1.0]
["Photographic / Film Data","Google+ Photos",1.0]
["Photographic / Film Data","Imdb",1.0]
["Photographic / Film Data","Pen & Paper",1.0]
["Photographic / Film Data","Workflowy",1.0]
["Physical Data selected as 'Other'","Carbodydrates looked up on google",1.0]
["Physical Data selected as 'Other'","Concept 2 rowing monitor card",1.0]
["Physical Data selected as 'Other'","Digital peak flow monitor",1.0]
["Physical Data selected as 'Other'","Electrophoresis",1.0]
["Physical Data selected as 'Other'","Fitbit Flex",1.0]
["Physical Data selected as 'Other'","Hyperthermia times (abandoned)",1.0]
["Physical Data selected as 'Other'","Journeying or not",1.0]
["Physical Data selected as 'Other'","Oxygination",1.0]
["Physical Data selected as 'Other'","Phone app",1.0]
["Physical Data selected as 'Other'","Polar HRM",1.0]
["Physical Data selected as 'Other'","Private clinics",1.0]
["Productivity Data","Chrome productivity extension",1.0]
["Productivity Data","Diary (pen and paper)",1.0]
["Productivity Data","Doris",1.0]
["Productivity Data","Structured Text File",1.0]
["Productivity Data","Various apps",1.0]
["Productivity Data","Whiteboard",1.0]
["Productivity Data","Wunderlist",1.0]
["Psychometrics Data (Personality profiling, MBTI etc.)","Belbin",1.0]
["Psychometrics Data (Personality profiling, MBTI etc.)","Emotion Sense app",1.0]
["Psychometrics Data (Personality profiling, MBTI etc.)","Evernote",1.0]
["Psychometrics Data (Personality profiling, MBTI etc.)","In person tests",1.0]
["Psychometrics Data (Personality profiling, MBTI etc.)","McQuag",1.0]
["Psychometrics Data (Personality profiling, MBTI etc.)","Online Big Five Personality Test",1.0]
["Psychometrics Data (Personality profiling, MBTI etc.)","Pen & Paper",1.0]
["Psychometrics Data (Personality profiling, MBTI etc.)","Questionaires",1.0]
["Psychometrics Data (Personality profiling, MBTI etc.)","sapa-project.org/",1.0]
["Psychometrics Data (Personality profiling, MBTI etc.)","Self assessment questionaire",1.0]
["Psychometrics Data (Personality profiling, MBTI etc.)","Website",1.0]
["Psychometrics Data (Personality profiling, MBTI etc.)","www.good.co/",1.0]
["Psychometrics Data (Personality profiling, MBTI etc.)","www.omnifolio.org",1.0]
["Psychometrics Data (Personality profiling, MBTI etc.)","www.personal.psu.edu/j5j/IPIP/",1.0]
["Reading Data","Diary (pen and paper)",1.0]
["Reading Data","Google documents",1.0]
["Reading Data","Librarything.com",1.0]
["Reading Data","Resoph Notes",1.0]
["Reading Data","Structured Text File",1.0]
["Reading Data","Tinderbox",1.0]
["Running Data","Dailymile",1.0]
["Running Data","Fizztrain web site",1.0]
["Running Data","Garmin Connect website",1.0]
["Running Data","Garmin Footpod",1.0]
["Running Data","Garmin online software",1.0]
["Running Data","Google Earth for distance; now dropped",1.0]
["Running Data","Google My Tracks",1.0]
["Running Data","ICardio linked with Zephyr",1.0]
["Running Data","IRunner",1.0]
["Running Data","Jawbone UP",1.0]
["Running Data","Map my tracks",1.0]
["Running Data","MapMyFitness",1.0]
["Running Data","Micoach",1.0]
["Running Data","Misfit Shine",1.0]
["Running Data","MyFitnessPal",1.0]
["Running Data","Nike Fuelband",1.0]
["Running Data","Nike+ Running app",1.0]
["Running Data","Phone app",1.0]
["Running Data","Polar HRM",1.0]
["Running Data","PureLifeStyle app",1.0]
["Running Data","Stop watch",1.0]
["Running Data","Suunto M4 watch",1.0]
["Running Data","Suunto Movescount web site",1.0]
["Running Data","Wahoo",1.0]
["Running Data","Wahoo HRM",1.0]
["Running Data","Walkmeter on iPhone",1.0]
["Sex Data","Fitbit",1.0]
["Sex Data","Jawbone UP",1.0]
["Sex Data","KiFit",1.0]
["Sex Data","Menstrual Cycle",1.0]
["Sex Data","P tracker",1.0]
["Sex Data","Pen & Paper",1.0]
["Sex Data","Structured Text File",1.0]
["Sex Data","The same mobile app for tracking menstrual cycle",1.0]
["Sleep Data","Alarm app",1.0]
["Sleep Data","Basis Wristband",1.0]
["Sleep Data","Beddit, Fitbit, Snorelab",1.0]
["Sleep Data","BodyMedia FIT",1.0]
["Sleep Data","Diary (pen and paper)",1.0]
["Sleep Data","Dream diary",1.0]
["Sleep Data","Fitbits for comparison",1.0]
["Sleep Data","Google Calendar",1.0]
["Sleep Data","Ios 7 sleep time free app",1.0]
["Sleep Data","IPhone",1.0]
["Sleep Data","IPhone sleep tracker app",1.0]
["Sleep Data","Jawbone up for comparison",1.0]
["Sleep Data","KiFit",1.0]
["Sleep Data","Mobile app",1.0]
["Sleep Data","MS Word",1.0]
["Sleep Data","NHS Sleep monitoring machine",1.0]
["Sleep Data","Qualitative record 1-10",1.0]
["Sleep Data","Selfmade tool to draw art while asleep",1.0]
["Sleep Data","Shine by Misfits",1.0]
["Sleep Data","Sleep Talk",1.0]
["Sleep Data","Sleeptime app",1.0]
["Sleep Data","Withings Pulse",1.0]
["Social Media Usage Data (Facebook, Twitter, del.icio.us, Tumblr etc.)","Delicious",1.0]
["Social Media Usage Data (Facebook, Twitter, del.icio.us, Tumblr etc.)","Instagram via Statigram",1.0]
["Social Media Usage Data (Facebook, Twitter, del.icio.us, Tumblr etc.)","Klout",1.0]
["Social Media Usage Data (Facebook, Twitter, del.icio.us, Tumblr etc.)","LinkedIn",1.0]
["Social Media Usage Data (Facebook, Twitter, del.icio.us, Tumblr etc.)","RescueTime",1.0]
["Social Media Usage Data (Facebook, Twitter, del.icio.us, Tumblr etc.)","Twittercounter and Tweetstats",1.0]
["Spending & Purchases Data","Account Tracker",1.0]
["Spending & Purchases Data","Amex breakdown",1.0]
["Spending & Purchases Data","App",1.0]
["Spending & Purchases Data","Bank CSV Download",1.0]
["Spending & Purchases Data","Collect receipts",1.0]
["Spending & Purchases Data","Custom made Android app",1.0]
["Spending & Purchases Data","Finance diary",1.0]
["Spending & Purchases Data","Financisto android app",1.0]
["Spending & Purchases Data","HomeBudget app",1.0]
["Spending & Purchases Data","IPhone Budgeting Apps",1.0]
["Spending & Purchases Data","Lovemoney.com tracker",1.0]
["Spending & Purchases Data","Manually Tracking a Number",1.0]
["Spending & Purchases Data","Moneywiz",1.0]
["Spending & Purchases Data","Mysql database",1.0]
["Spending & Purchases Data","Omie",1.0]
["Spending & Purchases Data","Price comparison sites",1.0]
["Spending & Purchases Data","Python Code",1.0]
["Spending & Purchases Data","Python scripts",1.0]
["Spending & Purchases Data","Quicken",1.0]
["Spending & Purchases Data","Reciepts",1.0]
["Spending & Purchases Data","SMS notifications",1.0]
["Spending & Purchases Data","SVT Accounts App",1.0]
["Spending & Purchases Data","Wallet",1.0]
["Spending & Purchases Data","Weekly review",1.0]
["Steps / Walking Data","Basis Wristwatch",1.0]
["Steps / Walking Data","Beddit",1.0]
["Steps / Walking Data","Fitbit ultra",1.0]
["Steps / Walking Data","Garmin 610/910/810",1.0]
["Steps / Walking Data","Garmin xt",1.0]
["Steps / Walking Data","Google My Tracks",1.0]
["Steps / Walking Data","GPS mapping",1.0]
["Steps / Walking Data","KiFit",1.0]
["Steps / Walking Data","MapMyWalk",1.0]
["Steps / Walking Data","MotionX-GPS iPhone app",1.0]
["Steps / Walking Data","Mysql database",1.0]
["Steps / Walking Data","Nike+",1.0]
["Steps / Walking Data","Noom",1.0]
["Steps / Walking Data","Noom Android App",1.0]
["Steps / Walking Data","Noom walk",1.0]
["Steps / Walking Data","Omron pedometer",1.0]
["Steps / Walking Data","Shine by Misfits",1.0]
["Steps / Walking Data","Smart phone app (SHealth)",1.0]
["Steps / Walking Data","Snorelab",1.0]
["Steps / Walking Data","SportsTracker",1.0]
["Steps / Walking Data","Spreadsheet",1.0]
["Steps / Walking Data","Withings Pulse",1.0]
["Travel / Places Visited Data","Blog",1.0]
["Travel / Places Visited Data","Calendar",1.0]
["Travel / Places Visited Data","Chronos",1.0]
["Travel / Places Visited Data","Flickr",1.0]
["Travel / Places Visited Data","Garmin 610/910/810",1.0]
["Travel / Places Visited Data","Google Latitude",1.0]
["Travel / Places Visited Data","Google maps",1.0]
["Travel / Places Visited Data","Google My Tracks",1.0]
["Travel / Places Visited Data","IPhone",1.0]
["Travel / Places Visited Data","MapMyWalk",1.0]
["Travel / Places Visited Data","MS Word",1.0]
["Travel / Places Visited Data","My blog",1.0]
["Travel / Places Visited Data","Pen & Paper",1.0]
["Travel / Places Visited Data","Photos",1.0]
["Travel / Places Visited Data","Runtastic",1.0]
["Travel / Places Visited Data","Spreadsheet",1.0]
["Travel / Places Visited Data","Statistica",1.0]
["Travel / Places Visited Data","Tripit",1.0]
["TV viewing Data","Eternity",1.0]
["TV viewing Data","Google Calendar",1.0]
["TV viewing Data","Structured Text File",1.0]
["TV viewing Data","Zenobase.com",1.0]
["VO2max Data","BUPA exercycle test",1.0]
["VO2max Data","Clement Clarke Mini-Wright Peak Flow Meter",1.0]
["VO2max Data","Gym equipment",1.0]
["VO2max Data","Indirect measure via hr performance and body metrics",1.0]
["VO2max Data","MLSS Test",1.0]
["VO2max Data","Rowing 2000m time trial",1.0]
["VO2max Data","Single expert assessment",1.0]
["VO2max Data","Suunto Heart Rate Monitor",1.0]
["VO2max Data","Vo2max formula",1.0]
["VO2max Data","Vo2max tests with kettlebells",1.0]
["VO2max Data","Wellman - Nuffield",1.0]
["Waist Data","Accumeasure (Tape Measure)",1.0]
["Waist Data","MyFitnessPal",1.0]
["Waist Data","Observation on clothes",1.0]
["Waist Data","Personal Coach",1.0]
["Waist Data","Tape",1.0]
["Water Intake Data","Argus",1.0]
["Water Intake Data","Diary (pen and paper)",1.0]
["Water Intake Data","Fitbit",1.0]
["Water Intake Data","Fitbit dashboard",1.0]
["Water Intake Data","Mobile Phone App",1.0]
["Water Intake Data","MyFitnessPal",1.0]
["Water Intake Data","PureLifeStyle app",1.0]
["Water Intake Data","TapLog Android App",1.0]
["Weight Data","Aria scales",1.0]
["Weight Data","Basic digital scales",1.0]
["Weight Data","Basic scale and fitnesspal",1.0]
["Weight Data","Digital scale",1.0]
["Weight Data","Digital scales",1.0]
["Weight Data","Fitbit dashboard",1.0]
["Weight Data","Fitbit scale",1.0]
["Weight Data","Google Calendar",1.0]
["Weight Data","Lloyds Pharmacy scale",1.0]
["Weight Data","Mechanical scales",1.0]
["Weight Data","Menstrual Calendar Premium for Android",1.0]
["Weight Data","Mysql database",1.0]
["Weight Data","Nintendo Wii with their WiiActive thing",1.0]
["Weight Data","Noom",1.0]
["Weight Data","Normal scales",1.0]
["Weight Data","Phone app",1.0]
["Weight Data","PureLifeStyle app",1.0]
["Weight Data","Regular scale",1.0]
["Weight Data","Regular scale and mobile phone calendar",1.0]
["Weight Data","RunKeeper",1.0]
["Weight Data","Soehnle FS Comfort 5",1.0]
["Weight Data","Step on scales and Tactio health App",1.0]
["Weight Data","Tanita InnerScan Body Composition Monitor",1.0]
["Weight Data","Tanita Scales BC545",1.0]
["Weight Data","Text document",1.0]
["Weight Data","True Weight iOS app",1.0]
["Weight Data","Weight",1.0]
["Weight Data","Weight-watchers electro scales",1.0]
["Weight Data","Wii fit",1.0]
["Weight Data","Wii scale",1.0]
["Weight Data","Withings, Fatwatch",1.0]
["Weight Data","Your Flowing Data Twitter app",1.0]

{"sheet":"Tool Recommendations","index":2,"n_rows":61,"n_cols":4,"rows_kept":61,"cut":false,"hidden":false,"merged":[]}
["Tool Name","Frequency of Mentions",null,"This table shows the number of times a tool has been recommended. "]
["Fitbit",7.0]
["Moves",5.0]
["Withings Scales",5.0]
["Garmin 610/910/810",4.0]
["RunKeeper",3.0]
["Spreadsheet",3.0]
["Diary (pen and paper)",2.0]
["ithlete",2.0]
["Jawbone UP",2.0]
["MyFitnessPal",2.0]
["Strava",2.0]
["Activ8rlives",1.0]
["App Inventor",1.0]
["Chronos",1.0]
["Endomondo",1.0]
["Evernote",1.0]
["Excel statistical analysis tools",1.0]
["Faviki",1.0]
["Fitbit Aria",1.0]
["Fitbit Flex",1.0]
["Fitbit One",1.0]
["Fitness Pal",1.0]
["Fourier Transform in excel",1.0]
["Garmin Edge",1.0]
["Good habits app",1.0]
["Goodreads",1.0]
["Google Keep",1.0]
["Google Location History",1.0]
["Google refine",1.0]
["Happiness app",1.0]
["HeartMath HRV",1.0]
["HomeBudget app",1.0]
["Imdb",1.0]
["KiFit",1.0]
["LoveMoney",1.0]
["Minitab",1.0]
["Misfit Shine",1.0]
["Moneywiz",1.0]
["Moodscope",1.0]
["NeuroSky",1.0]
["Nike Fuelband",1.0]
["On track",1.0]
["Paco",1.0]
["Polar Heart Rate Monitor",1.0]
["Qlikview Personal Edition (visualisation)",1.0]
["R",1.0]
["Remember the milk",1.0]
["Statistica",1.0]
["Suunto Heart Rate Monitor",1.0]
["Suunto M4 ",1.0]
["SVT Accounts App",1.0]
["Tableau",1.0]
["Taplog(Android)",1.0]
["TicTrac",1.0]
["Wahoo",1.0]
["Walkmeter",1.0]
["WellnessFX ",1.0]
["Withings Blood Pressure Monitor",1.0]
["Zenobase.com",1.0]
["Zeo",1.0]

{"sheet":"Current Tracking","index":3,"n_rows":63,"n_cols":12,"rows_kept":63,"cut":false,"hidden":false,"merged":[[0,1,0,3],[0,6,0,8],[0,11,1,11]]}
[null,"105 Complete Response Sets %",{"$nulls":4},"105 Complete Response Sets",{"$nulls":4},"These tables show the number of people collecting various data types. The total collected column is the sum of the 'Currently Collecting and 'Previously Collected' column"]
[null,"Currently Collecting","Previously Collected","Plan to Collect in Future","Total Collected",null,"Currently Collecting","Previously Collected","Plan to Collect in Future","Total Collected"]
["Weight",0.47,0.17,0.07,0.638,"Weight",49.0,18.0,7.0,67.0]
["Sleep",0.31,0.19,0.17,0.505,"Sleep",33.0,20.0,18.0,53.0]
["Steps / Walking",0.35,0.12,0.03,0.476,"Steps / Walking",37.0,13.0,3.0,50.0]
["Activity Log / Timekeeping",0.28,0.12,0.04,0.4,"Activity Log / Timekeeping",29.0,13.0,4.0,42.0]
["Heart-Rate",0.22,0.17,0.16,0.39,"Heart-Rate",23.0,18.0,17.0,41.0]
["Running",0.28,0.08,0.04,0.352,"Running",29.0,8.0,4.0,37.0]
["Spending & Purchases",0.23,0.11,0.1,0.343,"Spending & Purchases",24.0,12.0,11.0,36.0]
["Body Fat",0.3,0.03,0.17,0.324,"Body Fat",31.0,3.0,18.0,34.0]
["Eating / Diet / Supplements (e.g. vitamins & minerals)",0.18,0.13,0.15,0.314,"Eating / Diet / Supplements (e.g. vitamins & minerals)",19.0,14.0,16.0,33.0]
["Exercise (not including Running, Walking or Cycling)",0.19,0.12,0.08,0.314,"Exercise (not including Running, Walking or Cycling)",20.0,13.0,8.0,33.0]
["Mood / Happiness",0.12,0.16,0.11,0.286,"Mood / Happiness",13.0,17.0,12.0,30.0]
["Income",0.2,0.08,0.09,0.276,"Income",21.0,8.0,9.0,29.0]
["Gym Workouts",0.11,0.14,0.05,0.257,"Gym Workouts",12.0,15.0,5.0,27.0]
["Cycling",0.17,0.07,0.08,0.238,"Cycling",18.0,7.0,8.0,25.0]
["Blood Pressure",0.13,0.1,0.16,0.229,"Blood Pressure",14.0,10.0,17.0,24.0]
["Alcohol",0.13,0.08,0.11,0.21,"Alcohol",14.0,8.0,12.0,22.0]
["Location  / Position-logging / Altitude",0.14,0.07,0.07,0.21,"Location  / Position-logging / Altitude",15.0,7.0,7.0,22.0]
["Waist",0.13,0.07,0.12,0.2,"Waist",14.0,7.0,13.0,21.0]
["Investments",0.12,0.06,0.09,0.181,"Investments",13.0,6.0,9.0,19.0]
["Productivity",0.1,0.08,0.09,0.171,"Productivity",10.0,8.0,9.0,18.0]
["Travel / Places Visited",0.11,0.06,0.06,0.171,"Travel / Places Visited",12.0,6.0,6.0,18.0]
["Reading",0.1,0.06,0.1,0.162,"Reading",11.0,6.0,10.0,17.0]
["Heart-Rate Variability",0.09,0.06,0.15,0.143,"Heart-Rate Variability",9.0,6.0,16.0,15.0]
["Psychometrics  (Personality profiling, MBTI etc.)",0.02,0.12,0.05,0.143,"Psychometrics  (Personality profiling, MBTI etc.)",2.0,13.0,5.0,15.0]
["Menstrual Cycle",0.09,0.05,0.03,0.133,"Menstrual Cycle",9.0,5.0,3.0,14.0]
["Learning",0.06,0.07,0.06,0.124,"Learning",6.0,7.0,6.0,13.0]
["Blood Glucose",0.07,0.05,0.23,0.114,"Blood Glucose",7.0,5.0,24.0,12.0]
["Email",0.06,0.06,0.1,0.114,"Email",6.0,6.0,10.0,12.0]
["Energy (e.g. electricity use in the home)",0.04,0.08,0.11,0.114,"Energy (e.g. electricity use in the home)",4.0,8.0,12.0,12.0]
["Caffeine",0.05,0.06,0.11,0.105,"Caffeine",5.0,6.0,12.0,11.0]
["VO2max (maximal oxygen consumption)",0.03,0.07,0.18,0.095,"VO2max (maximal oxygen consumption)",3.0,7.0,19.0,10.0]
["Intelligence (IQ, Brain-Training)",0.02,0.07,0.08,0.086,"Intelligence (IQ, Brain-Training)",2.0,7.0,8.0,9.0]
["Body Temperature",0.05,0.03,0.12,0.076,"Body Temperature",5.0,3.0,13.0,8.0]
["Contacts / Network Connections / Email Analysis",0.06,0.02,0.05,0.076,"Contacts / Network Connections / Email Analysis",6.0,2.0,5.0,8.0]
["Medication",0.07,0.01,0.09,0.076,"Medication",7.0,1.0,9.0,8.0]
["Meditation",0.06,0.02,0.09,0.076,"Meditation",6.0,2.0,9.0,8.0]
["Music Consumption",0.07,0.01,0.06,0.076,"Music Consumption",7.0,1.0,6.0,8.0]
["Other (please specify in text box that will appear if option selected)",0.05,0.03,0.03,0.076,"Other (please specify in text box that will appear if option selected)",5.0,3.0,3.0,8.0]
["Sex",0.07,0.01,0.1,0.076,"Sex",7.0,1.0,10.0,8.0]
["Water Intake",0.03,0.05,0.1,0.076,"Water Intake",3.0,5.0,11.0,8.0]
["Energy",0.03,0.04,0.08,0.067,"Energy",3.0,4.0,8.0,7.0]
["Internet Usage",0.03,0.04,0.08,0.067,"Internet Usage",3.0,4.0,8.0,7.0]
["Migraine",0.05,0.02,0.06,0.067,"Migraine",5.0,2.0,6.0,7.0]
["Social Media Usage (Facebook, Twitter, del.icio.us, Tumblr etc.)",0.07,0.0,0.04,0.067,"Social Media Usage (Facebook, Twitter, del.icio.us, Tumblr etc.)",7.0,0.0,4.0,7.0]
["Allergies",0.01,0.05,0.08,0.057,"Allergies",1.0,5.0,8.0,6.0]
["Brainwaves (EEG etc.)",0.0,0.06,0.18,0.057,"Brainwaves (EEG etc.)",0.0,6.0,19.0,6.0]
["Ovulation",0.04,0.01,0.01,0.048,"Ovulation",4.0,1.0,1.0,5.0]
["TV viewing",0.05,0.0,0.06,0.048,"TV viewing",5.0,0.0,6.0,5.0]
["Left Right Leg Fat Difference",0.03,0.01,0.04,0.038,"Left Right Leg Fat Difference",3.0,1.0,4.0,4.0]
["Fasting",0.03,0.0,0.07,0.029,"Fasting",3.0,0.0,7.0,3.0]
["Other (please specify in text box that will appear if option selected)",0.03,0.0,0.04,0.029,"Other (please specify in text box that will appear if option selected)",3.0,0.0,4.0,3.0]
["Other (please specify in text box that will appear if option selected)",0.02,0.01,0.01,0.029,"Other (please specify in text box that will appear if option selected)",2.0,1.0,1.0,3.0]
["People You Are With",0.02,0.01,0.05,0.029,"People You Are With",2.0,1.0,5.0,3.0]
["Phenotypes (static physical traits e.g. eye colour, height, blood type)",0.02,0.01,0.04,0.029,"Phenotypes (static physical traits e.g. eye colour, height, blood type)",2.0,1.0,4.0,3.0]
["Photographic / Film",0.02,0.01,0.05,0.029,"Photographic / Film",2.0,1.0,5.0,3.0]
["Arterial Stiffness",0.0,0.02,0.06,0.019,"Arterial Stiffness",0.0,2.0,6.0,2.0]
["Perspiration",0.02,0.0,0.09,0.019,"Perspiration",2.0,0.0,9.0,2.0]
["Creativity",0.0,0.01,0.08,0.01,"Creativity",0.0,1.0,8.0,1.0]
["Hair",0.0,0.01,0.04,0.01,"Hair",0.0,1.0,4.0,1.0]
["Other (please specify in text box that will appear if option selected)",0.01,0.0,0.0,0.01,"Other (please specify in text box that will appear if option selected)",1.0,0.0,0.0,1.0]
["Other (Please Specify)",0.0,0.0,0.01,0.0,"Other (Please Specify)",0.0,0.0,1.0,0.0]

{"sheet":"Future Tracking Intent","index":4,"n_rows":63,"n_cols":7,"rows_kept":63,"cut":false,"hidden":false,"merged":[[0,1,0,3],[0,6,1,6]]}
[null,"105 Complete Response Sets",{"$nulls":4},"This table shows the types of data people intend to collect in the future "]
[null,"Plan to Collect in Future","Currently Collecting","Previously Collected","Total Collected"]
["Blood Glucose",24.0,7.0,5.0,12.0]
["Brainwaves (EEG etc.)",19.0,0.0,6.0,6.0]
["VO2max (maximal oxygen consumption)",19.0,3.0,7.0,10.0]
["Body Fat",18.0,31.0,3.0,34.0]
["Sleep",18.0,33.0,20.0,53.0]
["Blood Pressure",17.0,14.0,10.0,24.0]
["Heart-Rate",17.0,23.0,18.0,41.0]
["Eating / Diet / Supplements (e.g. vitamins & minerals)",16.0,19.0,14.0,33.0]
["Heart-Rate Variability",16.0,9.0,6.0,15.0]
["Body Temperature",13.0,5.0,3.0,8.0]
["Waist",13.0,14.0,7.0,21.0]
["Alcohol",12.0,14.0,8.0,22.0]
["Caffeine",12.0,5.0,6.0,11.0]
["Energy (e.g. electricity use in the home)",12.0,4.0,8.0,12.0]
["Mood / Happiness",12.0,13.0,17.0,30.0]
["Spending & Purchases",11.0,24.0,12.0,36.0]
["Water Intake",11.0,3.0,5.0,8.0]
["Email",10.0,6.0,6.0,12.0]
["Reading",10.0,11.0,6.0,17.0]
["Sex",10.0,7.0,1.0,8.0]
["Income",9.0,21.0,8.0,29.0]
["Investments",9.0,13.0,6.0,19.0]
["Medication",9.0,7.0,1.0,8.0]
["Meditation",9.0,6.0,2.0,8.0]
["Perspiration",9.0,2.0,0.0,2.0]
["Productivity",9.0,10.0,8.0,18.0]
["Allergies",8.0,1.0,5.0,6.0]
["Creativity",8.0,0.0,1.0,1.0]
["Cycling",8.0,18.0,7.0,25.0]
["Energy",8.0,3.0,4.0,7.0]
["Exercise (not including Running, Walking or Cycling)",8.0,20.0,13.0,33.0]
["Intelligence (IQ, Brain-Training)",8.0,2.0,7.0,9.0]
["Internet Usage",8.0,3.0,4.0,7.0]
["Fasting",7.0,3.0,0.0,3.0]
["Location  / Position-logging / Altitude",7.0,15.0,7.0,22.0]
["Weight",7.0,49.0,18.0,67.0]
["Arterial Stiffness",6.0,0.0,2.0,2.0]
["Learning",6.0,6.0,7.0,13.0]
["Migraine",6.0,5.0,2.0,7.0]
["Music Consumption",6.0,7.0,1.0,8.0]
["Travel / Places Visited",6.0,12.0,6.0,18.0]
["TV viewing",6.0,5.0,0.0,5.0]
["Contacts / Network Connections / Email Analysis",5.0,6.0,2.0,8.0]
["Gym Workouts",5.0,12.0,15.0,27.0]
["People You Are With",5.0,2.0,1.0,3.0]
["Photographic / Film",5.0,2.0,1.0,3.0]
["Psychometrics  (Personality profiling, MBTI etc.)",5.0,2.0,13.0,15.0]
["Activity Log / Timekeeping",4.0,29.0,13.0,42.0]
["Hair",4.0,0.0,1.0,1.0]
["Left Right Leg Fat Difference",4.0,3.0,1.0,4.0]
["Other (please specify in text box that will appear if option selected)",4.0,3.0,0.0,3.0]
["Phenotypes (static physical traits e.g. eye colour, height, blood type)",4.0,2.0,1.0,3.0]
["Running",4.0,29.0,8.0,37.0]
["Social Media Usage (Facebook, Twitter, del.icio.us, Tumblr etc.)",4.0,7.0,0.0,7.0]
["Menstrual Cycle",3.0,9.0,5.0,14.0]
["Other (please specify in text box that will appear if option selected)",3.0,5.0,3.0,8.0]
["Steps / Walking",3.0,37.0,13.0,50.0]
["Other (please specify in text box that will appear if option selected)",1.0,2.0,1.0,3.0]
["Other (Please Specify)",1.0,0.0,0.0,0.0]
["Ovulation",1.0,4.0,1.0,5.0]
["Other (please specify in text box that will appear if option selected)",0.0,1.0,0.0,1.0]

{"sheet":"Personal Tool UseOwnership","index":5,"n_rows":515,"n_cols":5,"rows_kept":515,"cut":false,"hidden":false,"merged":[]}
["Tool Name","Number of Users (Out of 105 respondents)","Percentage",null,"This table shows the number of times a tool has been mentioned by different respondents"]
["Spreadsheet",43.0,{"$f":"B2/105","v":0.4095238095}]
["Pen & Paper",29.0,0.2761904762]
["Fitbit",21.0,0.2]
["MyFitnessPal",17.0,0.1619047619]
["Moves",15.0,0.1428571429]
["RunKeeper",14.0,0.1333333333]
["Withings Scales",14.0,0.1333333333]
["Goodreads",9.0,0.08571428571]
["RescueTime",9.0,0.08571428571]
["Strava",9.0,0.08571428571]
["Tape Measure",9.0,0.08571428571]
["Endomondo",8.0,0.07619047619]
["Foursquare",8.0,0.07619047619]
["Sleep Cycle",8.0,0.07619047619]
["Diary (pen and paper)",7.0,0.06666666667]
["Facebook",7.0,0.06666666667]
["Jawbone UP",7.0,0.06666666667]
["Weighing Scales",7.0,0.06666666667]
["Polar HRM",6.0,0.05714285714]
["Scale",6.0,0.05714285714]
["Evernote",5.0,0.04761904762]
["Fitbit Flex",5.0,0.04761904762]
["Garmin 610/910/810",5.0,0.04761904762]
["Google Calendar",5.0,0.04761904762]
["Last.fm",5.0,0.04761904762]
["Nike Fuelband",5.0,0.04761904762]
["Zeo",5.0,0.04761904762]
["Fitbit Aria",4.0,0.0380952381]
["Fitbit One",4.0,0.0380952381]
["Garmin Forerunner",4.0,0.0380952381]
["Google Latitude",4.0,0.0380952381]
["MapMyRun",4.0,0.0380952381]
["MBTI",4.0,0.0380952381]
["Moodscope",4.0,0.0380952381]
["Phone app",4.0,0.0380952381]
["Runtastic",4.0,0.0380952381]
["Sleep As Android",4.0,0.0380952381]
["Withings",4.0,0.0380952381]
["Calendar",3.0,0.02857142857]
["Fitocracy",3.0,0.02857142857]
["Gmail",3.0,0.02857142857]
["LinkedIn",3.0,0.02857142857]
["Lumosity",3.0,0.02857142857]
["Manually Tracking a Number",3.0,0.02857142857]
["Mappiness",3.0,0.02857142857]
["Measuring Tape",3.0,0.02857142857]
["Mint",3.0,0.02857142857]
["Misfit Shine",3.0,0.02857142857]
["Money Dash Board",3.0,0.02857142857]
["MoodPanda",3.0,0.02857142857]
["Nike+",3.0,0.02857142857]
["Omron Blood Pressure Monitor",3.0,0.02857142857]
["Online Banking UI",3.0,0.02857142857]
["Pedometer",3.0,0.02857142857]
["Taniata Scales",3.0,0.02857142857]
["Alertme",2.0,0.01904761905]
["Blood Glucose Meter",2.0,0.01904761905]
["Blood pressure monitor",2.0,0.01904761905]
["Callipers",2.0,0.01904761905]
["Duolingo",2.0,0.01904761905]
["Electronic scale Homedics/Salter",2.0,0.01904761905]
["Faviki",2.0,0.01904761905]
["Fitbrain",2.0,0.01904761905]
["Fitness Pal",2.0,0.01904761905]
["Garmin Connect website",2.0,0.01904761905]
["Garmin Edge 800",2.0,0.01904761905]
["Garmin Heart-Rate Monitor",2.0,0.01904761905]
["Getsomeheadspace app",2.0,0.01904761905]
["Google My Tracks",2.0,0.01904761905]
["GP",2.0,0.01904761905]
["Heart rate monitor app using smartphone flash",2.0,0.01904761905]
["IPhone",2.0,0.01904761905]
["Manual scale",2.0,0.01904761905]
["MapMyRide",2.0,0.01904761905]
["Mappiness app",2.0,0.01904761905]
["Mappiness iOS",2.0,0.01904761905]
["Microsoft Money",2.0,0.01904761905]
["Mobile Phone App",2.0,0.01904761905]
["MS Word",2.0,0.01904761905]
["Online Tests",2.0,0.01904761905]
["Pen and Pencil",2.0,0.01904761905]
["Photos",2.0,0.01904761905]
["Polar H7",2.0,0.01904761905]
["Polar Heart Rate Monitor",2.0,0.01904761905]
["Python scripts",2.0,0.01904761905]
["Quicken",2.0,0.01904761905]
["Sleep Time",2.0,0.01904761905]
["Sleepbot",2.0,0.01904761905]
["Spending App",2.0,0.01904761905]
["Strava web site",2.0,0.01904761905]
["Structured Text File",2.0,0.01904761905]
["Suunto Heart Rate Monitor",2.0,0.01904761905]
["Text file",2.0,0.01904761905]
["Thermometer",2.0,0.01904761905]
["TicTrac",2.0,0.01904761905]
["Twitter",2.0,0.01904761905]
["Untapp.d",2.0,0.01904761905]
["Wahoo",2.0,0.01904761905]
["Wahoo HRM",2.0,0.01904761905]
["Wattson power meter",2.0,0.01904761905]
["Weight",2.0,0.01904761905]
["Withings Pulse",2.0,0.01904761905]
["Wolfram Alpha Personal Analytics",2.0,0.01904761905]
["23andme",1.0,0.009523809524]
["A Doctor",1.0,0.009523809524]
["Account Tracker",1.0,0.009523809524]
["Accumeasure (Tape Measure)",1.0,0.009523809524]
["Activ8rlives",1.0,0.009523809524]
["Alarm app",1.0,0.009523809524]
["Alcodroid",1.0,0.009523809524]
["Amex breakdown",1.0,0.009523809524]
["Android daily activity tracker",1.0,0.009523809524]
["Anki",1.0,0.009523809524]
["Ankilearn",1.0,0.009523809524]
["ANT+",1.0,0.009523809524]
["App",1.0,0.009523809524]
["Argus",1.0,0.009523809524]
["Aria scales",1.0,0.009523809524]
["Ascii text file",1.0,0.009523809524]
["Azumio iphone app",1.0,0.009523809524]
["Backpacker app",1.0,0.009523809524]
["Bank Account Downloads",1.0,0.009523809524]
["Bank CSV Download",1.0,0.009523809524]
["Bank statement",1.0,0.009523809524]
["Basic digital scales",1.0,0.009523809524]
["Basic scale and fitnesspal",1.0,0.009523809524]
["Basis Wristband",1.0,0.009523809524]
["Basis Wristwatch",1.0,0.009523809524]
["Bayer with usb",1.0,0.009523809524]
["Beddit",1.0,0.009523809524]
["Beddit, Fitbit, Snorelab",1.0,0.009523809524]
["Beeminder",1.0,0.009523809524]
["Beeminder.com",1.0,0.009523809524]
["Belbin",1.0,0.009523809524]
["Blog",1.0,0.009523809524]
["Blood glucose testing kit",1.0,0.009523809524]
["Blood Ketones",1.0,0.009523809524]
["Bodpod",1.0,0.009523809524]
["Body fat measurement at Boots",1.0,0.009523809524]
["Body measurements",1.0,0.009523809524]
["Bodyfat scale",1.0,0.009523809524]
["BodyMedia FIT",1.0,0.009523809524]
["BP cuff",1.0,0.009523809524]
["Bp device",1.0,0.009523809524]
["Brain workshop (for n-back training)",1.0,0.009523809524]
["Brainworks",1.0,0.009523809524]
["Breathsync app",1.0,0.009523809524]
["Brewster",1.0,0.009523809524]
["British Gas 'Energy Smart' metering",1.0,0.009523809524]
["British Gas Smart Meter",1.0,0.009523809524]
["BT4 temp probes",1.0,0.009523809524]
["BUPA exercycle test",1.0,0.009523809524]
["Carb counting",1.0,0.009523809524]
["Carbodydrates looked up on google",1.0,0.009523809524]
["Cateye Strada cycling computer",1.0,0.009523809524]
["CBT questionaire",1.0,0.009523809524]
["Chrome productivity extension",1.0,0.009523809524]
["Chronos",1.0,0.009523809524]
["Clement Clarke Mini-Wright Peak Flow Meter",1.0,0.009523809524]
["Coinkeeper",1.0,0.009523809524]
["Collect receipts",1.0,0.009523809524]
["Concept 2 rowing monitor card",1.0,0.009523809524]
["Concept2 PM3 rowing computer",1.0,0.009523809524]
["Concept2 rower + log card",1.0,0.009523809524]
["Contactually",1.0,0.009523809524]
["CSV files",1.0,0.009523809524]
["CurrentCost energy monitor",1.0,0.009523809524]
["Custom made Android app",1.0,0.009523809524]
["Custom made app",1.0,0.009523809524]
["Cvs temple thermometer",1.0,0.009523809524]
["Cycle computer",1.0,0.009523809524]
["Dailyburn.com",1.0,0.009523809524]
["Dailymile",1.0,0.009523809524]
["Dayone",1.0,0.009523809524]
["Daytum",1.0,0.009523809524]
["Delicious",1.0,0.009523809524]
["Digital BP cuff",1.0,0.009523809524]
["Digital peak flow monitor",1.0,0.009523809524]
["Digital scale",1.0,0.009523809524]
["Digital scales",1.0,0.009523809524]
["Doris",1.0,0.009523809524]
["Dream diary",1.0,0.009523809524]
["DrinksTracker (NHS Choices iPHone app)",1.0,0.009523809524]
["ECG monitor (portable)",1.0,0.009523809524]
["EcoDrive, comes inbuilt with Fiats",1.0,0.009523809524]
["Electronic scales",1.0,0.009523809524]
["Electrophoresis",1.0,0.009523809524]
["EM wave 2",1.0,0.009523809524]
["Email Game",1.0,0.009523809524]
["Emotion Sense app",1.0,0.009523809524]
["Emwave2 device (plus desktop version)",1.0,0.009523809524]
["Enobio",1.0,0.009523809524]
["EON analyzer",1.0,0.009523809524]
["Equanimity",1.0,0.009523809524]
["Eternity",1.0,0.009523809524]
["Exercycle",1.0,0.009523809524]
["Expereal app",1.0,0.009523809524]
["Finance diary",1.0,0.009523809524]
["Financisto android app",1.0,0.009523809524]
["Firstbeat",1.0,0.009523809524]
["Fitbit dashboard",1.0,0.009523809524]
["Fitbit scale",1.0,0.009523809524]
["Fitbit ultra",1.0,0.009523809524]
["Fitbit, Moves",1.0,0.009523809524]
["Fitbits for comparison",1.0,0.009523809524]
["Fitfiit",1.0,0.009523809524]
["Fitness app",1.0,0.009523809524]
["Fitness test by expert",1.0,0.009523809524]
["Fizztrain web site",1.0,0.009523809524]
["Flickr",1.0,0.009523809524]
["Fog of the World app",1.0,0.009523809524]
["Food",1.0,0.009523809524]
["Food Tracker",1.0,0.009523809524]
["Fooducate",1.0,0.009523809524]
["FT portfolio",1.0,0.009523809524]
["Full fitness",1.0,0.009523809524]
["Galvanic Skin Response (own)",1.0,0.009523809524]
["Garmin (for long bike rides)",1.0,0.009523809524]
["Garmin Footpod",1.0,0.009523809524]
["Garmin head unit + ANT HRM",1.0,0.009523809524]
["Garmin online software",1.0,0.009523809524]
["Garmin Oregon 450",1.0,0.009523809524]
["Garmin Vector",1.0,0.009523809524]
["Garmin xt",1.0,0.009523809524]
["Generic Arm Band Blood Pressure Monitor",1.0,0.009523809524]
["Ginger.io",1.0,0.009523809524]
["Gnotime",1.0,0.009523809524]
["GolfSense",1.0,0.009523809524]
["Golfshot GPS",1.0,0.009523809524]
["Google documents",1.0,0.009523809524]
["Google Earth for distance; now dropped",1.0,0.009523809524]
["Google fusion table",1.0,0.009523809524]
["Google Keep",1.0,0.009523809524]
["Google Location History",1.0,0.009523809524]
["Google mail plugin",1.0,0.009523809524]
["Google maps",1.0,0.009523809524]
["Google+ Photos",1.0,0.009523809524]
["GottaFeeling app",1.0,0.009523809524]
["GPS mapping",1.0,0.009523809524]
["GPSBabel",1.0,0.009523809524]
["GPSVisualizer",1.0,0.009523809524]
["Gym equipment",1.0,0.009523809524]
["Handheld GPS units",1.0,0.009523809524]
["Happiness iPhone app",1.0,0.009523809524]
["Hargreaves Landsdown Portfolio Manager",1.0,0.009523809524]
["Heart rate app",1.0,0.009523809524]
["HeartMath em wave desktop",1.0,0.009523809524]
["HeartMath inner balance app",1.0,0.009523809524]
["HomeBudget app",1.0,0.009523809524]
["Homemade paper-based colour grid",1.0,0.009523809524]
["HRM",1.0,0.009523809524]
["Http://cognitivefun.net/",1.0,0.009523809524]
["Http://Intelligencetest.com",1.0,0.009523809524]
["Http://www.good.co/",1.0,0.009523809524]
["Http://www.omnifolio.org",1.0,0.009523809524]
["Http://www.personal.psu.edu/j5j/IPIP/",1.0,0.009523809524]
["Https://sapa-project.org/",1.0,0.009523809524]
["Hydration",1.0,0.009523809524]
["Hyperthermia times (abandoned)",1.0,0.009523809524]
["IBG Star",1.0,0.009523809524]
["IBG Star Blood Glucose App",1.0,0.009523809524]
["ICardio linked with Zephyr",1.0,0.009523809524]
["Ihealth and Iphone",1.0,0.009523809524]
["Imdb",1.0,0.009523809524]
["Immersion",1.0,0.009523809524]
["In person tests",1.0,0.009523809524]
["Indirect measure via hr performance and body metrics",1.0,0.009523809524]
["InFlow",1.0,0.009523809524]
["Instagram via Statigram",1.0,0.009523809524]
["Instant heart rate app",1.0,0.009523809524]
["Investment account statements",1.0,0.009523809524]
["Ios 7 sleep time free app",1.0,0.009523809524]
["Ios7 calendar",1.0,0.009523809524]
["Ipad",1.0,0.009523809524]
["Iphone app to track",1.0,0.009523809524]
["IPhone Budgeting Apps",1.0,0.009523809524]
["IPhone Calendar",1.0,0.009523809524]
["IPhone heart rate app",1.0,0.009523809524]
["Iphone location data",1.0,0.009523809524]
["Iphone notes",1.0,0.009523809524]
["IPhone sleep tracker app",1.0,0.009523809524]
["IRunner",1.0,0.009523809524]
["Ithlete ecg receiver",1.0,0.009523809524]
["Ithlete heart rate monitor",1.0,0.009523809524]
["Ithlete HRV",1.0,0.009523809524]
["Ithlete hrv ios app",1.0,0.009523809524]
["Ithlete Precision Pulse app",1.0,0.009523809524]
["Ithlete pulse meter on ipod w bluetooth strap",1.0,0.009523809524]
["Jawbone up for comparison",1.0,0.009523809524]
["Jawbone Up! & Fitness Pal",1.0,0.009523809524]
["Jefit.com",1.0,0.009523809524]
["Journaling",1.0,0.009523809524]
["Journeying or not",1.0,0.009523809524]
["Kept daily on spreadsheet",1.0,0.009523809524]
["Ki Performance BodPod",1.0,0.009523809524]
["KiFit",1.0,0.009523809524]
["Klout",1.0,0.009523809524]
["Lancet + digital reader",1.0,0.009523809524]
["Lancet + paper strip",1.0,0.009523809524]
["Last.fm audioscrobbler",1.0,0.009523809524]
["Librarything.com",1.0,0.009523809524]
["LifeLogger",1.0,0.009523809524]
["LifeSlice",1.0,0.009523809524]
["Lifesum",1.0,0.009523809524]
["Lift (app)",1.0,0.009523809524]
["Lloyds Pharmacy scale",1.0,0.009523809524]
["Lovemoney.com tracker",1.0,0.009523809524]
["Lumen Trails",1.0,0.009523809524]
["Luminosity",1.0,0.009523809524]
["Lux meters",1.0,0.009523809524]
["Manual meter reading",1.0,0.009523809524]
["Manual processing",1.0,0.009523809524]
["Manual Workout Log",1.0,0.009523809524]
["Map my tracks",1.0,0.009523809524]
["MapMyFitness",1.0,0.009523809524]
["MapMyWalk",1.0,0.009523809524]
["McQuag",1.0,0.009523809524]
["Mechanical scales",1.0,0.009523809524]
["Medical IQ tests",1.0,0.009523809524]
["Meditation app",1.0,0.009523809524]
["Meditation helper pro (Android)",1.0,0.009523809524]
["MeditationsAppen",1.0,0.009523809524]
["Memrise",1.0,0.009523809524]
["Menstrual Calendar Premium for Android",1.0,0.009523809524]
["Menstrual Cycle",1.0,0.009523809524]
["Meter readings",1.0,0.009523809524]
["Meters",1.0,0.009523809524]
["Micoach",1.0,0.009523809524]
["Microsoft Outlook",1.0,0.009523809524]
["Mind Snacks",1.0,0.009523809524]
["MIT Elite Plus",1.0,0.009523809524]
["MLSS Test",1.0,0.009523809524]
["Mobile app",1.0,0.009523809524]
["Mobile notepad",1.0,0.009523809524]
["Moneywiz",1.0,0.009523809524]
["Mood Agent for Android",1.0,0.009523809524]
["MotionX-GPS iPhone app",1.0,0.009523809524]
["My blog",1.0,0.009523809524]
["My Fat Secret",1.0,0.009523809524]
["My fingers",1.0,0.009523809524]
["My ithlete with bluetooth strap",1.0,0.009523809524]
["My memory",1.0,0.009523809524]
["My NetDiary",1.0,0.009523809524]
["My normal paper-pased diary",1.0,0.009523809524]
["My own 'face-matching' scales",1.0,0.009523809524]
["Mysql database",1.0,0.009523809524]
["NeuroSky MindWave",1.0,0.009523809524]
["NHS drinks tracker",1.0,0.009523809524]
["NHS Sleep monitoring machine",1.0,0.009523809524]
["Nike+ Running app",1.0,0.009523809524]
["Nintendo brain training game",1.0,0.009523809524]
["Nintendo Wii with their WiiActive thing",1.0,0.009523809524]
["No tools",1.0,0.009523809524]
["Noom",1.0,0.009523809524]
["Noom Android App",1.0,0.009523809524]
["Noom walk",1.0,0.009523809524]
["Normal bp auto device",1.0,0.009523809524]
["Normal scales",1.0,0.009523809524]
["Noting call / email / meeting etc",1.0,0.009523809524]
["Nutmeg",1.0,0.009523809524]
["Observation on clothes",1.0,0.009523809524]
["OhLife",1.0,0.009523809524]
["Omie",1.0,0.009523809524]
["Omron",1.0,0.009523809524]
["Omron mx2",1.0,0.009523809524]
["Omron pedometer",1.0,0.009523809524]
["Omron Scales with bodyfat estimation",1.0,0.009523809524]
["On track",1.0,0.009523809524]
["On track - diabetes tracking app",1.0,0.009523809524]
["One-Touch Ultra 2",1.0,0.009523809524]
["Online Bank App",1.0,0.009523809524]
["Online Big Five Personality Test",1.0,0.009523809524]
["On-line log",1.0,0.009523809524]
["Open Source Brain-Computer Interface",1.0,0.009523809524]
["OpenPaths iOS app",1.0,0.009523809524]
["Orthotic professional",1.0,0.009523809524]
["OS maps",1.0,0.009523809524]
["Other online programmes",1.0,0.009523809524]
["Outlook",1.0,0.009523809524]
["Outlook export",1.0,0.009523809524]
["OWL energy monitor",1.0,0.009523809524]
["Own website",1.0,0.009523809524]
["Oxygination",1.0,0.009523809524]
["P tracker",1.0,0.009523809524]
["Paco",1.0,0.009523809524]
["Paper",1.0,0.009523809524]
["Pebble",1.0,0.009523809524]
["Period tracker app",1.0,0.009523809524]
["Personal Coach",1.0,0.009523809524]
["Pert of counting Carbohydrates",1.0,0.009523809524]
["Photograph meters. gas, elec, water.",1.0,0.009523809524]
["Photographs",1.0,0.009523809524]
["Photography",1.0,0.009523809524]
["Plusnet monitor",1.0,0.009523809524]
["Polar H6 + Sweatbeat iPhone app",1.0,0.009523809524]
["Polar watch",1.0,0.009523809524]
["Price comparison sites",1.0,0.009523809524]
["Private blood test",1.0,0.009523809524]
["Private clinics",1.0,0.009523809524]
["Prorietary Program",1.0,0.009523809524]
["PureLifeStyle app",1.0,0.009523809524]
["Puzzles",1.0,0.009523809524]
["Python Code",1.0,0.009523809524]
["Qlikview",1.0,0.009523809524]
["Qstarz BT-Q1000 GPS travel recorder",1.0,0.009523809524]
["Qualitative data",1.0,0.009523809524]
["Qualitative record 1-10",1.0,0.009523809524]
["Quantified-mind.com",1.0,0.009523809524]
["Questionaires",1.0,0.009523809524]
["Reading",1.0,0.009523809524]
["Readout aloud Lords Prayer",1.0,0.009523809524]
["Reciepts",1.0,0.009523809524]
["Regular scale",1.0,0.009523809524]
["Regular scale and mobile phone calendar",1.0,0.009523809524]
["Remember the milk",1.0,0.009523809524]
["Rescuetime free account to monitor computer usage",1.0,0.009523809524]
["Resistance training",1.0,0.009523809524]
["Resoph Notes",1.0,0.009523809524]
["Reverse analysis from fitbit or jawbone",1.0,0.009523809524]
["Rowing 2000m time trial",1.0,0.009523809524]
["Runtastic Heart Rate",1.0,0.009523809524]
["Schemer.com",1.0,0.009523809524]
["Scrobbler.fm",1.0,0.009523809524]
["Self assessment questionaire",1.0,0.009523809524]
["Self track",1.0,0.009523809524]
["Selfmade tool to draw art while asleep",1.0,0.009523809524]
["Self-reported scale 1-10",1.0,0.009523809524]
["Self-written program",1.0,0.009523809524]
["Shine by Misfits",1.0,0.009523809524]
["Single expert assessment",1.0,0.009523809524]
["Skin fold calipers",1.0,0.009523809524]
["Sleave cuff",1.0,0.009523809524]
["Sleep Talk",1.0,0.009523809524]
["Sleeptime app",1.0,0.009523809524]
["Small Wrist Device",1.0,0.009523809524]
["Smart phone app (SHealth)",1.0,0.009523809524]
["Smiling Mind",1.0,0.009523809524]
["SMS notifications",1.0,0.009523809524]
["Snorelab",1.0,0.009523809524]
["Soehnle BBS Comfort 5",1.0,0.009523809524]
["Soehnle FS Comfort 5",1.0,0.009523809524]
["Software",1.0,0.009523809524]
["Songkick",1.0,0.009523809524]
["Specialised Blood Pressure Meter",1.0,0.009523809524]
["SPO2 monitor",1.0,0.009523809524]
["SportsTracker",1.0,0.009523809524]
["SPSS",1.0,0.009523809524]
["Statistica",1.0,0.009523809524]
["Step on scales and Tactio health App",1.0,0.009523809524]
["Stop watch",1.0,0.009523809524]
["StressCheck",1.0,0.009523809524]
["Stronger (RunKeeper App)",1.0,0.009523809524]
["Subjective feeling",1.0,0.009523809524]
["Sudoku",1.0,0.009523809524]
["Suunto HRM watch",1.0,0.009523809524]
["Suunto M4 watch",1.0,0.009523809524]
["Suunto M4 watch / heartband",1.0,0.009523809524]
["Suunto Movescount web site",1.0,0.009523809524]
["Suunto T6",1.0,0.009523809524]
["SVT Accounts App",1.0,0.009523809524]
["Sweetbeat",1.0,0.009523809524]
["Swimming Garmin 910",1.0,0.009523809524]
["Tableau Desktop software",1.0,0.009523809524]
["Tacx Training Software",1.0,0.009523809524]
["Tanita InnerScan Body Composition Monitor",1.0,0.009523809524]
["Tanita Scales BC545",1.0,0.009523809524]
["Tape",1.0,0.009523809524]
["TapLog Android App",1.0,0.009523809524]
["TaskCoach",1.0,0.009523809524]
["Text document",1.0,0.009523809524]
["The same mobile app for tracking menstrual cycle",1.0,0.009523809524]
["Timex HRM watch",1.0,0.009523809524]
["Timing",1.0,0.009523809524]
["Tinderbox",1.0,0.009523809524]
["Tip sheet",1.0,0.009523809524]
["Travel",1.0,0.009523809524]
["Tripit",1.0,0.009523809524]
["True Weight iOS app",1.0,0.009523809524]
["Twittercounter and Tweetstats",1.0,0.009523809524]
["Ubiqi app",1.0,0.009523809524]
["Ubiqlog",1.0,0.009523809524]
["Uptime",1.0,0.009523809524]
["Various apps",1.0,0.009523809524]
["Vo2max formula",1.0,0.009523809524]
["Vo2max tests with kettlebells",1.0,0.009523809524]
["Voice analysis (own)",1.0,0.009523809524]
["W-2",1.0,0.009523809524]
["Walkmeter",1.0,0.009523809524]
["Walkmeter on iPhone",1.0,0.009523809524]
["Wallet",1.0,0.009523809524]
["Weather",1.0,0.009523809524]
["Website",1.0,0.009523809524]
["Weekly review",1.0,0.009523809524]
["Weights machines",1.0,0.009523809524]
["Weight-watchers electro scales",1.0,0.009523809524]
["Well Man via Nuffield",1.0,0.009523809524]
["Wellman - Nuffield",1.0,0.009523809524]
["Wellness FX",1.0,0.009523809524]
["Whiteboard",1.0,0.009523809524]
["Wii fit",1.0,0.009523809524]
["Wii scale",1.0,0.009523809524]
["Wiki page",1.0,0.009523809524]
["Wild-Divine lightstone",1.0,0.009523809524]
["Withings Blood Pressure Monitor",1.0,0.009523809524]
["Withings ipad cuff",1.0,0.009523809524]
["Withings, Fatwatch",1.0,0.009523809524]
["Withings, Polar band",1.0,0.009523809524]
["Workflowy",1.0,0.009523809524]
["Wunderlist",1.0,0.009523809524]
["Your Flowing Data Twitter app",1.0,0.009523809524]
["Zenobase.com",1.0,0.009523809524]
["Zephyr HxM",1.0,0.009523809524]
["Zoopla",1.0,0.009523809524]
["Zypher",1.0,0.009523809524]

{"sheet":"Total Tool Use","index":6,"n_rows":515,"n_cols":5,"rows_kept":515,"cut":false,"hidden":false,"merged":[]}
["Tool Name","Frequency of Use/Mentions","Percentage","Total sum","This table shows the number of times a tool has been mentioned overall (totals could therefore contain double-counting if used by an individual to track/collect/analyse more than one data type)"]
["Spreadsheet",179.0,{"$f":"B2/$D$2","v":0.1232782369},{"$f":"sum(B2:B515)","v":1452}]
["Pen & Paper",78.0,0.05371900826]
["Fitbit",50.0,0.03443526171]
["Moves",33.0,0.02272727273]
["MyFitnessPal",32.0,0.02203856749]
["Diary (pen and paper)",23.0,0.01584022039]
["Withings Scales",22.0,0.01515151515]
["Jawbone UP",21.0,0.01446280992]
["RunKeeper",21.0,0.01446280992]
["RescueTime",19.0,0.01308539945]
["Endomondo",16.0,0.01101928375]
["Structured Text File",13.0,0.008953168044]
["Foursquare",12.0,0.00826446281]
["Garmin 610/910/810",12.0,0.00826446281]
["Statistica",12.0,0.00826446281]
["Google Calendar",11.0,0.007575757576]
["Polar HRM",11.0,0.007575757576]
["Strava",11.0,0.007575757576]
["Tape Measure",11.0,0.007575757576]
["Withings",10.0,0.006887052342]
["Facebook",9.0,0.006198347107]
["Goodreads",9.0,0.006198347107]
["Scale",9.0,0.006198347107]
["Evernote",8.0,0.005509641873]
["Fitbit Flex",8.0,0.005509641873]
["Fitbit One",8.0,0.005509641873]
["Nike Fuelband",8.0,0.005509641873]
["Runtastic",8.0,0.005509641873]
["Sleep Cycle",8.0,0.005509641873]
["Weighing Scales",8.0,0.005509641873]
["Fitocracy",7.0,0.004820936639]
["Garmin Forerunner",7.0,0.004820936639]
["GP",7.0,0.004820936639]
["PureLifeStyle app",7.0,0.004820936639]
["Zeo",7.0,0.004820936639]
["Activ8rlives",6.0,0.004132231405]
["Fitbit Aria",6.0,0.004132231405]
["Google My Tracks",6.0,0.004132231405]
["Misfit Shine",6.0,0.004132231405]
["Online Banking UI",6.0,0.004132231405]
["Fitness Pal",5.0,0.003443526171]
["Google Latitude",5.0,0.003443526171]
["Last.fm",5.0,0.003443526171]
["Menstrual Calendar Premium for Android",5.0,0.003443526171]
["Microsoft Money",5.0,0.003443526171]
["Omron Blood Pressure Monitor",5.0,0.003443526171]
["Phone app",5.0,0.003443526171]
["Suunto Heart Rate Monitor",5.0,0.003443526171]
["Taniata Scales",5.0,0.003443526171]
["TicTrac",5.0,0.003443526171]
["Withings Pulse",5.0,0.003443526171]
["Garmin Connect website",4.0,0.002754820937]
["Garmin Edge 800",4.0,0.002754820937]
["Manually Tracking a Number",4.0,0.002754820937]
["MapMyRun",4.0,0.002754820937]
["MBTI",4.0,0.002754820937]
["Money Dash Board",4.0,0.002754820937]
["Moodscope",4.0,0.002754820937]
["My Fat Secret",4.0,0.002754820937]
["My NetDiary",4.0,0.002754820937]
["Nike+",4.0,0.002754820937]
["Noom",4.0,0.002754820937]
["Pen and Pencil",4.0,0.002754820937]
["Polar Heart Rate Monitor",4.0,0.002754820937]
["Quicken",4.0,0.002754820937]
["Sleep As Android",4.0,0.002754820937]
["Spending App",4.0,0.002754820937]
["Strava web site",4.0,0.002754820937]
["Wahoo HRM",4.0,0.002754820937]
["Account Tracker",3.0,0.002066115702]
["Basis Wristwatch",3.0,0.002066115702]
["Calendar",3.0,0.002066115702]
["Chronos",3.0,0.002066115702]
["Custom made Android app",3.0,0.002066115702]
["Dailyburn.com",3.0,0.002066115702]
["Electronic scale Homedics/Salter",3.0,0.002066115702]
["Gmail",3.0,0.002066115702]
["IBG Star",3.0,0.002066115702]
["KiFit",3.0,0.002066115702]
["LinkedIn",3.0,0.002066115702]
["Lumosity",3.0,0.002066115702]
["MapMyFitness",3.0,0.002066115702]
["MapMyWalk",3.0,0.002066115702]
["Mappiness",3.0,0.002066115702]
["Measuring Tape",3.0,0.002066115702]
["Menstrual Cycle",3.0,0.002066115702]
["Mint",3.0,0.002066115702]
["Mobile app",3.0,0.002066115702]
["MoodPanda",3.0,0.002066115702]
["MS Word",3.0,0.002066115702]
["Mysql database",3.0,0.002066115702]
["P tracker",3.0,0.002066115702]
["Pedometer",3.0,0.002066115702]
["Polar H7",3.0,0.002066115702]
["SportsTracker",3.0,0.002066115702]
["Tanita InnerScan Body Composition Monitor",3.0,0.002066115702]
["Text file",3.0,0.002066115702]
["Wahoo",3.0,0.002066115702]
["Walkmeter on iPhone",3.0,0.002066115702]
["Alertme",2.0,0.001377410468]
["Beeminder.com",2.0,0.001377410468]
["Blood Glucose Meter",2.0,0.001377410468]
["Blood pressure monitor",2.0,0.001377410468]
["Callipers",2.0,0.001377410468]
["Daytum",2.0,0.001377410468]
["Doris",2.0,0.001377410468]
["Duolingo",2.0,0.001377410468]
["Emotion Sense app",2.0,0.001377410468]
["Eternity",2.0,0.001377410468]
["Faviki",2.0,0.001377410468]
["Financisto android app",2.0,0.001377410468]
["Fitbit dashboard",2.0,0.001377410468]
["Fitbit scale",2.0,0.001377410468]
["Fitbrain",2.0,0.001377410468]
["Garmin Heart-Rate Monitor",2.0,0.001377410468]
["Generic Arm Band Blood Pressure Monitor",2.0,0.001377410468]
["Getsomeheadspace app",2.0,0.001377410468]
["Heart rate monitor app using smartphone flash",2.0,0.001377410468]
["IPhone",2.0,0.001377410468]
["Ithlete ecg receiver",2.0,0.001377410468]
["Ithlete HRV",2.0,0.001377410468]
["Ithlete Precision Pulse app",2.0,0.001377410468]
["Jefit.com",2.0,0.001377410468]
["Journaling",2.0,0.001377410468]
["Manual scale",2.0,0.001377410468]
["Manual Workout Log",2.0,0.001377410468]
["Map my tracks",2.0,0.001377410468]
["MapMyRide",2.0,0.001377410468]
["Mappiness app",2.0,0.001377410468]
["Mappiness iOS",2.0,0.001377410468]
["Micoach",2.0,0.001377410468]
["MIT Elite Plus",2.0,0.001377410468]
["Mobile Phone App",2.0,0.001377410468]
["Moneywiz",2.0,0.001377410468]
["MotionX-GPS iPhone app",2.0,0.001377410468]
["Omie",2.0,0.001377410468]
["On track",2.0,0.001377410468]
["Online Bank App",2.0,0.001377410468]
["Online Tests",2.0,0.001377410468]
["Paco",2.0,0.001377410468]
["Photographs",2.0,0.001377410468]
["Photos",2.0,0.001377410468]
["Python Code",2.0,0.001377410468]
["Python scripts",2.0,0.001377410468]
["Resoph Notes",2.0,0.001377410468]
["sapa-project.org/",2.0,0.001377410468]
["Self-reported scale 1-10",2.0,0.001377410468]
["Self-written program",2.0,0.001377410468]
["Shine by Misfits",2.0,0.001377410468]
["Sleep Time",2.0,0.001377410468]
["Sleepbot",2.0,0.001377410468]
["SMS notifications",2.0,0.001377410468]
["Specialised Blood Pressure Meter",2.0,0.001377410468]
["Stop watch",2.0,0.001377410468]
["Stronger (RunKeeper App)",2.0,0.001377410468]
["Suunto Movescount web site",2.0,0.001377410468]
["SVT Accounts App",2.0,0.001377410468]
["Tanita Scales BC545",2.0,0.001377410468]
["TapLog Android App",2.0,0.001377410468]
["Thermometer",2.0,0.001377410468]
["Twitter",2.0,0.001377410468]
["Untapp.d",2.0,0.001377410468]
["Various apps",2.0,0.001377410468]
["Wattson power meter",2.0,0.001377410468]
["Weight",2.0,0.001377410468]
["Weight-watchers electro scales",2.0,0.001377410468]
["Wellman - Nuffield",2.0,0.001377410468]
["Wellness FX",2.0,0.001377410468]
["Whiteboard",2.0,0.001377410468]
["Withings Blood Pressure Monitor",2.0,0.001377410468]
["Wolfram Alpha Personal Analytics",2.0,0.001377410468]
["Wunderlist",2.0,0.001377410468]
["Your Flowing Data Twitter app",2.0,0.001377410468]
["Zephyr HxM",2.0,0.001377410468]
["23andme",1.0,0.0006887052342]
["A Doctor",1.0,0.0006887052342]
["Accumeasure (Tape Measure)",1.0,0.0006887052342]
["Alarm app",1.0,0.0006887052342]
["Alcodroid",1.0,0.0006887052342]
["Amex breakdown",1.0,0.0006887052342]
["Android daily activity tracker",1.0,0.0006887052342]
["Anki",1.0,0.0006887052342]
["Ankilearn",1.0,0.0006887052342]
["ANT+",1.0,0.0006887052342]
["App",1.0,0.0006887052342]
["Argus",1.0,0.0006887052342]
["Aria scales",1.0,0.0006887052342]
["Ascii text file",1.0,0.0006887052342]
["Azumio iphone app",1.0,0.0006887052342]
["Backpacker app",1.0,0.0006887052342]
["Bank Account Downloads",1.0,0.0006887052342]
["Bank CSV Download",1.0,0.0006887052342]
["Bank statement",1.0,0.0006887052342]
["Basic digital scales",1.0,0.0006887052342]
["Basic scale and fitnesspal",1.0,0.0006887052342]
["Basis Wristband",1.0,0.0006887052342]
["Bayer with usb",1.0,0.0006887052342]
["Beddit",1.0,0.0006887052342]
["Beddit, Fitbit, Snorelab",1.0,0.0006887052342]
["Beeminder",1.0,0.0006887052342]
["Belbin",1.0,0.0006887052342]
["Blog",1.0,0.0006887052342]
["Blood glucose testing kit",1.0,0.0006887052342]
["Blood Ketones",1.0,0.0006887052342]
["Bodpod",1.0,0.0006887052342]
["Body fat measurement at Boots",1.0,0.0006887052342]
["Body measurements",1.0,0.0006887052342]
["Bodyfat scale",1.0,0.0006887052342]
["BodyMedia FIT",1.0,0.0006887052342]
["BP cuff",1.0,0.0006887052342]
["Bp device",1.0,0.0006887052342]
["Brain workshop (for n-back training)",1.0,0.0006887052342]
["Brainworks",1.0,0.0006887052342]
["Breathsync app",1.0,0.0006887052342]
["Brewster",1.0,0.0006887052342]
["British Gas 'Energy Smart' metering",1.0,0.0006887052342]
["British Gas Smart Meter",1.0,0.0006887052342]
["BT4 temp probes",1.0,0.0006887052342]
["BUPA exercycle test",1.0,0.0006887052342]
["Carb counting",1.0,0.0006887052342]
["Carbodydrates looked up on google",1.0,0.0006887052342]
["Cateye Strada cycling computer",1.0,0.0006887052342]
["CBT questionaire",1.0,0.0006887052342]
["Chrome productivity extension",1.0,0.0006887052342]
["Clement Clarke Mini-Wright Peak Flow Meter",1.0,0.0006887052342]
["cognitivefun.net/",1.0,0.0006887052342]
["Coinkeeper",1.0,0.0006887052342]
["Collect receipts",1.0,0.0006887052342]
["Concept 2 rowing monitor card",1.0,0.0006887052342]
["Concept2 PM3 rowing computer",1.0,0.0006887052342]
["Concept2 rower + log card",1.0,0.0006887052342]
["Contactually",1.0,0.0006887052342]
["CSV files",1.0,0.0006887052342]
["CurrentCost energy monitor",1.0,0.0006887052342]
["Custom made app",1.0,0.0006887052342]
["Cvs temple thermometer",1.0,0.0006887052342]
["Cycle computer",1.0,0.0006887052342]
["Dailymile",1.0,0.0006887052342]
["Dayone",1.0,0.0006887052342]
["Delicious",1.0,0.0006887052342]
["Digital BP cuff",1.0,0.0006887052342]
["Digital peak flow monitor",1.0,0.0006887052342]
["Digital scale",1.0,0.0006887052342]
["Digital scales",1.0,0.0006887052342]
["Dream diary",1.0,0.0006887052342]
["DrinksTracker (NHS Choices iPHone app)",1.0,0.0006887052342]
["ECG monitor (portable)",1.0,0.0006887052342]
["EcoDrive, comes inbuilt with Fiats",1.0,0.0006887052342]
["Electronic scales",1.0,0.0006887052342]
["Electrophoresis",1.0,0.0006887052342]
["EM wave 2",1.0,0.0006887052342]
["Email Game",1.0,0.0006887052342]
["Emwave2 device (plus desktop version)",1.0,0.0006887052342]
["Enobio",1.0,0.0006887052342]
["EON analyzer",1.0,0.0006887052342]
["Equanimity",1.0,0.0006887052342]
["Exercycle",1.0,0.0006887052342]
["Expereal app",1.0,0.0006887052342]
["Finance diary",1.0,0.0006887052342]
["Firstbeat",1.0,0.0006887052342]
["Fitbit ultra",1.0,0.0006887052342]
["Fitbit, Moves",1.0,0.0006887052342]
["Fitbits for comparison",1.0,0.0006887052342]
["Fitfiit",1.0,0.0006887052342]
["Fitness app",1.0,0.0006887052342]
["Fitness test by expert",1.0,0.0006887052342]
["Fizztrain web site",1.0,0.0006887052342]
["Flickr",1.0,0.0006887052342]
["Fog of the World app",1.0,0.0006887052342]
["Food",1.0,0.0006887052342]
["Food Tracker",1.0,0.0006887052342]
["Fooducate",1.0,0.0006887052342]
["FT portfolio",1.0,0.0006887052342]
["Full fitness",1.0,0.0006887052342]
["Galvanic Skin Response (own)",1.0,0.0006887052342]
["Garmin (for long bike rides)",1.0,0.0006887052342]
["Garmin Footpod",1.0,0.0006887052342]
["Garmin head unit + ANT HRM",1.0,0.0006887052342]
["Garmin online software",1.0,0.0006887052342]
["Garmin Oregon 450",1.0,0.0006887052342]
["Garmin Vector",1.0,0.0006887052342]
["Garmin xt",1.0,0.0006887052342]
["Ginger.io",1.0,0.0006887052342]
["Gnotime",1.0,0.0006887052342]
["GolfSense",1.0,0.0006887052342]
["Golfshot GPS",1.0,0.0006887052342]
["Google documents",1.0,0.0006887052342]
["Google Earth for distance; now dropped",1.0,0.0006887052342]
["Google fusion table",1.0,0.0006887052342]
["Google Keep",1.0,0.0006887052342]
["Google Location History",1.0,0.0006887052342]
["Google mail plugin",1.0,0.0006887052342]
["Google maps",1.0,0.0006887052342]
["Google+ Photos",1.0,0.0006887052342]
["GottaFeeling app",1.0,0.0006887052342]
["GPS mapping",1.0,0.0006887052342]
["GPSBabel",1.0,0.0006887052342]
["GPSVisualizer",1.0,0.0006887052342]
["Gym equipment",1.0,0.0006887052342]
["Handheld GPS units",1.0,0.0006887052342]
["Happiness iPhone app",1.0,0.0006887052342]
["Hargreaves Landsdown Portfolio Manager",1.0,0.0006887052342]
["Heart rate app",1.0,0.0006887052342]
["HeartMath em wave desktop",1.0,0.0006887052342]
["HeartMath inner balance app",1.0,0.0006887052342]
["HomeBudget app",1.0,0.0006887052342]
["Homemade paper-based colour grid",1.0,0.0006887052342]
["HRM",1.0,0.0006887052342]
["Hydration",1.0,0.0006887052342]
["Hyperthermia times (abandoned)",1.0,0.0006887052342]
["IBG Star Blood Glucose App",1.0,0.0006887052342]
["ICardio linked with Zephyr",1.0,0.0006887052342]
["Ihealth and Iphone",1.0,0.0006887052342]
["Imdb",1.0,0.0006887052342]
["Immersion",1.0,0.0006887052342]
["In person tests",1.0,0.0006887052342]
["Indirect measure via hr performance and body metrics",1.0,0.0006887052342]
["InFlow",1.0,0.0006887052342]
["Instagram via Statigram",1.0,0.0006887052342]
["Instant heart rate app",1.0,0.0006887052342]
["Intelligencetest.com",1.0,0.0006887052342]
["Investment account statements",1.0,0.0006887052342]
["Ios 7 sleep time free app",1.0,0.0006887052342]
["Ios7 calendar",1.0,0.0006887052342]
["Ipad",1.0,0.0006887052342]
["Iphone app to track",1.0,0.0006887052342]
["IPhone Budgeting Apps",1.0,0.0006887052342]
["IPhone Calendar",1.0,0.0006887052342]
["IPhone heart rate app",1.0,0.0006887052342]
["Iphone location data",1.0,0.0006887052342]
["Iphone notes",1.0,0.0006887052342]
["IPhone sleep tracker app",1.0,0.0006887052342]
["IRunner",1.0,0.0006887052342]
["Ithlete heart rate monitor",1.0,0.0006887052342]
["Ithlete hrv ios app",1.0,0.0006887052342]
["Ithlete pulse meter on ipod w bluetooth strap",1.0,0.0006887052342]
["Jawbone up for comparison",1.0,0.0006887052342]
["Jawbone Up! & Fitness Pal",1.0,0.0006887052342]
["Journeying or not",1.0,0.0006887052342]
["Kept daily on spreadsheet",1.0,0.0006887052342]
["Ki Performance BodPod",1.0,0.0006887052342]
["Klout",1.0,0.0006887052342]
["Lancet + digital reader",1.0,0.0006887052342]
["Lancet + paper strip",1.0,0.0006887052342]
["Last.fm audioscrobbler",1.0,0.0006887052342]
["Librarything.com",1.0,0.0006887052342]
["LifeLogger",1.0,0.0006887052342]
["LifeSlice",1.0,0.0006887052342]
["Lifesum",1.0,0.0006887052342]
["Lift (app)",1.0,0.0006887052342]
["Lloyds Pharmacy scale",1.0,0.0006887052342]
["Lovemoney.com tracker",1.0,0.0006887052342]
["Lumen Trails",1.0,0.0006887052342]
["Luminosity",1.0,0.0006887052342]
["Lux meters",1.0,0.0006887052342]
["Manual meter reading",1.0,0.0006887052342]
["Manual processing",1.0,0.0006887052342]
["McQuag",1.0,0.0006887052342]
["Mechanical scales",1.0,0.0006887052342]
["Medical IQ tests",1.0,0.0006887052342]
["Meditation app",1.0,0.0006887052342]
["Meditation helper pro (Android)",1.0,0.0006887052342]
["MeditationsAppen",1.0,0.0006887052342]
["Memrise",1.0,0.0006887052342]
["Meter readings",1.0,0.0006887052342]
["Meters",1.0,0.0006887052342]
["Microsoft Outlook",1.0,0.0006887052342]
["Mind Snacks",1.0,0.0006887052342]
["MLSS Test",1.0,0.0006887052342]
["Mobile notepad",1.0,0.0006887052342]
["Mood Agent for Android",1.0,0.0006887052342]
["My blog",1.0,0.0006887052342]
["My fingers",1.0,0.0006887052342]
["My ithlete with bluetooth strap",1.0,0.0006887052342]
["My memory",1.0,0.0006887052342]
["My normal paper-pased diary",1.0,0.0006887052342]
["My own 'face-matching' scales",1.0,0.0006887052342]
["NeuroSky MindWave",1.0,0.0006887052342]
["NHS drinks tracker",1.0,0.0006887052342]
["NHS Sleep monitoring machine",1.0,0.0006887052342]
["Nike+ Running app",1.0,0.0006887052342]
["Nintendo brain training game",1.0,0.0006887052342]
["Nintendo Wii with their WiiActive thing",1.0,0.0006887052342]
["No tools",1.0,0.0006887052342]
["Noom Android App",1.0,0.0006887052342]
["Noom walk",1.0,0.0006887052342]
["Normal bp auto device",1.0,0.0006887052342]
["Normal scales",1.0,0.0006887052342]
["Noting call / email / meeting etc",1.0,0.0006887052342]
["Nutmeg",1.0,0.0006887052342]
["Observation on clothes",1.0,0.0006887052342]
["OhLife",1.0,0.0006887052342]
["Omron",1.0,0.0006887052342]
["Omron mx2",1.0,0.0006887052342]
["Omron pedometer",1.0,0.0006887052342]
["Omron Scales with bodyfat estimation",1.0,0.0006887052342]
["On track - diabetes tracking app",1.0,0.0006887052342]
["One-Touch Ultra 2",1.0,0.0006887052342]
["Online Big Five Personality Test",1.0,0.0006887052342]
["On-line log",1.0,0.0006887052342]
["Open Source Brain-Computer Interface",1.0,0.0006887052342]
["OpenPaths iOS app",1.0,0.0006887052342]
["Orthotic professional",1.0,0.0006887052342]
["OS maps",1.0,0.0006887052342]
["Other online programmes",1.0,0.0006887052342]
["Outlook",1.0,0.0006887052342]
["Outlook export",1.0,0.0006887052342]
["OWL energy monitor",1.0,0.0006887052342]
["Own website",1.0,0.0006887052342]
["Oxygination",1.0,0.0006887052342]
["Paper",1.0,0.0006887052342]
["Pebble",1.0,0.0006887052342]
["Period tracker app",1.0,0.0006887052342]
["Personal Coach",1.0,0.0006887052342]
["Pert of counting Carbohydrates",1.0,0.0006887052342]
["Photograph meters. gas, elec, water.",1.0,0.0006887052342]
["Photography",1.0,0.0006887052342]
["Plusnet monitor",1.0,0.0006887052342]
["Polar H6 + Sweatbeat iPhone app",1.0,0.0006887052342]
["Polar watch",1.0,0.0006887052342]
["Price comparison sites",1.0,0.0006887052342]
["Private blood test",1.0,0.0006887052342]
["Private clinics",1.0,0.0006887052342]
["Prorietary Program",1.0,0.0006887052342]
["Puzzles",1.0,0.0006887052342]
["Qlikview",1.0,0.0006887052342]
["Qstarz BT-Q1000 GPS travel recorder",1.0,0.0006887052342]
["Qualitative data",1.0,0.0006887052342]
["Qualitative record 1-10",1.0,0.0006887052342]
["Quantified-mind.com",1.0,0.0006887052342]
["Questionaires",1.0,0.0006887052342]
["Reading",1.0,0.0006887052342]
["Readout aloud Lords Prayer",1.0,0.0006887052342]
["Reciepts",1.0,0.0006887052342]
["Regular scale",1.0,0.0006887052342]
["Regular scale and mobile phone calendar",1.0,0.0006887052342]
["Remember the milk",1.0,0.0006887052342]
["Rescuetime free account to monitor computer usage",1.0,0.0006887052342]
["Resistance training",1.0,0.0006887052342]
["Reverse analysis from fitbit or jawbone",1.0,0.0006887052342]
["Rowing 2000m time trial",1.0,0.0006887052342]
["Runtastic Heart Rate",1.0,0.0006887052342]
["Schemer.com",1.0,0.0006887052342]
["Scrobbler.fm",1.0,0.0006887052342]
["Self assessment questionaire",1.0,0.0006887052342]
["Self track",1.0,0.0006887052342]
["Selfmade tool to draw art while asleep",1.0,0.0006887052342]
["Single expert assessment",1.0,0.0006887052342]
["Skin fold calipers",1.0,0.0006887052342]
["Sleave cuff",1.0,0.0006887052342]
["Sleep Talk",1.0,0.0006887052342]
["Sleeptime app",1.0,0.0006887052342]
["Small Wrist Device",1.0,0.0006887052342]
["Smart phone app (SHealth)",1.0,0.0006887052342]
["Smiling Mind",1.0,0.0006887052342]
["Snorelab",1.0,0.0006887052342]
["Soehnle BBS Comfort 5",1.0,0.0006887052342]
["Soehnle FS Comfort 5",1.0,0.0006887052342]
["Software",1.0,0.0006887052342]
["Songkick",1.0,0.0006887052342]
["SPO2 monitor",1.0,0.0006887052342]
["SPSS",1.0,0.0006887052342]
["Step on scales and Tactio health App",1.0,0.0006887052342]
["StressCheck",1.0,0.0006887052342]
["Subjective feeling",1.0,0.0006887052342]
["Sudoku",1.0,0.0006887052342]
["Suunto HRM watch",1.0,0.0006887052342]
["Suunto M4 watch",1.0,0.0006887052342]
["Suunto M4 watch / heartband",1.0,0.0006887052342]
["Suunto T6",1.0,0.0006887052342]
["Sweetbeat",1.0,0.0006887052342]
["Swimming Garmin 910",1.0,0.0006887052342]
["Tableau Desktop software",1.0,0.0006887052342]
["Tacx Training Software",1.0,0.0006887052342]
["Tape",1.0,0.0006887052342]
["TaskCoach",1.0,0.0006887052342]
["Text document",1.0,0.0006887052342]
["The same mobile app for tracking menstrual cycle",1.0,0.0006887052342]
["Timex HRM watch",1.0,0.0006887052342]
["Timing",1.0,0.0006887052342]
["Tinderbox",1.0,0.0006887052342]
["Tip sheet",1.0,0.0006887052342]
["Travel",1.0,0.0006887052342]
["Tripit",1.0,0.0006887052342]
["True Weight iOS app",1.0,0.0006887052342]
["Twittercounter and Tweetstats",1.0,0.0006887052342]
["Ubiqi app",1.0,0.0006887052342]
["Ubiqlog",1.0,0.0006887052342]
["Uptime",1.0,0.0006887052342]
["Vo2max formula",1.0,0.0006887052342]
["Vo2max tests with kettlebells",1.0,0.0006887052342]
["Voice analysis (own)",1.0,0.0006887052342]
["W-2",1.0,0.0006887052342]
["Walkmeter",1.0,0.0006887052342]
["Wallet",1.0,0.0006887052342]
["Weather",1.0,0.0006887052342]
["Website",1.0,0.0006887052342]
["Weekly review",1.0,0.0006887052342]
["Weights machines",1.0,0.0006887052342]
["Well Man via Nuffield",1.0,0.0006887052342]
["Wii fit",1.0,0.0006887052342]
["Wii scale",1.0,0.0006887052342]
["Wiki page",1.0,0.0006887052342]
["Wild-Divine lightstone",1.0,0.0006887052342]
["Withings ipad cuff",1.0,0.0006887052342]
["Withings, Fatwatch",1.0,0.0006887052342]
["Withings, Polar band",1.0,0.0006887052342]
["Workflowy",1.0,0.0006887052342]
["www.good.co/",1.0,0.0006887052342]
["www.omnifolio.org",1.0,0.0006887052342]
["www.personal.psu.edu/j5j/IPIP/",1.0,0.0006887052342]
["Zenobase.com",1.0,0.0006887052342]
["Zoopla",1.0,0.0006887052342]
["Zypher",1.0,0.0006887052342]

{"sheet":"Tool Usage Pivot","index":7,"n_rows":0,"n_cols":0,"rows_kept":0,"cut":false,"hidden":false,"merged":[]}

{"sheet":"Revised Tool Name List","index":8,"n_rows":721,"n_cols":4,"rows_kept":721,"cut":false,"hidden":false,"merged":[]}
["Original tool name/description","Revised Name",null,"This table shows roughly how we've reconcilled the free-form entries for tool names into a single list of tools (mainly using google refine). "]
["A Doctor","A Doctor"]
["Account Tracker","Account Tracker"]
["Account Tracker app ","Account Tracker"]
["a tape measure - the actual body type that clicks back into its case - accumeasure","Accumeasure (Tape Measure)"]
["Activ8rives","Activ8rlives"]
["Activ8rlives","Activ8rlives"]
["Alarm app","Alarm app"]
["Alcodroid","Alcodroid"]
["Alertme","Alertme"]
["AlertMe/Google Power Monitor energy monitor","Alertme"]
["Amex breakdown","Amex breakdown"]
["some android daily activity tracker","Android daily activity tracker"]
["Anki","Anki"]
["Ankilearn","Ankilearn"]
["ANT+","ANT+"]
["app","App"]
["Argus","Argus"]
["Aria scales","Aria scales"]
["ascii text file","Ascii text file"]
["Azumio iphone app","Azumio iphone app"]
["backpacker app","Backpacker app"]
["bank account downloads","Bank Account Downloads"]
["on line Bank cvs download.","Bank CSV Download"]
["bank statement","Bank statement"]
["Basic digital scales","Basic digital scales"]
["Basic scale and fitnesspal","Basic scale and fitnesspal"]
["Basis Wristband","Basis Wristband"]
["Basis Wristwatch","Basis Wristwatch"]
["something by bayer with usb","Bayer with usb"]
["Beddit","Beddit"]
["Beddit, Fitbit, Snorelab","Beddit, Fitbit, Snorelab"]
["beeminder","Beeminder"]
["beeminder.com","Beeminder.com"]
["Belbin","Belbin"]
["Blog","Blog"]
["Bllod glucose monitor","Blood Glucose Meter"]
["Blood glucose meter","Blood Glucose Meter"]
["Blood glucose testing kit","Blood glucose testing kit"]
["also, blood ketones","Blood Ketones"]
["Blood pressure monitor","Blood pressure monitor"]
["Bodpod","Bodpod"]
["Body fat measurement at Boots ","Body fat measurement at Boots "]
["Body measurements ","Body measurements "]
["bodyfat scale","Bodyfat scale"]
["BodyMedia FIT","BodyMedia FIT"]
["BP cuff","BP cuff"]
["bp device","Bp device"]
["brain workshop (for n-back training)","Brain workshop (for n-back training)"]
["Brainworks","Brainworks"]
["Breathsync app","Breathsync app"]
["Brewster","Brewster"]
["British Gas 'Energy Smart' metering","British Gas 'Energy Smart' metering"]
["British Gas Smart Meter","British Gas Smart Meter"]
["BT4 temp probes","BT4 temp probes"]
["years ago, BUPA exercycle test","BUPA exercycle test"]
["calendar","Calendar "]
["Calendar ","Calendar "]
["calipers","Callipers"]
["callipers","Callipers"]
["Carb counting","Carb counting"]
["Carbodydrates, measure by looking up in google. ie carbs in fried egg","Carbodydrates looked up on google"]
["Cateye Strada cycling computer and Fizztrain logging web site","Cateye Strada cycling computer"]
["CBT questionaire","CBT questionaire"]
["Chrome productivity extension","Chrome productivity extension"]
["chronos","Chronos"]
["Clement Clarke Mini-Wright Peak Flow Meter","Clement Clarke Mini-Wright Peak Flow Meter"]
["Coinkeeper","Coinkeeper"]
["collect receipts","Collect receipts"]
["concept 2 rowing monitor card","Concept 2 rowing monitor card"]
["Concept2 PM3 rowing computer","Concept2 PM3 rowing computer"]
["concept2 rower + log card","Concept2 rower + log card"]
["Contactually","Contactually"]
["csv files","CSV files"]
["CurrentCost energy monitor","CurrentCost energy monitor"]
["custom made Android app","Custom made Android app"]
["custom made app","Custom made app"]
["cvs temple thermometer","Cvs temple thermometer"]
["cycle computer","Cycle computer"]
["dailyburn.com","Dailyburn.com"]
["dailymile","Dailymile"]
["Dayone","Dayone"]
["Daytum","Daytum"]
["Delicious","Delicious"]
["diary","Diary (pen and paper)"]
["A paper diary (this was pre-app!)","Diary (pen and paper)"]
["Diary (paper and pen)","Diary (pen and paper)"]
["paper diary","Diary (pen and paper)"]
["Pen & paper diary","Diary (pen and paper)"]
["pen and diary","Diary (pen and paper)"]
["Digital BP cuff","Digital BP cuff"]
["digital peak flow monitor","Digital peak flow monitor"]
["Digital scale","Digital scale"]
["Digital scales (no wifi or bodyfat sensor)","Digital scales"]
["Doris","Doris"]
["dream diary","Dream diary"]
["DrinksTracker (NHS Choices iPHone app)","DrinksTracker (NHS Choices iPHone app)"]
["Duolingo","Duolingo"]
["DuoLingo app to learn Portuguese","Duolingo"]
["ECG monitor (portable)","ECG monitor (portable)"]
["EcoDrive, comes inbuilt with Fiats","EcoDrive, comes inbuilt with Fiats"]
["Electronic scale from Homedics/Salter ","Electronic scale Homedics/Salter"]
["Electronic scale Homedics/Salter","Electronic scale Homedics/Salter"]
["electronic scales","Electronic scale Homedics/Salter"]
["argos cheap electro scales Â£5?","Electronic scales"]
["Electrophoresis","Electrophoresis"]
["EM wave 2","EM wave 2"]
["Email Game","Email Game"]
["Emotion Sense","Emotion Sense app"]
["Emotion Sense app","Emotion Sense app"]
["emwave2 device (plus desktop version)","Emwave2 device (plus desktop version)"]
["endomondo","Endomondo"]
["Endonmondo","Endomondo"]
["endomondo android app","Endomondo"]
["Endonmondo (app)","Endomondo"]
["Enobio","Enobio"]
["EON analyzer","EON analyzer"]
["equanimity","Equanimity"]
["Eternity","Eternity"]
["Eternity (iOS)","Eternity"]
["Evernote","Evernote"]
["Evernote ","Evernote"]
["Exercycle","Exercycle"]
["Expereal app","Expereal app"]
["Facebook","Facebook"]
["Facebook app","Facebook"]
["faviki.com to tag bookmarks with web-pages used","Faviki"]
["web tagging, ie Faviki, Delicious","Faviki"]
["finance diary","Finance diary"]
["financisto android app","Financisto android app"]
["Firstbeat","Firstbeat"]
["Fit Bit","Fitbit"]
["Fitbit","Fitbit"]
["Fitbit ","Fitbit"]
["fitbit (to input the data)","Fitbit"]
["Fitbit app (for logging)","Fitbit"]
["Fitbitt","Fitbit"]
["FitBit app","Fitbit"]
["Fitbit Aria","Fitbit Aria"]
["fitbit dashboard","Fitbit dashboard"]
["fitbit flex","Fitbit Flex"]
["FitBit Flex tracker","Fitbit Flex"]
["Fitbit One","Fitbit One"]
["Fitbit scale","Fitbit scale"]
["fitbit scales","Fitbit scale"]
["fitbit ultra","Fitbit ultra"]
["Fitbit, Moves","Fitbit, Moves"]
["fitbits for comparison","Fitbits for comparison"]
["Fitbrain","Fitbrain"]
["FitBrains","Fitbrain"]
["fitfiit","Fitfiit"]
["Fitness app","Fitness app"]
["Fitness Pal","Fitness Pal"]
["fitness test by expert","Fitness test by expert"]
["fitocracy","Fitocracy"]
["fitocracy.com","Fitocracy"]
["fizztrain web site","Fizztrain web site"]
["Flickr","Flickr"]
["Fog of the World app","Fog of the World app"]
["Food","Food"]
["Food Tracker","Food Tracker"]
["Fooducate","Fooducate"]
["FourSquare","Foursquare"]
["FT portfolio","FT portfolio"]
["full fitness","Full fitness"]
["Galvanic Skin Response (own)","Galvanic Skin Response (own)"]
["Garmin (for long bike rides)","Garmin (for long bike rides)"]
["Garmin","Garmin 610/910/810"]
["Garmin 610","Garmin 610/910/810"]
["Garmin 610/910/810","Garmin 610/910/810"]
["Garmin 810","Garmin 610/910/810"]
["Garmin 910/610/810","Garmin 610/910/810"]
["Garmin connect","Garmin Connect website"]
["Garmin Connect website","Garmin Connect website"]
["Garmin Edge 800","Garmin Edge 800"]
["Garmin Edge 800 GPS","Garmin Edge 800"]
["Garmin Footpod","Garmin Footpod"]
["Garmin forerunner","Garmin Forerunner"]
["Garmin Forerunner 305","Garmin Forerunner"]
["Garmin Forerunner XT watch","Garmin Forerunner"]
["Garmin head unit + ANT HRM ","Garmin head unit + ANT HRM "]
["Garmin heart-rate monitor","Garmin Heart-Rate Monitor"]
["garmin hrm","Garmin Heart-Rate Monitor"]
["garmin online software","Garmin online software"]
["Garmin Oregon 450","Garmin Oregon 450"]
["Garmin Vector","Garmin Vector"]
["garmin xt","Garmin xt"]
["generic arm band blood pressure monitor","Generic Arm Band Blood Pressure Monitor"]
["generic armband blood pressure monitor","Generic Arm Band Blood Pressure Monitor"]
["Getsomeheadspace app","Getsomeheadspace app"]
["getsomeheadspace.com","Getsomeheadspace app"]
["ginger.io","Ginger.io"]
["gmail","Gmail"]
["Gnotime","Gnotime"]
["GolfSense","GolfSense"]
["Golfshot GPS","Golfshot GPS"]
["Good reads app","Goodreads"]
["goodreads","Goodreads"]
["goodreads.com","Goodreads"]
["Google Calendar","Google Calendar"]
["google calendar to record events attended","Google Calendar"]
["Google Calendars","Google Calendar"]
["Google documents","Google documents"]
["Google Earth for distance; now dropped","Google Earth for distance; now dropped"]
["google fusion to store in cloud as searchable activity record","Google fusion table"]
["Google Keep","Google Keep"]
["Google Latitude","Google Latitude"]
["Google Location History","Google Location History"]
["google mail plugin","Google mail plugin"]
["Google maps","Google maps"]
["Google My Tracks","Google My Tracks"]
["Google My Tracks (no longer using this)","Google My Tracks"]
["Google+ Photos","Google+ Photos"]
["gottaFeeling app","GottaFeeling app"]
["gp","GP"]
["GPS mapping","GPS mapping"]
["GPSBabel","GPSBabel"]
["GPSVisualizer","GPSVisualizer"]
["Gym equipment","Gym equipment"]
["Handheld GPS units","Handheld GPS units"]
["Happiness iPhone app","Happiness iPhone app"]
["Hargreaves Landsdown Portfolio Manager","Hargreaves Landsdown Portfolio Manager"]
["Heart rate app","Heart rate app"]
["heart rate monitor","Heart rate monitor app using smartphone flash"]
["Heart rate monitor app using smartphone flash","Heart rate monitor app using smartphone flash"]
["HeartMath em wave desktop","HeartMath em wave desktop"]
["HeartMath inner balance app","HeartMath inner balance app"]
["HomeBudget app","HomeBudget app"]
["A home made tool which was a grid with a day for a year that I coloured according to my mood that day","Homemade paper-based colour grid"]
["HRM","HRM"]
["http://cognitivefun.net/","Http://cognitivefun.net/"]
["http://Intelligencetest.com","Http://Intelligencetest.com"]
["http://www.good.co/","Http://www.good.co/"]
["http://www.omnifolio.org","Http://www.omnifolio.org"]
["http://www.personal.psu.edu/j5j/IPIP/","Http://www.personal.psu.edu/j5j/IPIP/"]
["https://sapa-project.org/","Https://sapa-project.org/"]
["hydration","Hydration"]
["Hyperthermia times (abandoned)","Hyperthermia times (abandoned)"]
["IBG Star","IBG Star"]
["IBG Star Blood Glucose App","IBG Star Blood Glucose App"]
["iCardio linked with Zephyr","ICardio linked with Zephyr"]
["Ihealth and Iphone","Ihealth and Iphone"]
["Imdb","Imdb"]
["immersion to visualise social network","Immersion"]
["in person tests","In person tests"]
["indirect measure via hr performance and body metrics","Indirect measure via hr performance and body metrics"]
["inFlow","InFlow"]
["Instagram via Statigram","Instagram via Statigram"]
["instant heart rate app","Instant heart rate app"]
["Investment account statements","Investment account statements"]
["ios 7 sleep time free app","Ios 7 sleep time free app"]
["ios7 calendar","Ios7 calendar"]
["ipad","Ipad"]
["iphone","IPhone"]
["Iphone app to track","Iphone app to track"]
["some iphone budgeting apps I can't remember and never got into habit of using","IPhone Budgeting Apps"]
["electronic calendar in iphone","IPhone Calendar"]
["iPhone heart rate app","IPhone heart rate app"]
["iphone location data","Iphone location data"]
["iphone notes","Iphone notes"]
["a sleep tracker app on the iPhone whose name I forgot","IPhone sleep tracker app"]
["iRunner","IRunner"]
["ithlete ecg receiver","Ithlete ecg receiver"]
["ithlete heart rate monitor","Ithlete heart rate monitor"]
["ithlete HRV","Ithlete HRV"]
["ithlete hrv ios app","Ithlete hrv ios app"]
["ithlete precision pulse","Ithlete Precision Pulse app"]
["ithlete Precision Pulse app","Ithlete Precision Pulse app"]
["ithlete pulse meter on ipod w bluetooth strap","Ithlete pulse meter on ipod w bluetooth strap"]
["Jawbone UP","Jawbone UP"]
["Jawbone Up!","Jawbone UP"]
["jawbone up for comparison","Jawbone up for comparison"]
["Jawbone Up! & Fitness Pal","Jawbone Up! & Fitness Pal"]
["jefit.com","Jefit.com"]
["journaling","Journaling"]
["Journeying or not","Journeying or not"]
["kept daily on spreadsheet","Kept daily on spreadsheet"]
["Ki Performance BodPod","Ki Performance BodPod"]
["KiFit","KiFit"]
["klout","Klout"]
["lancet + digital reader","Lancet + digital reader"]
["lancet + paper strip","Lancet + paper strip"]
["Last FM","Last.fm"]
["last.fm","Last.fm"]
["Last.fm audioscrobbler","Last.fm audioscrobbler"]
["librarything.com","Librarything.com"]
["LifeLogger","LifeLogger"]
["LifeSlice","LifeSlice"]
["Lifesum","Lifesum"]
["Lift (app)","Lift (app)"]
["linkedin","LinkedIn"]
["LinkedIn ","LinkedIn"]
["Lloyds Pharmacy scale ","Lloyds Pharmacy scale "]
["Lovemoney.com tracker","Lovemoney.com tracker"]
["Lumen Trails","Lumen Trails"]
["Luminosity","Luminosity"]
["lumosity","Lumosity"]
["Lux meters","Lux meters"]
["I read the meter every night","Manual meter reading"]
["manual processing","Manual processing"]
["manual scales","Manual scale"]
["Maunual scale","Manual scale"]
["manual workout log","Manual Workout Log"]
["manual workout logs","Manual Workout Log"]
["manual tracking","Manually Tracking a Number"]
["manual tracking via a journal","Manually Tracking a Number"]
["Manually tracking a number","Manually Tracking a Number"]
["measure contact be usefulness out of 100","Manually Tracking a Number"]
["map my tracks","Map my tracks"]
["MapMyFitness","MapMyFitness"]
["MayMyFitness","MapMyFitness"]
["MapMyRide","MapMyRide"]
["Map my Run","MapMyRun"]
["map myrun","MapMyRun"]
["Mapmyrun","MapMyRun"]
["MapMyWalk","MapMyWalk"]
["Mappiness","Mappiness"]
["Mappiness app","Mappiness app"]
["Mappiness App [iOS]","Mappiness iOS"]
["Mappiness for iOS ","Mappiness iOS"]
["MBTI","MBTI"]
["MBTI online questionaires","MBTI"]
["MBTI paper based analysis ","MBTI"]
["MyersBriggs","MBTI"]
["McQuag","McQuag"]
["measuring tape","Measuring Tape"]
["mechanical scales","Mechanical scales"]
["medical IQ tests","Medical IQ tests"]
["meditation app","Meditation app"]
["meditation helper pro (Android)","Meditation helper pro (Android)"]
["MeditationsAppen","MeditationsAppen"]
["Memrise","Memrise"]
["Menstrual Calendar Premium for Android","Menstrual Calendar Premium for Android"]
["Menstrual Cycle","Menstrual Cycle"]
["Meter readings","Meter readings"]
["meters","Meters"]
["Micoach","Micoach"]
["Microsoft Money","Microsoft Money"]
["Microsoft Outlook","Microsoft Outlook"]
["Mind Snacks","Mind Snacks"]
["Mint","Mint"]
["Misfit Shine","Misfit Shine"]
["MIT Elite Plus","MIT Elite Plus"]
["MIT Elite Plus three time a day","MIT Elite Plus"]
["MLSS Test","MLSS Test"]
["A mobile app","Mobile app"]
["Mobile app","Mobile app"]
["Mobile notepad","Mobile notepad"]
["An app on my old mobile phone","Mobile Phone App"]
["App (cannot remember name)","Mobile Phone App"]
["Money dash board","Money Dash Board"]
["Money Dashboard","Money Dash Board"]
["MoneyDashboard","Money Dash Board"]
["Moneywiz","Moneywiz"]
["Mood Agent for Android","Mood Agent for Android"]
["Mood Panda","MoodPanda"]
["moodpanda","MoodPanda"]
["Mood Scope","Moodscope"]
["moodscope","Moodscope"]
["MotionX-GPS iPhone app","MotionX-GPS iPhone app"]
["Move","Moves"]
["Moves","Moves"]
["Moves (for everyday activity)","Moves"]
["Moves iPhone App","Moves"]
["Moves on iPhone","Moves"]
["A daily journal in Word","MS Word"]
["word","MS Word"]
["my blog","My blog"]
["My fat secret","My Fat Secret"]
["my fat secret ","My Fat Secret"]
["My fingers","My fingers"]
["My Fitness Pal (app)","MyFitnessPal"]
["my ithlete with bluetooth strap","My ithlete with bluetooth strap"]
["my memory","My memory"]
["my NetDiary","My NetDiary"]
["my normal paper-pased diary","My normal paper-pased diary"]
["My own 'face-matching' scales","My own 'face-matching' scales"]
["MtFitnessPal","MyFitnessPal"]
["my fitness pal","MyFitnessPal"]
["MyFitness Pal","MyFitnessPal"]
["MyFitness Pal ","MyFitnessPal"]
["MyFitnessPal","MyFitnessPal"]
["MyFitnessPal  app","MyFitnessPal"]
["myfitnesspal.com","MyFitnessPal"]
["regular digital scale and enter results into myfitnesspal","MyFitnessPal"]
["mysql database","Mysql database"]
["NeuroSky MindWave","NeuroSky MindWave"]
["NHS drinks tracker","NHS drinks tracker"]
["NHS Sleep monitoring machine ","NHS Sleep monitoring machine "]
["Nike Fuelband","Nike Fuelband"]
["Nike+ FuelBand","Nike Fuelband"]
["Nike +","Nike+"]
["nike+","Nike+"]
["Nike+ Running app","Nike+ Running app"]
["a Nintendo brain training game","Nintendo brain training game"]
["Nintendo Wii with their WiiActive thing","Nintendo Wii with their WiiActive thing"]
["no tools","No tools"]
["Noom","Noom"]
["Noom Android App","Noom Android App"]
["Noom walk","Noom walk"]
["normal bp auto device","Normal bp auto device"]
["Normal scales","Normal scales"]
["noting call / email / meeting etc","Noting call / email / meeting etc"]
["Nutmeg","Nutmeg"]
["Observation on clothes","Observation on clothes"]
["OhLife","OhLife"]
["Omie","Omie"]
["Omron","Omron"]
["Omron blood pressure monitor","Omron Blood Pressure Monitor"]
["Omron M2 Basic Blood Pressure Monitor (manually entered into Google Docs)","Omron Blood Pressure Monitor"]
["omron mx2","Omron mx2"]
["Omron pedometer","Omron pedometer"]
["Omron Scales with bodyfat estimation","Omron Scales with bodyfat estimation"]
["on track","On track"]
["on track - diabetes tracking app","On track - diabetes tracking app"]
["One-Touch Ultra 2","One-Touch Ultra 2"]
["Online bank app","Online Bank App"]
["online bank app ","Online Bank App"]
["online banking statement","Online Banking UI"]
["Online banking tools","Online Banking UI"]
["Online banking UI","Online Banking UI"]
["Online banking UI.","Online Banking UI"]
["Big Five Personality test in the Internet","Online Big Five Personality Test"]
["on-line log","On-line log"]
["Online tests","Online Tests"]
["Open Source Brain-Computer Interface","Open Source Brain-Computer Interface"]
["OpenPaths iOS app","OpenPaths iOS app"]
["Orthotic professional","Orthotic professional"]
["OS maps","OS maps"]
["other online programmes","Other online programmes"]
["Outlook","Outlook"]
["Outlook export","Outlook export"]
["OWL energy monitor","OWL energy monitor"]
["Own website","Own website"]
["Oxygination","Oxygination"]
["P tracker","P tracker"]
["paco","Paco"]
["piles of paper","Paper"]
["Pebble","Pebble"]
["pedometer","Pedometer"]
["various cheap pedometers","Pedometer"]
["Pen & Paper","Pen & Paper"]
["Pen & paper ","Pen & Paper"]
["Pen & Paper!","Pen & Paper"]
["pen and paper","Pen & Paper"]
["Pen and paper (standardised questionnaires)","Pen & Paper"]
["pen/paper","Pen & Paper"]
["Pen and pencil","Pen and Pencil"]
["Period tracker app","Period tracker app"]
["Personal Coach","Personal Coach"]
["Pert of counting Carbohydrates","Pert of counting Carbohydrates"]
["iPhone app","Phone app"]
["phone app","Phone app"]
["phone application","Phone app"]
["phone apps, sorry can't remember what","Phone app"]
["photograph meters. gas, elec, water.","Photograph meters. gas, elec, water."]
["photographs","Photographs"]
["photography","Photography"]
["Photos","Photos"]
["plusnet monitor","Plusnet monitor"]
["Polar H6 + Sweatbeat iPhone app","Polar H6 + Sweatbeat iPhone app"]
["Polar H6","Polar H7"]
["Polar H7","Polar H7"]
["polar heart rate monitor","Polar Heart Rate Monitor"]
["Polar HR monitor","Polar HRM"]
["Polar HRM","Polar HRM"]
["Polar HRM ","Polar HRM"]
["Polar HRM - several, now RCX5","Polar HRM"]
["polar hrm with hrv","Polar HRM"]
["Polar RCX5 HRM virtually all day","Polar HRM"]
["polar wearlink chest strap","Polar HRM"]
["polar wearlink+ heart rate chest strap + endomondo android app","Polar HRM"]
["RCX5 Polar HRM","Polar HRM"]
["Polar watch","Polar watch"]
["price comparison sites","Price comparison sites"]
["private blood test","Private blood test"]
["various hospital labs and private clinics","Private clinics"]
["Prorietary Program","Prorietary Program"]
["PureLifeStyle app","PureLifeStyle app"]
["puzzles","Puzzles"]
["Python Code","Python Code"]
["pyhon scripts","Python scripts"]
["Python scripts to analyse bank statements","Python scripts"]
["Qlikview","Qlikview"]
["Qstarz BT-Q1000 GPS travel recorder","Qstarz BT-Q1000 GPS travel recorder"]
["qualitative data","Qualitative data"]
["qualitative record 1-10","Qualitative record 1-10"]
["quantified-mind.com","Quantified-mind.com"]
["questionaires","Questionaires"]
["Quicken","Quicken"]
["reading","Reading"]
["Readout aloud Lords Prayer","Readout aloud Lords Prayer"]
["Reciepts","Reciepts"]
["Regular scale","Regular scale"]
["regular scale and mobile phone calendar","Regular scale and mobile phone calendar"]
["Remember the milk","Remember the milk"]
["Rescue Time","RescueTime"]
["rescue time app","RescueTime"]
["RescueTime","RescueTime"]
["rescuetime.com","RescueTime"]
["ResqueTime","RescueTime"]
["rescuetime free account to monitor computer usage","Rescuetime free account to monitor computer usage"]
["Resistance training","Resistance training"]
["Resoph Notes","Resoph Notes"]
["reverse analysis from fitbit or jawbone","Reverse analysis from fitbit or jawbone"]
["rowing 2000m time trial","Rowing 2000m time trial"]
["Runkeeper","RunKeeper"]
["Runkeeper (occasionally)","RunKeeper"]
["RunKeeper, Noom","RunKeeper"]
["Runtasctic pedometer app","Runtastic"]
["Runtastic","Runtastic"]
["Runtastic (no longer using this)","Runtastic"]
["Runtastic Heart Rate","Runtastic Heart Rate"]
["scale","Scale"]
["Scales","Scale"]
["schemer.com","Schemer.com"]
["Scrobbler.fm","Scrobbler.fm"]
["self assessment questionaire","Self assessment questionaire"]
["self track","Self track"]
["A tool I wrote myself to draw art while I sleep","Selfmade tool to draw art while asleep"]
[" measure out of ten, ten being goo mood, zero bad","Self-reported scale 1-10"]
["an out of ten number, higher the better for me as indifvidual then for specifc countries and universal.","Self-reported scale 1-10"]
["self-written program","Self-written program"]
["Shine by Misfits","Shine by Misfits"]
["single expert assessment","Single expert assessment"]
["skin fold calipers","Skin fold calipers"]
["sleave cuff","Sleave cuff"]
["Sleep As Android","Sleep As Android"]
["sleep as android app","Sleep As Android"]
["Sleep as Android app on Nexus 4","Sleep As Android"]
["Sleep cycle","Sleep Cycle"]
["SleepCycle","Sleep Cycle"]
["Sleep Cycle app on iPhone","Sleep Cycle"]
["Sleep Cycle iPhone app","Sleep Cycle"]
["Sleep Talk","Sleep Talk"]
["Sleep Time","Sleep Time"]
["SleepTime+","Sleep Time"]
["Sleepbot","Sleepbot"]
["sleepbot app","Sleepbot"]
["sleeptime app","Sleeptime app"]
["small wrist device (Â£15 from Argos)","Small Wrist Device"]
["Smart phone app (SHealth)","Smart phone app (SHealth)"]
["Smiling Mind","Smiling Mind"]
["SMS notifications from bank","SMS notifications"]
["SMS notifications.","SMS notifications"]
["Snorelab","Snorelab"]
["Soehnle BBS Comfort 5","Soehnle BBS Comfort 5"]
["Soehnle FS Comfort 5","Soehnle FS Comfort 5"]
["Software","Software"]
["Songkick","Songkick"]
["Specialised blood pressure meter","Specialised Blood Pressure Meter"]
["Spend App","Spending App"]
["Spending App","Spending App"]
["SPO2 monitor","SPO2 monitor"]
["SportsTracker","SportsTracker"]
["Excel","Spreadsheet"]
["Excel ","Spreadsheet"]
["excel and word","Spreadsheet"]
["excel and word for analysis and recording","Spreadsheet"]
["excel and word for analysis and tracking","Spreadsheet"]
["excel and word for recording and analysis","Spreadsheet"]
["excel and word record and analysis","Spreadsheet"]
["excel and word recording and analysis","Spreadsheet"]
["Excel Spread Sheet","Spreadsheet"]
["Excel Spreadsheet","Spreadsheet"]
["Excel spreadsheet - to measure kcal intake","Spreadsheet"]
["Google docs spreadsheet","Spreadsheet"]
["Google docs spreadsheets","Spreadsheet"]
["Google spreadsheet","Spreadsheet"]
["Google Spreadsheets","Spreadsheet"]
["In spreadshhet for tax return","Spreadsheet"]
["MS excel to aggregate and analyse data","Spreadsheet"]
["s/sheet","Spreadsheet"]
["Speadsheet","Spreadsheet"]
["Spreadhseet","Spreadsheet"]
["spreadsheet","Spreadsheet"]
["spreadsheet - for data analysis","Spreadsheet"]
["Spreadsheet for rental income","Spreadsheet"]
["spreadsheet in Google docs","Spreadsheet"]
["spreadsheet LP Y/N","Spreadsheet"]
["spreadsheet of contacts, updated weekly","Spreadsheet"]
["spreadsheet Y/N","Spreadsheet"]
["Spreadsheet, Carbs from alcohol - Number","Spreadsheet"]
["spreadsheets","Spreadsheet"]
["spreadsheets in google docs","Spreadsheet"]
["word and excel ","Spreadsheet"]
["spss","SPSS"]
["Statistica","Statistica"]
["Statistica etc","Statistica"]
["Statistica Multiple Regression Analayses","Statistica"]
["Statistica Multiple Regression Analyses","Statistica"]
["Statistica Multiple Regression Analysis","Statistica"]
["Statistica mutliple regression analyses","Statistica"]
["step on scales and Tactio health App","Step on scales and Tactio health App"]
["Stop watch","Stop watch"]
["strava","Strava"]
["Strava iPhone app and web site ","Strava"]
["Strava,","Strava"]
["Strava (app)","Strava"]
["Strava App","Strava"]
["Strava web site","Strava web site"]
["Strava website","Strava web site"]
["StressCheck","StressCheck"]
["stronger (runkeeper app)","Stronger (RunKeeper App)"]
["Structured text file","Structured Text File"]
["structured text files","Structured Text File"]
["subjective feeling","Subjective feeling"]
["Sudoku","Sudoku"]
["Suunto Heart Rate Monitor","Suunto Heart Rate Monitor"]
["Suunto Heart Rate Monitor ","Suunto Heart Rate Monitor"]
["Suunto HRM watch","Suunto HRM watch"]
["Suunto M4 watch and wireless Movescount USB uploader","Suunto M4 watch"]
["Suunto M4 watch / heartband","Suunto M4 watch / heartband"]
["Suunto Movescount web site","Suunto Movescount web site"]
["Suunto Movescount web site and watch/HRM","Suunto Movescount web site"]
["Suunto T6","Suunto T6"]
["SVT Accounts app","SVT Accounts App"]
["Sweetbeat","Sweetbeat"]
["Swimming Garmin 910","Swimming Garmin 910"]
["Tableau Desktop software","Tableau Desktop software"]
["Tacx Training Software, on PC connected indoor trainer.","Tacx Training Software"]
["taniata scales","Taniata Scales"]
["Tanita scales","Taniata Scales"]
["Tanita scales ","Taniata Scales"]
["Tanita Scales with bodyfat estimation","Taniata Scales"]
["Tanita InnerScan body comp monitor","Tanita InnerScan Body Composition Monitor"]
["Tanita InnerScan Body Composition Monitor","Tanita InnerScan Body Composition Monitor"]
["Tanita Scales BC545","Tanita Scales BC545"]
["tape","Tape"]
["a tape measure","Tape Measure"]
["Tape measure","Tape Measure"]
["TapLog","TapLog Android App"]
["TapLog Android App","TapLog Android App"]
["TaskCoach","TaskCoach"]
["Text document","Text document"]
["text file","Text file"]
["Text file on phone","Text file"]
["The same mobile app for tracking menstrual cycle","The same mobile app for tracking menstrual cycle"]
["thermometer","Thermometer"]
["Tictrac","TicTrac"]
["Timex HRM watch","Timex HRM watch"]
["Timing, try 10 mins per day in quiet setting(church at lunchtime near work)","Timing"]
["tinderbox","Tinderbox"]
["Tip sheet","Tip sheet"]
["original_tool_name","tool_name"]
["travel","Travel"]
["tripit","Tripit"]
["True Weight iOS app","True Weight iOS app"]
["Twitter","Twitter"]
["Twitter/ Linkedin/Facebook analysis availble to users.","Twitter"]
["Twittercounter and Tweetstats","Twittercounter and Tweetstats"]
["Ubiqi app","Ubiqi app"]
["Ubiqlog","Ubiqlog"]
["untapp.d","Untapp.d"]
["untapped","Untapp.d"]
["Uptime","Uptime"]
["various apps","Various apps"]
["vo2max formula","Vo2max formula"]
["vo2max tests with kettlebells","Vo2max tests with kettlebells"]
["Voice analysis (own)","Voice analysis (own)"]
["W-2","W-2"]
["wahoo","Wahoo"]
["Wahoo bike and HR sensors","Wahoo HRM"]
["Wahoo Heart Rate Monitor","Wahoo HRM"]
["Wahoo HR monitor","Wahoo HRM"]
["Wahoo HR sensor","Wahoo HRM"]
["Walkmeter","Walkmeter"]
["Walkmeter on iPhone","Walkmeter on iPhone"]
["wallet","Wallet"]
["Wattson","Wattson power meter"]
["Wattson power meter","Wattson power meter"]
["weather","Weather"]
["website","Website"]
["weekly review","Weekly review"]
["bathroom scale","Weighing Scales"]
["Regular bathroom scales","Weighing Scales"]
["Scales (various)","Weighing Scales"]
["Scales at the gym ","Weighing Scales"]
["Scales in Pharmacy which printed out results on receipt","Weighing Scales"]
["weighing scale","Weighing Scales"]
["Weighing scales","Weighing Scales"]
["Weight","Weight"]
["weights machines","Weights machines"]
["now weight watchers electro scales","Weight-watchers electro scales"]
["weight watchers scales","Weight-watchers electro scales"]
["Well Man via Nuffield","Well Man via Nuffield"]
["Well Man - Nuffield","Wellman - Nuffield"]
["Wellman - Nuffield","Wellman - Nuffield"]
["Wellness FX","Wellness FX"]
["WellnessFX","Wellness FX"]
["whiteboard","Whiteboard"]
["Wii fit","Wii fit"]
["Wii scale","Wii scale"]
["Wiki page","Wiki page"]
["Wild-Divine lightstone","Wild-Divine lightstone"]
["whithings","Withings"]
["Withings","Withings"]
["Withings ","Withings"]
["Withings blood pressure monitor","Withings Blood Pressure Monitor"]
["withings ipad cuff","Withings ipad cuff"]
["Withings Pulse","Withings Pulse"]
["Withings body scale","Withings Scales"]
["Withings Scale","Withings Scales"]
["withings scales","Withings Scales"]
["Withings weight scale","Withings Scales"]
["Withings Wifi Scale","Withings Scales"]
["withings wifi scales","Withings Scales"]
["Withings, Fatwatch","Withings, Fatwatch"]
["Withings, Polar band","Withings, Polar band"]
["Wolfram Alpha Personal Analytics","Wolfram Alpha Personal Analytics"]
["wolfram alpha to visualise social network","Wolfram Alpha Personal Analytics"]
["Workflowy","Workflowy"]
["Wunderlist","Wunderlist"]
["Your Flowing Data Twitter app","Your Flowing Data Twitter app"]
["Your Flowing Data Twitter app/web site","Your Flowing Data Twitter app"]
["zenobase.com","Zenobase.com"]
["Zeo","Zeo"]
["Zephyr BT HxM (realtime data output to iCardio and planning on saving data to Google Docs)","Zephyr HxM"]
["Zephyr HxM while Thai Boxing","Zephyr HxM"]
["Zoopla analysis movements for value of properties, movements then re analysed on quarterly basis","Zoopla"]
["zypher","Zypher"]

{"sheet":"Response Frequency","index":9,"n_rows":657,"n_cols":6,"rows_kept":657,"cut":false,"hidden":false,"merged":[]}
["Question Group","Question Code","Question Text","Response Rate (out of 105)","Yes Count (in general questions)","No Count (in general questions)"]
["Physical (e.g. Blood Pressure, Weight, Sleep)","G2_Q0001 [DATS1]","Question 1. Which of the following personal data types do you actively collect, have collected or would particularly like to collect in the future? (If you're unsure about any of the options then check it anyway, you can easily skip over them later) [Physical (e.g. Blood Pressure, Weight, Sleep)]",105.0]
["Emotional & Mental (e.g. Mood tracking, Happiness, Psychometrics)","G2_Q0001 [DATS2]","Question 1. Which of the following personal data types do you actively collect, have collected or would particularly like to collect in the future? (If you're unsure about any of the options then check it anyway, you can easily skip over them later) [Emotional & Mental (e.g. Mood tracking, Happiness, Psychometrics)]",105.0]
["Activity & Consumption (e.g. Exercise, Time, Diet, Travel, Email)","G2_Q0001 [DATS3]","Question 1. Which of the following personal data types do you actively collect, have collected or would particularly like to collect in the future? (If you're unsure about any of the options then check it anyway, you can easily skip over them later) [Activity & Consumption (e.g. Exercise, Time, Diet, Travel, Email)]",105.0]
["Money / Personal Finance (e.g. Income, Spending)","G2_Q0001 [DATS4]","Question 1. Which of the following personal data types do you actively collect, have collected or would particularly like to collect in the future? (If you're unsure about any of the options then check it anyway, you can easily skip over them later) [Money / Personal Finance (e.g. Income, Spending)]",105.0]
["Social (e.g. Meetings, Facebook Use)","G2_Q0001 [DATS5]","Question 1. Which of the following personal data types do you actively collect, have collected or would particularly like to collect in the future? (If you're unsure about any of the options then check it anyway, you can easily skip over them later) [Social (e.g. Meetings, Facebook Use)]",105.0]
["Other","G2_Q0001 [Other]","Question 1. Which of the following personal data types do you actively collect, have collected or would particularly like to collect in the future? (If you're unsure about any of the options then check it anyway, you can easily skip over them later) [Other]",4.0]
["Allergies","G3_Q0001 [1]","Please select below any types of Physical data you collect, have collected or would like to collect (Just leave the other data types as the default 'no answer'): [Allergies]",14.0]
["Arterial Stiffness","G3_Q0001 [2]","Please select below any types of Physical data you collect, have collected or would like to collect (Just leave the other data types as the default 'no answer'): [Arterial Stiffness]",8.0]
["Blood Glucose","G3_Q0001 [3]","Please select below any types of Physical data you collect, have collected or would like to collect (Just leave the other data types as the default 'no answer'): [Blood Glucose]",36.0]
["Blood Pressure","G3_Q0001 [4]","Please select below any types of Physical data you collect, have collected or would like to collect (Just leave the other data types as the default 'no answer'): [Blood Pressure]",41.0]
["Body Fat","G3_Q0001 [5]","Please select below any types of Physical data you collect, have collected or would like to collect (Just leave the other data types as the default 'no answer'): [Body Fat]",52.0]
["Body Temperature","G3_Q0001 [6]","Please select below any types of Physical data you collect, have collected or would like to collect (Just leave the other data types as the default 'no answer'): [Body Temperature]",21.0]
["Brainwaves (EEG etc.)","G3_Q0001 [7]","Please select below any types of Physical data you collect, have collected or would like to collect (Just leave the other data types as the default 'no answer'): [Brainwaves (EEG etc.)]",25.0]
["Hair","G3_Q0001 [8]","Please select below any types of Physical data you collect, have collected or would like to collect (Just leave the other data types as the default 'no answer'): [Hair]",5.0]
["Heart-Rate","G3_Q0001 [9]","Please select below any types of Physical data you collect, have collected or would like to collect (Just leave the other data types as the default 'no answer'): [Heart-Rate]",58.0]
["Heart-Rate Variability","G3_Q0001 [10]","Please select below any types of Physical data you collect, have collected or would like to collect (Just leave the other data types as the default 'no answer'): [Heart-Rate Variability]",31.0]
["Left Right Leg Fat Difference","G3_Q0001 [11]","Please select below any types of Physical data you collect, have collected or would like to collect (Just leave the other data types as the default 'no answer'): [Left Right Leg Fat Difference]",8.0]
["Menstrual Cycle","G3_Q0001 [12]","Please select below any types of Physical data you collect, have collected or would like to collect (Just leave the other data types as the default 'no answer'): [Menstrual Cycle]",17.0]
["Migraine","G3_Q0001 [13]","Please select below any types of Physical data you collect, have collected or would like to collect (Just leave the other data types as the default 'no answer'): [Migraine]",13.0]
["Ovulation","G3_Q0001 [14]","Please select below any types of Physical data you collect, have collected or would like to collect (Just leave the other data types as the default 'no answer'): [Ovulation]",6.0]
["Perspiration","G3_Q0001 [15]","Please select below any types of Physical data you collect, have collected or would like to collect (Just leave the other data types as the default 'no answer'): [Perspiration]",11.0]
["Phenotypes (static physical traits e.g. eye colour, height, blood type)","G3_Q0001 [16]","Please select below any types of Physical data you collect, have collected or would like to collect (Just leave the other data types as the default 'no answer'): [Phenotypes (static physical traits e.g. eye colour, height, blood type)]",7.0]
["Sex","G3_Q0001 [17]","Please select below any types of Physical data you collect, have collected or would like to collect (Just leave the other data types as the default 'no answer'): [Sex]",18.0]
["Sleep","G3_Q0001 [18]","Please select below any types of Physical data you collect, have collected or would like to collect (Just leave the other data types as the default 'no answer'): [Sleep]",71.0]
["VO2max (maximal oxygen consumption)","G3_Q0001 [19]","Please select below any types of Physical data you collect, have collected or would like to collect (Just leave the other data types as the default 'no answer'): [VO2max (maximal oxygen consumption)]",29.0]
["Waist","G3_Q0001 [20]","Please select below any types of Physical data you collect, have collected or would like to collect (Just leave the other data types as the default 'no answer'): [Waist]",34.0]
["Weight","G3_Q0001 [21]","Please select below any types of Physical data you collect, have collected or would like to collect (Just leave the other data types as the default 'no answer'): [Weight]",74.0]
["Other (please specify in text box that will appear if option selected)","G3_Q0001 [22]","Please select below any types of Physical data you collect, have collected or would like to collect (Just leave the other data types as the default 'no answer'): [Other (please specify in text box that will appear if option selected)]",11.0]
["Please Specify OtherÂ ","G3_Q0002","Please Specify OtherÂ ",11.0]
["Allergies Data","G4_Q0001","Please answer the following supplementary questions about how and why you collect(ed):Â \n\n\tAllergiesÂ Data\n\n\t(Please feel free to leave any of the answers blank)\n\n\tHow long have you been or were you collecting this data?",6.0]
["Allergies Data","G4_Q0001 [Other]","Please answer the following supplementary questions about how and why you collect(ed):Â \n\n\tAllergiesÂ Data\n\n\t(Please feel free to leave any of the answers blank)\n\n\tHow long have you been or were you collecting this data? [Other]",0.0]
["Allergies Data","G4_Q0002 [SQ001]","Which tools do or have you used?Â (One per box)\n\n\tThis is a very importantÂ question so please fill in as many tools as you can (e.g.Â Fitbit, Zeo, pen and paper, spreadsheet, bodymedia). [Tool 1]",6.0]
["Allergies Data","G4_Q0002 [SQ002]","Which tools do or have you used?Â (One per box)\n\n\tThis is a very importantÂ question so please fill in as many tools as you can (e.g.Â Fitbit, Zeo, pen and paper, spreadsheet, bodymedia). [Tool 2]",5.0]
["Allergies Data","G4_Q0002 [SQ003]","Which tools do or have you used?Â (One per box)\n\n\tThis is a very importantÂ question so please fill in as many tools as you can (e.g.Â Fitbit, Zeo, pen and paper, spreadsheet, bodymedia). [Tool 3]",2.0]
["Allergies Data","G4_Q0002 [SQ004]","Which tools do or have you used?Â (One per box)\n\n\tThis is a very importantÂ question so please fill in as many tools as you can (e.g.Â Fitbit, Zeo, pen and paper, spreadsheet, bodymedia). [Tool 4]",1.0]
["Allergies Data","G4_Q0002 [SQ005]","Which tools do or have you used?Â (One per box)\n\n\tThis is a very importantÂ question so please fill in as many tools as you can (e.g.Â Fitbit, Zeo, pen and paper, spreadsheet, bodymedia). [Tool 5]",1.0]
["Allergies Data","G4_Q0003","Any additionalÂ tools or comments about them?",1.0]
["Allergies Data","G4_Q0004","Have you learnt, changed or improved anything by collecting this data? (Please leave blank if not)",4.0]
["Arterial Stiffness Data","G5_Q0001","Please answer the following supplementary questions about how and why you collect(ed):Â \n\n\tArterial StiffnessÂ Data\n\n\t(Please feel free to leave any of the answers blank)\n\n\tHow long have you been or were you collecting this data?",2.0]
["Arterial Stiffness Data","G5_Q0001 [Other]","Please answer the following supplementary questions about how and why you collect(ed):Â \n\n\tArterial StiffnessÂ Data\n\n\t(Please feel free to leave any of the answers blank)\n\n\tHow long have you been or were you collecting this data? [Other]",0.0]
["Arterial Stiffness Data","G5_Q0002 [SQ001]","Which tools do or have you used?Â (One per box)\n\n\tThis is a very importantÂ question so please fill in as many tools as you can (e.g.Â Fitbit, Zeo, pen and paper, spreadsheet, bodymedia). [Tool 1]",2.0]
["Arterial Stiffness Data","G5_Q0002 [SQ002]","Which tools do or have you used?Â (One per box)\n\n\tThis is a very importantÂ question so please fill in as many tools as you can (e.g.Â Fitbit, Zeo, pen and paper, spreadsheet, bodymedia). [Tool 2]",0.0]
["Arterial Stiffness Data","G5_Q0002 [SQ003]","Which tools do or have you used?Â (One per box)\n\n\tThis is a very importantÂ question so please fill in as many tools as you can (e.g.Â Fitbit, Zeo, pen and paper, spreadsheet, bodymedia). [Tool 3]",0.0]
["Arterial Stiffness Data","G5_Q0002 [SQ004]","Which tools do or have you used?Â (One per box)\n\n\tThis is a very importantÂ question so please fill in as many tools as you can (e.g.Â Fitbit, Zeo, pen and paper, spreadsheet, bodymedia). [Tool 4]",0.0]
["Arterial Stiffness Data","G5_Q0002 [SQ005]","Which tools do or have you used?Â (One per box)\n\n\tThis is a very importantÂ question so please fill in as many tools as you can (e.g.Â Fitbit, Zeo, pen and paper, spreadsheet, bodymedia). [Tool 5]",0.0]
["Arterial Stiffness Data","G5_Q0003","Any additionalÂ tools or comments about them?",0.0]
["Arterial Stiffness Data","G5_Q0004","Have you learnt, changed or improved anything by collecting this data? (Please leave blank if not)",0.0]
["Blood Glucose Data","G6_Q0001","Please answer the following supplementary questions about how and why you collect(ed):Â \n\n\tBlood Glucose Data\n\n\t(Please feel free to leave any of the answers blank)\n\n\tHow long have you been or were you collecting this data?",12.0]
["Blood Glucose Data","G6_Q0001 [Other]","Please answer the following supplementary questions about how and why you collect(ed):Â \n\n\tBlood Glucose Data\n\n\t(Please feel free to leave any of the answers blank)\n\n\tHow long have you been or were you collecting this data? [Other]",0.0]
["Blood Glucose Data","G6_Q0002 [SQ001]","Which tools do or have you used?Â (One per box)\n\n\tThis is a very importantÂ question so please fill in as many tools as you can (e.g.Â Fitbit, Zeo, pen and paper, spreadsheet, bodymedia). [Tool 1]",12.0]
["Blood Glucose Data","G6_Q0002 [SQ002]","Which tools do or have you used?Â (One per box)\n\n\tThis is a very importantÂ question so please fill in as many tools as you can (e.g.Â Fitbit, Zeo, pen and paper, spreadsheet, bodymedia). [Tool 2]",7.0]
["Blood Glucose Data","G6_Q0002 [SQ003]","Which tools do or have you used?Â (One per box)\n\n\tThis is a very importantÂ question so please fill in as many tools as you can (e.g.Â Fitbit, Zeo, pen and paper, spreadsheet, bodymedia). [Tool 3]",0.0]
["Blood Glucose Data","G6_Q0002 [SQ004]","Which tools do or have you used?Â (One per box)\n\n\tThis is a very importantÂ question so please fill in as many tools as you can (e.g.Â Fitbit, Zeo, pen and paper, spreadsheet, bodymedia). [Tool 4]",0.0]
["Blood Glucose Data","G6_Q0002 [SQ005]","Which tools do or have you used?Â (One per box)\n\n\tThis is a very importantÂ question so please fill in as many tools as you can (e.g.Â Fitbit, Zeo, pen and paper, spreadsheet, bodymedia). [Tool 5]",0.0]
["Blood Glucose Data","G6_Q0003","Any additionalÂ tools or comments about them?",2.0]
["Blood Glucose Data","G6_Q0004","Have you learnt, changed or improved anything by collecting this data? (Please leave blank if not)",9.0]
["Blood Pressure Data","G7_Q0001","Please answer the following supplementary questions about how and why you collect(ed):Â \n\n\tBlood PressureÂ Data\n\n\t(Please feel free to leave any of the answers blank)\n\n\tHow long have you been or were you collecting this data?",22.0]
["Blood Pressure Data","G7_Q0001 [Other]","Please answer the following supplementary questions about how and why you collect(ed):Â \n\n\tBlood PressureÂ Data\n\n\t(Please feel free to leave any of the answers blank)\n\n\tHow long have you been or were you collecting this data? [Other]",0.0]
["Blood Pressure Data","G7_Q0002 [SQ001]","Which tools do or have you used?Â (One per box)\n\n\tThis is a very importantÂ question so please fill in as many tools as you can (e.g.Â Fitbit, Zeo, pen and paper, spreadsheet, bodymedia). [Tool 1]",23.0]
["Blood Pressure Data","G7_Q0002 [SQ002]","Which tools do or have you used?Â (One per box)\n\n\tThis is a very importantÂ question so please fill in as many tools as you can (e.g.Â Fitbit, Zeo, pen and paper, spreadsheet, bodymedia). [Tool 2]",4.0]
["Blood Pressure Data","G7_Q0002 [SQ003]","Which tools do or have you used?Â (One per box)\n\n\tThis is a very importantÂ question so please fill in as many tools as you can (e.g.Â Fitbit, Zeo, pen and paper, spreadsheet, bodymedia). [Tool 3]",3.0]
["Blood Pressure Data","G7_Q0002 [SQ004]","Which tools do or have you used?Â (One per box)\n\n\tThis is a very importantÂ question so please fill in as many tools as you can (e.g.Â Fitbit, Zeo, pen and paper, spreadsheet, bodymedia). [Tool 4]",0.0]
["Blood Pressure Data","G7_Q0002 [SQ005]","Which tools do or have you used?Â (One per box)\n\n\tThis is a very importantÂ question so please fill in as many tools as you can (e.g.Â Fitbit, Zeo, pen and paper, spreadsheet, bodymedia). [Tool 5]",0.0]
["Blood Pressure Data","G7_Q0003","Any additionalÂ tools or comments about them?",3.0]
["Blood Pressure Data","G7_Q0004","Have you learnt, changed or improved anything by collecting this data? (Please leave blank if not)",11.0]
["Body Fat Data","G8_Q0001","Please answer the following supplementary questions about how and why you collect(ed):Â \n\n\tBody FatÂ Data\n\n\t(Please feel free to leave any of the answers blank)\n\n\tHow long have you been or were you collecting this data?",34.0]
["Body Fat Data","G8_Q0001 [Other]","Please answer the following supplementary questions about how and why you collect(ed):Â \n\n\tBody FatÂ Data\n\n\t(Please feel free to leave any of the answers blank)\n\n\tHow long have you been or were you collecting this data? [Other]",0.0]
["Body Fat Data","G8_Q0002 [SQ001]","Which tools do or have you used?Â (One per box)\n\n\tThis is a very importantÂ question so please fill in as many tools as you can (e.g.Â Fitbit, Zeo, pen and paper, spreadsheet, bodymedia). [Tool 1]",34.0]
["Body Fat Data","G8_Q0002 [SQ002]","Which tools do or have you used?Â (One per box)\n\n\tThis is a very importantÂ question so please fill in as many tools as you can (e.g.Â Fitbit, Zeo, pen and paper, spreadsheet, bodymedia). [Tool 2]",12.0]
["Body Fat Data","G8_Q0002 [SQ003]","Which tools do or have you used?Â (One per box)\n\n\tThis is a very importantÂ question so please fill in as many tools as you can (e.g.Â Fitbit, Zeo, pen and paper, spreadsheet, bodymedia). [Tool 3]",6.0]
["Body Fat Data","G8_Q0002 [SQ004]","Which tools do or have you used?Â (One per box)\n\n\tThis is a very importantÂ question so please fill in as many tools as you can (e.g.Â Fitbit, Zeo, pen and paper, spreadsheet, bodymedia). [Tool 4]",3.0]
["Body Fat Data","G8_Q0002 [SQ005]","Which tools do or have you used?Â (One per box)\n\n\tThis is a very importantÂ question so please fill in as many tools as you can (e.g.Â Fitbit, Zeo, pen and paper, spreadsheet, bodymedia). [Tool 5]",1.0]
["Body Fat Data","G8_Q0003","Any additionalÂ tools or comments about them?",5.0]
["Body Fat Data","G8_Q0004","Have you learnt, changed or improved anything by collecting this data? (Please leave blank if not)",19.0]
["Body Temperature Data","G9_Q0001","Please answer the following supplementary questions about how and why you collect(ed):Â \n\n\tBody TemperatureÂ Data\n\n\t(Please feel free to leave any of the answers blank)\n\n\tHow long have you been or were you collecting this data?",4.0]
["Body Temperature Data","G9_Q0001 [Other]","Please answer the following supplementary questions about how and why you collect(ed):Â \n\n\tBody TemperatureÂ Data\n\n\t(Please feel free to leave any of the answers blank)\n\n\tHow long have you been or were you collecting this data? [Other]",2.0]
["Body Temperature Data","G9_Q0002 [SQ001]","Which tools do or have you used?Â (One per box)\n\n\tThis is a very importantÂ question so please fill in as many tools as you can (e.g.Â Fitbit, Zeo, pen and paper, spreadsheet, bodymedia). [Tool 1]",3.0]
["Body Temperature Data","G9_Q0002 [SQ002]","Which tools do or have you used?Â (One per box)\n\n\tThis is a very importantÂ question so please fill in as many tools as you can (e.g.Â Fitbit, Zeo, pen and paper, spreadsheet, bodymedia). [Tool 2]",0.0]
["Body Temperature Data","G9_Q0002 [SQ003]","Which tools do or have you used?Â (One per box)\n\n\tThis is a very importantÂ question so please fill in as many tools as you can (e.g.Â Fitbit, Zeo, pen and paper, spreadsheet, bodymedia). [Tool 3]",0.0]
["Body Temperature Data","G9_Q0002 [SQ004]","Which tools do or have you used?Â (One per box)\n\n\tThis is a very importantÂ question so please fill in as many tools as you can (e.g.Â Fitbit, Zeo, pen and paper, spreadsheet, bodymedia). [Tool 4]",0.0]
["Body Temperature Data","G9_Q0002 [SQ005]","Which tools do or have you used?Â (One per box)\n\n\tThis is a very importantÂ question so please fill in as many tools as you can (e.g.Â Fitbit, Zeo, pen and paper, spreadsheet, bodymedia). [Tool 5]",0.0]
["Body Temperature Data","G9_Q0003","Any additionalÂ tools or comments about them?",1.0]
["Body Temperature Data","G9_Q0004","Have you learnt, changed or improved anything by collecting this data? (Please leave blank if not)",2.0]
["Brainwaves Data","G10_Q0001","Please answer the following supplementary questions about how and why you collect(ed):Â \n\n\tBrainwavesÂ Data\n\n\t(Please feel free to leave any of the answers blank)\n\n\tHow long have you been or were you collecting this data?",6.0]
["Brainwaves Data","G10_Q0001 [Other]","Please answer the following supplementary questions about how and why you collect(ed):Â \n\n\tBrainwavesÂ Data\n\n\t(Please feel free to leave any of the answers blank)\n\n\tHow long have you been or were you collecting this data? [Other]",1.0]
["Brainwaves Data","G10_Q0002 [SQ001]","Which tools do or have you used?Â (One per box)\n\n\tThis is a very importantÂ question so please fill in as many tools as you can (e.g.Â Fitbit, Zeo, pen and paper, spreadsheet, bodymedia). [Tool 1]",5.0]
["Brainwaves Data","G10_Q0002 [SQ002]","Which tools do or have you used?Â (One per box)\n\n\tThis is a very importantÂ question so please fill in as many tools as you can (e.g.Â Fitbit, Zeo, pen and paper, spreadsheet, bodymedia). [Tool 2]",0.0]
["Brainwaves Data","G10_Q0002 [SQ003]","Which tools do or have you used?Â (One per box)\n\n\tThis is a very importantÂ question so please fill in as many tools as you can (e.g.Â Fitbit, Zeo, pen and paper, spreadsheet, bodymedia). [Tool 3]",0.0]
["Brainwaves Data","G10_Q0002 [SQ004]","Which tools do or have you used?Â (One per box)\n\n\tThis is a very importantÂ question so please fill in as many tools as you can (e.g.Â Fitbit, Zeo, pen and paper, spreadsheet, bodymedia). [Tool 4]",0.0]
["Brainwaves Data","G10_Q0002 [SQ005]","Which tools do or have you used?Â (One per box)\n\n\tThis is a very importantÂ question so please fill in as many tools as you can (e.g.Â Fitbit, Zeo, pen and paper, spreadsheet, bodymedia). [Tool 5]",0.0]
["Brainwaves Data","G10_Q0003","Any additionalÂ tools or comments about them?",2.0]
["Brainwaves Data","G10_Q0004","Have you learnt, changed or improved anything by collecting this data? (Please leave blank if not)",4.0]
["Hair Data","G11_Q0001","Please answer the following supplementary questions about how and why you collect(ed):Â \n\n\tHairÂ Data\n\n\t(Please feel free to leave any of the answers blank)\n\n\tHow long have you been or were you collecting this data?",1.0]
["Hair Data","G11_Q0001 [Other]","Please answer the following supplementary questions about how and why you collect(ed):Â \n\n\tHairÂ Data\n\n\t(Please feel free to leave any of the answers blank)\n\n\tHow long have you been or were you collecting this data? [Other]",0.0]
["Hair Data","G11_Q0002 [SQ001]","Which tools do or have you used?Â (One per box)\n\n\tThis is a very importantÂ question so please fill in as many tools as you can (e.g.Â Fitbit, Zeo, pen and paper, spreadsheet, bodymedia). [Tool 1]",1.0]
["Hair Data","G11_Q0002 [SQ002]","Which tools do or have you used?Â (One per box)\n\n\tThis is a very importantÂ question so please fill in as many tools as you can (e.g.Â Fitbit, Zeo, pen and paper, spreadsheet, bodymedia). [Tool 2]",0.0]
["Hair Data","G11_Q0002 [SQ003]","Which tools do or have you used?Â (One per box)\n\n\tThis is a very importantÂ question so please fill in as many tools as you can (e.g.Â Fitbit, Zeo, pen and paper, spreadsheet, bodymedia). [Tool 3]",0.0]
["Hair Data","G11_Q0002 [SQ004]","Which tools do or have you used?Â (One per box)\n\n\tThis is a very importantÂ question so please fill in as many tools as you can (e.g.Â Fitbit, Zeo, pen and paper, spreadsheet, bodymedia). [Tool 4]",0.0]
["Hair Data","G11_Q0002 [SQ005]","Which tools do or have you used?Â (One per box)\n\n\tThis is a very importantÂ question so please fill in as many tools as you can (e.g.Â Fitbit, Zeo, pen and paper, spreadsheet, bodymedia). [Tool 5]",0.0]
["Hair Data","G11_Q0003","Any additionalÂ tools or comments about them?",0.0]
["Hair Data","G11_Q0004","Have you learnt, changed or improved anything by collecting this data? (Please leave blank if not)",0.0]
["Heart-Rate Data","G12_Q0001","Please answer the following supplementary questions about how and why you collect(ed):Â \n\n\tHeart-RateÂ Data\n\n\t(Please feel free to leave any of the answers blank)\n\n\tHow long have you been or were you collecting this data?",39.0]
["Heart-Rate Data","G12_Q0001 [Other]","Please answer the following supplementary questions about how and why you collect(ed):Â \n\n\tHeart-RateÂ Data\n\n\t(Please feel free to leave any of the answers blank)\n\n\tHow long have you been or were you collecting this data? [Other]",0.0]
["Heart-Rate Data","G12_Q0002 [SQ001]","Which tools do or have you used?Â (One per box)\n\n\tThis is a very importantÂ question so please fill in as many tools as you can (e.g.Â Fitbit, Zeo, pen and paper, spreadsheet, bodymedia). [Tool 1]",41.0]
["Heart-Rate Data","G12_Q0002 [SQ002]","Which tools do or have you used?Â (One per box)\n\n\tThis is a very importantÂ question so please fill in as many tools as you can (e.g.Â Fitbit, Zeo, pen and paper, spreadsheet, bodymedia). [Tool 2]",23.0]
["Heart-Rate Data","G12_Q0002 [SQ003]","Which tools do or have you used?Â (One per box)\n\n\tThis is a very importantÂ question so please fill in as many tools as you can (e.g.Â Fitbit, Zeo, pen and paper, spreadsheet, bodymedia). [Tool 3]",10.0]
["Heart-Rate Data","G12_Q0002 [SQ004]","Which tools do or have you used?Â (One per box)\n\n\tThis is a very importantÂ question so please fill in as many tools as you can (e.g.Â Fitbit, Zeo, pen and paper, spreadsheet, bodymedia). [Tool 4]",1.0]
["Heart-Rate Data","G12_Q0002 [SQ005]","Which tools do or have you used?Â (One per box)\n\n\tThis is a very importantÂ question so please fill in as many tools as you can (e.g.Â Fitbit, Zeo, pen and paper, spreadsheet, bodymedia). [Tool 5]",0.0]
["Heart-Rate Data","G12_Q0003","Any additionalÂ tools or comments about them?",5.0]
["Heart-Rate Data","G12_Q0004","Have you learnt, changed or improved anything by collecting this data? (Please leave blank if not)",22.0]
["Heart-Rate Variability Data","G13_Q0001","Please answer the following supplementary questions about how and why you collect(ed):Â \n\n\tHeart-Rate VariabilityÂ Data\n\n\t(Please feel free to leave any of the answers blank)\n\n\tHow long have you been or were you collecting this data?",13.0]
["Heart-Rate Variability Data","G13_Q0001 [Other]","Please answer the following supplementary questions about how and why you collect(ed):Â \n\n\tHeart-Rate VariabilityÂ Data\n\n\t(Please feel free to leave any of the answers blank)\n\n\tHow long have you been or were you collecting this data? [Other]",0.0]
["Heart-Rate Variability Data","G13_Q0002 [SQ001]","Which tools do or have you used?Â (One per box)\n\n\tThis is a very importantÂ question so please fill in as many tools as you can (e.g.Â Fitbit, Zeo, pen and paper, spreadsheet, bodymedia). [Tool 1]",13.0]
["Heart-Rate Variability Data","G13_Q0002 [SQ002]","Which tools do or have you used?Â (One per box)\n\n\tThis is a very importantÂ question so please fill in as many tools as you can (e.g.Â Fitbit, Zeo, pen and paper, spreadsheet, bodymedia). [Tool 2]",4.0]
["Heart-Rate Variability Data","G13_Q0002 [SQ003]","Which tools do or have you used?Â (One per box)\n\n\tThis is a very importantÂ question so please fill in as many tools as you can (e.g.Â Fitbit, Zeo, pen and paper, spreadsheet, bodymedia). [Tool 3]",2.0]
["Heart-Rate Variability Data","G13_Q0002 [SQ004]","Which tools do or have you used?Â (One per box)\n\n\tThis is a very importantÂ question so please fill in as many tools as you can (e.g.Â Fitbit, Zeo, pen and paper, spreadsheet, bodymedia). [Tool 4]",0.0]
["Heart-Rate Variability Data","G13_Q0002 [SQ005]","Which tools do or have you used?Â (One per box)\n\n\tThis is a very importantÂ question so please fill in as many tools as you can (e.g.Â Fitbit, Zeo, pen and paper, spreadsheet, bodymedia). [Tool 5]",0.0]
["Heart-Rate Variability Data","G13_Q0003","Any additionalÂ tools or comments about them?",4.0]
["Heart-Rate Variability Data","G13_Q0004","Have you learnt, changed or improved anything by collecting this data? (Please leave blank if not)",9.0]
["Left Right Leg Fat Difference Data","G14_Q0001","Please answer the following supplementary questions about how and why you collect(ed):Â \n\n\tLeft Right Leg Fat DifferenceÂ Data\n\n\t(Please feel free to leave any of the answers blank)\n\n\tHow long have you been or were you collecting this data?",4.0]
["Left Right Leg Fat Difference Data","G14_Q0001 [Other]","Please answer the following supplementary questions about how and why you collect(ed):Â \n\n\tLeft Right Leg Fat DifferenceÂ Data\n\n\t(Please feel free to leave any of the answers blank)\n\n\tHow long have you been or were you collecting this data? [Other]",0.0]
["Left Right Leg Fat Difference Data","G14_Q0002 [SQ001]","Which tools do or have you used?Â (One per box)\n\n\tThis is a very importantÂ question so please fill in as many tools as you can (e.g.Â Fitbit, Zeo, pen and paper, spreadsheet, bodymedia). [Tool 1]",4.0]
["Left Right Leg Fat Difference Data","G14_Q0002 [SQ002]","Which tools do or have you used?Â (One per box)\n\n\tThis is a very importantÂ question so please fill in as many tools as you can (e.g.Â Fitbit, Zeo, pen and paper, spreadsheet, bodymedia). [Tool 2]",3.0]
["Left Right Leg Fat Difference Data","G14_Q0002 [SQ003]","Which tools do or have you used?Â (One per box)\n\n\tThis is a very importantÂ question so please fill in as many tools as you can (e.g.Â Fitbit, Zeo, pen and paper, spreadsheet, bodymedia). [Tool 3]",1.0]
["Left Right Leg Fat Difference Data","G14_Q0002 [SQ004]","Which tools do or have you used?Â (One per box)\n\n\tThis is a very importantÂ question so please fill in as many tools as you can (e.g.Â Fitbit, Zeo, pen and paper, spreadsheet, bodymedia). [Tool 4]",0.0]
["Left Right Leg Fat Difference Data","G14_Q0002 [SQ005]","Which tools do or have you used?Â (One per box)\n\n\tThis is a very importantÂ question so please fill in as many tools as you can (e.g.Â Fitbit, Zeo, pen and paper, spreadsheet, bodymedia). [Tool 5]",0.0]
["Left Right Leg Fat Difference Data","G14_Q0003","Any additionalÂ tools or comments about them?",2.0]
["Left Right Leg Fat Difference Data","G14_Q0004","Have you learnt, changed or improved anything by collecting this data? (Please leave blank if not)",3.0]
["Menstrual Cycle Data","G15_Q0001","Please answer the following supplementary questions about how and why you collect(ed):Â \n\n\tMenstrual CycleÂ Data\n\n\t(Please feel free to leave any of the answers blank)\n\n\tHow long have you been or were you collecting this data?",14.0]
["Menstrual Cycle Data","G15_Q0001 [Other]","Please answer the following supplementary questions about how and why you collect(ed):Â \n\n\tMenstrual CycleÂ Data\n\n\t(Please feel free to leave any of the answers blank)\n\n\tHow long have you been or were you collecting this data? [Other]",0.0]
["Menstrual Cycle Data","G15_Q0002 [SQ001]","Which tools do or have you used?Â (One per box)\n\n\tThis is a very importantÂ question so please fill in as many tools as you can (e.g.Â Fitbit, Zeo, pen and paper, spreadsheet, bodymedia). [Tool 1]",14.0]
["Menstrual Cycle Data","G15_Q0002 [SQ002]","Which tools do or have you used?Â (One per box)\n\n\tThis is a very importantÂ question so please fill in as many tools as you can (e.g.Â Fitbit, Zeo, pen and paper, spreadsheet, bodymedia). [Tool 2]",2.0]
["Menstrual Cycle Data","G15_Q0002 [SQ003]","Which tools do or have you used?Â (One per box)\n\n\tThis is a very importantÂ question so please fill in as many tools as you can (e.g.Â Fitbit, Zeo, pen and paper, spreadsheet, bodymedia). [Tool 3]",0.0]
["Menstrual Cycle Data","G15_Q0002 [SQ004]","Which tools do or have you used?Â (One per box)\n\n\tThis is a very importantÂ question so please fill in as many tools as you can (e.g.Â Fitbit, Zeo, pen and paper, spreadsheet, bodymedia). [Tool 4]",0.0]
["Menstrual Cycle Data","G15_Q0002 [SQ005]","Which tools do or have you used?Â (One per box)\n\n\tThis is a very importantÂ question so please fill in as many tools as you can (e.g.Â Fitbit, Zeo, pen and paper, spreadsheet, bodymedia). [Tool 5]",0.0]
["Menstrual Cycle Data","G15_Q0003","Any additionalÂ tools or comments about them?",5.0]
["Menstrual Cycle Data","G15_Q0004","Have you learnt, changed or improved anything by collecting this data? (Please leave blank if not)",7.0]
["Migraine Data","G16_Q0001","Please answer the following supplementary questions about how and why you collect(ed):Â \n\n\tMigraineÂ Data\n\n\t(Please feel free to leave any of the answers blank)\n\n\tHow long have you been or were you collecting this data?",6.0]
["Migraine Data","G16_Q0001 [Other]","Please answer the following supplementary questions about how and why you collect(ed):Â \n\n\tMigraineÂ Data\n\n\t(Please feel free to leave any of the answers blank)\n\n\tHow long have you been or were you collecting this data? [Other]",0.0]
["Migraine Data","G16_Q0002 [SQ001]","Which tools do or have you used?Â (One per box)\n\n\tThis is a very importantÂ question so please fill in as many tools as you can (e.g.Â Fitbit, Zeo, pen and paper, spreadsheet, bodymedia). [Tool 1]",6.0]
["Migraine Data","G16_Q0002 [SQ002]","Which tools do or have you used?Â (One per box)\n\n\tThis is a very importantÂ question so please fill in as many tools as you can (e.g.Â Fitbit, Zeo, pen and paper, spreadsheet, bodymedia). [Tool 2]",3.0]
["Migraine Data","G16_Q0002 [SQ003]","Which tools do or have you used?Â (One per box)\n\n\tThis is a very importantÂ question so please fill in as many tools as you can (e.g.Â Fitbit, Zeo, pen and paper, spreadsheet, bodymedia). [Tool 3]",2.0]
["Migraine Data","G16_Q0002 [SQ004]","Which tools do or have you used?Â (One per box)\n\n\tThis is a very importantÂ question so please fill in as many tools as you can (e.g.Â Fitbit, Zeo, pen and paper, spreadsheet, bodymedia). [Tool 4]",0.0]
["Migraine Data","G16_Q0002 [SQ005]","Which tools do or have you used?Â (One per box)\n\n\tThis is a very importantÂ question so please fill in as many tools as you can (e.g.Â Fitbit, Zeo, pen and paper, spreadsheet, bodymedia). [Tool 5]",0.0]
["Migraine Data","G16_Q0003","Any additionalÂ tools or comments about them?",2.0]
["Migraine Data","G16_Q0004","Have you learnt, changed or improved anything by collecting this data? (Please leave blank if not)",5.0]
["Ovulation Data","G17_Q0001","Please answer the following supplementary questions about how and why you collect(ed):Â \n\n\tOvulationÂ Data\n\n\t(Please feel free to leave any of the answers blank)\n\n\tHow long have you been or were you collecting this data?",5.0]
["Ovulation Data","G17_Q0001 [Other]","Please answer the following supplementary questions about how and why you collect(ed):Â \n\n\tOvulationÂ Data\n\n\t(Please feel free to leave any of the answers blank)\n\n\tHow long have you been or were you collecting this data? [Other]",0.0]
["Ovulation Data","G17_Q0002 [SQ001]","Which tools do or have you used?Â (One per box)\n\n\tThis is a very importantÂ question so please fill in as many tools as you can (e.g.Â Fitbit, Zeo, pen and paper, spreadsheet, bodymedia). [Tool 1]",5.0]
["Ovulation Data","G17_Q0002 [SQ002]","Which tools do or have you used?Â (One per box)\n\n\tThis is a very importantÂ question so please fill in as many tools as you can (e.g.Â Fitbit, Zeo, pen and paper, spreadsheet, bodymedia). [Tool 2]",1.0]
["Ovulation Data","G17_Q0002 [SQ003]","Which tools do or have you used?Â (One per box)\n\n\tThis is a very importantÂ question so please fill in as many tools as you can (e.g.Â Fitbit, Zeo, pen and paper, spreadsheet, bodymedia). [Tool 3]",0.0]
["Ovulation Data","G17_Q0002 [SQ004]","Which tools do or have you used?Â (One per box)\n\n\tThis is a very importantÂ question so please fill in as many tools as you can (e.g.Â Fitbit, Zeo, pen and paper, spreadsheet, bodymedia). [Tool 4]",0.0]
["Ovulation Data","G17_Q0002 [SQ005]","Which tools do or have you used?Â (One per box)\n\n\tThis is a very importantÂ question so please fill in as many tools as you can (e.g.Â Fitbit, Zeo, pen and paper, spreadsheet, bodymedia). [Tool 5]",0.0]
["Ovulation Data","G17_Q0003","Any additionalÂ tools or comments about them?",1.0]
["Ovulation Data","G17_Q0004","Have you learnt, changed or improved anything by collecting this data? (Please leave blank if not)",1.0]
["Perspiration Data","G18_Q0001","Please answer the following supplementary questions about how and why you collect(ed):Â \n\n\tPerspirationÂ Data\n\n\t(Please feel free to leave any of the answers blank)\n\n\tHow long have you been or were you collecting this data?",2.0]
["Perspiration Data","G18_Q0001 [Other]","Please answer the following supplementary questions about how and why you collect(ed):Â \n\n\tPerspirationÂ Data\n\n\t(Please feel free to leave any of the answers blank)\n\n\tHow long have you been or were you collecting this data? [Other]",0.0]
["Perspiration Data","G18_Q0002 [SQ001]","Which tools do or have you used?Â (One per box)\n\n\tThis is a very importantÂ question so please fill in as many tools as you can (e.g.Â Fitbit, Zeo, pen and paper, spreadsheet, bodymedia). [Tool 1]",2.0]
["Perspiration Data","G18_Q0002 [SQ002]","Which tools do or have you used?Â (One per box)\n\n\tThis is a very importantÂ question so please fill in as many tools as you can (e.g.Â Fitbit, Zeo, pen and paper, spreadsheet, bodymedia). [Tool 2]",0.0]
["Perspiration Data","G18_Q0002 [SQ003]","Which tools do or have you used?Â (One per box)\n\n\tThis is a very importantÂ question so please fill in as many tools as you can (e.g.Â Fitbit, Zeo, pen and paper, spreadsheet, bodymedia). [Tool 3]",0.0]
["Perspiration Data","G18_Q0002 [SQ004]","Which tools do or have you used?Â (One per box)\n\n\tThis is a very importantÂ question so please fill in as many tools as you can (e.g.Â Fitbit, Zeo, pen and paper, spreadsheet, bodymedia). [Tool 4]",0.0]
["Perspiration Data","G18_Q0002 [SQ005]","Which tools do or have you used?Â (One per box)\n\n\tThis is a very importantÂ question so please fill in as many tools as you can (e.g.Â Fitbit, Zeo, pen and paper, spreadsheet, bodymedia). [Tool 5]",0.0]
["Perspiration Data","G18_Q0003","Any additionalÂ tools or comments about them?",0.0]
["Perspiration Data","G18_Q0004","Have you learnt, changed or improved anything by collecting this data? (Please leave blank if not)",2.0]
["Phenotype Data (static physical traits e.g. eye colour)","G19_Q0001","Please answer the following supplementary questions about how and why you collect(ed):Â \n\n\tPhenotype DataÂ (static physical traits e.g. eye colour)\n\n\t(Please feel free to leave any of the answers blank)\n\n\tHow long have you been or were you collecting this data?",3.0]
["Phenotype Data (static physical traits e.g. eye colour)","G19_Q0001 [Other]","Please answer the following supplementary questions about how and why you collect(ed):Â \n\n\tPhenotype DataÂ (static physical traits e.g. eye colour)\n\n\t(Please feel free to leave any of the answers blank)\n\n\tHow long have you been or were you collecting this data? [Other]",0.0]
["Phenotype Data (static physical traits e.g. eye colour)","G19_Q0002 [SQ001]","Which tools do or have you used?Â (One per box)\n\n\tThis is a very importantÂ question so please fill in as many tools as you can (e.g.Â Fitbit, Zeo, pen and paper, spreadsheet, bodymedia). [Tool 1]",3.0]
["Phenotype Data (static physical traits e.g. eye colour)","G19_Q0002 [SQ002]","Which tools do or have you used?Â (One per box)\n\n\tThis is a very importantÂ question so please fill in as many tools as you can (e.g.Â Fitbit, Zeo, pen and paper, spreadsheet, bodymedia). [Tool 2]",0.0]
["Phenotype Data (static physical traits e.g. eye colour)","G19_Q0002 [SQ003]","Which tools do or have you used?Â (One per box)\n\n\tThis is a very importantÂ question so please fill in as many tools as you can (e.g.Â Fitbit, Zeo, pen and paper, spreadsheet, bodymedia). [Tool 3]",0.0]
["Phenotype Data (static physical traits e.g. eye colour)","G19_Q0002 [SQ004]","Which tools do or have you used?Â (One per box)\n\n\tThis is a very importantÂ question so please fill in as many tools as you can (e.g.Â Fitbit, Zeo, pen and paper, spreadsheet, bodymedia). [Tool 4]",0.0]
["Phenotype Data (static physical traits e.g. eye colour)","G19_Q0002 [SQ005]","Which tools do or have you used?Â (One per box)\n\n\tThis is a very importantÂ question so please fill in as many tools as you can (e.g.Â Fitbit, Zeo, pen and paper, spreadsheet, bodymedia). [Tool 5]",0.0]
["Phenotype Data (static physical traits e.g. eye colour)","G19_Q0003","Any additionalÂ tools or comments about them?",0.0]
["Phenotype Data (static physical traits e.g. eye colour)","G19_Q0004","Have you learnt, changed or improved anything by collecting this data? (Please leave blank if not)",0.0]
["Sex Data","G20_Q0001","Please answer the following supplementary questions about how and why you collect(ed):Â \n\n\tSexÂ Data\n\n\t(Please feel free to leave any of the answers blank)\n\n\tHow long have you been or were you collecting this data?",7.0]
["Sex Data","G20_Q0001 [Other]","Please answer the following supplementary questions about how and why you collect(ed):Â \n\n\tSexÂ Data\n\n\t(Please feel free to leave any of the answers blank)\n\n\tHow long have you been or were you collecting this data? [Other]",0.0]
["Sex Data","G20_Q0002 [SQ001]","Which tools do or have you used?Â (One per box)\n\n\tThis is a very importantÂ question so please fill in as many tools as you can (e.g.Â Fitbit, Zeo, pen and paper, spreadsheet, bodymedia). [Tool 1]",7.0]
["Sex Data","G20_Q0002 [SQ002]","Which tools do or have you used?Â (One per box)\n\n\tThis is a very importantÂ question so please fill in as many tools as you can (e.g.Â Fitbit, Zeo, pen and paper, spreadsheet, bodymedia). [Tool 2]",3.0]
["Sex Data","G20_Q0002 [SQ003]","Which tools do or have you used?Â (One per box)\n\n\tThis is a very importantÂ question so please fill in as many tools as you can (e.g.Â Fitbit, Zeo, pen and paper, spreadsheet, bodymedia). [Tool 3]",1.0]
["Sex Data","G20_Q0002 [SQ004]","Which tools do or have you used?Â (One per box)\n\n\tThis is a very importantÂ question so please fill in as many tools as you can (e.g.Â Fitbit, Zeo, pen and paper, spreadsheet, bodymedia). [Tool 4]",0.0]
["Sex Data","G20_Q0002 [SQ005]","Which tools do or have you used?Â (One per box)\n\n\tThis is a very importantÂ question so please fill in as many tools as you can (e.g.Â Fitbit, Zeo, pen and paper, spreadsheet, bodymedia). [Tool 5]",0.0]
["Sex Data","G20_Q0003","Any additionalÂ tools or comments about them?",3.0]
["Sex Data","G20_Q0004","Have you learnt, changed or improved anything by collecting this data? (Please leave blank if not)",3.0]
["Sleep Data","G21_Q0001","Please answer the following supplementary questions about how and why you collect(ed):Â \n\n\tSleepÂ Data\n\n\t(Please feel free to leave any of the answers blank)\n\n\tHow long have you been or were you collecting this data?",53.0]
["Sleep Data","G21_Q0001 [Other]","Please answer the following supplementary questions about how and why you collect(ed):Â \n\n\tSleepÂ Data\n\n\t(Please feel free to leave any of the answers blank)\n\n\tHow long have you been or were you collecting this data? [Other]",0.0]
["Sleep Data","G21_Q0002 [SQ001]","Which tools do or have you used?Â (One per box)\n\n\tThis is a very importantÂ question so please fill in as many tools as you can (e.g.Â Fitbit, Sleep Cycle, Zeo, pen and paper, spreadsheet, bodymedia). [Tool 1]",53.0]
["Sleep Data","G21_Q0002 [SQ002]","Which tools do or have you used?Â (One per box)\n\n\tThis is a very importantÂ question so please fill in as many tools as you can (e.g.Â Fitbit, Sleep Cycle, Zeo, pen and paper, spreadsheet, bodymedia). [Tool 2]",20.0]
["Sleep Data","G21_Q0002 [SQ003]","Which tools do or have you used?Â (One per box)\n\n\tThis is a very importantÂ question so please fill in as many tools as you can (e.g.Â Fitbit, Sleep Cycle, Zeo, pen and paper, spreadsheet, bodymedia). [Tool 3]",6.0]
["Sleep Data","G21_Q0002 [SQ004]","Which tools do or have you used?Â (One per box)\n\n\tThis is a very importantÂ question so please fill in as many tools as you can (e.g.Â Fitbit, Sleep Cycle, Zeo, pen and paper, spreadsheet, bodymedia). [Tool 4]",2.0]
["Sleep Data","G21_Q0002 [SQ005]","Which tools do or have you used?Â (One per box)\n\n\tThis is a very importantÂ question so please fill in as many tools as you can (e.g.Â Fitbit, Sleep Cycle, Zeo, pen and paper, spreadsheet, bodymedia). [Tool 5]",1.0]
["Sleep Data","G21_Q0003","Any additionalÂ tools or comments about them?",16.0]
["Sleep Data","G21_Q0004","Have you learnt, changed or improved anything by collecting this data? (Please leave blank if not)",31.0]
["VO2max Data","G22_Q0001","Please answer the following supplementary questions about how and why you collect(ed):Â \n\n\tVO2maxÂ Data\n\n\t(Please feel free to leave any of the answers blank)\n\n\tHow long have you been or were you collecting this data?",9.0]
["VO2max Data","G22_Q0001 [Other]","Please answer the following supplementary questions about how and why you collect(ed):Â \n\n\tVO2maxÂ Data\n\n\t(Please feel free to leave any of the answers blank)\n\n\tHow long have you been or were you collecting this data? [Other]",0.0]
["VO2max Data","G22_Q0002 [SQ001]","Which tools do or have you used?Â (One per box)\n\n\tThis is a very importantÂ question so please fill in as many tools as you can (e.g.Â Fitbit, Zeo, pen and paper, spreadsheet, bodymedia). [Tool 1]",9.0]
["VO2max Data","G22_Q0002 [SQ002]","Which tools do or have you used?Â (One per box)\n\n\tThis is a very importantÂ question so please fill in as many tools as you can (e.g.Â Fitbit, Zeo, pen and paper, spreadsheet, bodymedia). [Tool 2]",3.0]
["VO2max Data","G22_Q0002 [SQ003]","Which tools do or have you used?Â (One per box)\n\n\tThis is a very importantÂ question so please fill in as many tools as you can (e.g.Â Fitbit, Zeo, pen and paper, spreadsheet, bodymedia). [Tool 3]",2.0]
["VO2max Data","G22_Q0002 [SQ004]","Which tools do or have you used?Â (One per box)\n\n\tThis is a very importantÂ question so please fill in as many tools as you can (e.g.Â Fitbit, Zeo, pen and paper, spreadsheet, bodymedia). [Tool 4]",1.0]
["VO2max Data","G22_Q0002 [SQ005]","Which tools do or have you used?Â (One per box)\n\n\tThis is a very importantÂ question so please fill in as many tools as you can (e.g.Â Fitbit, Zeo, pen and paper, spreadsheet, bodymedia). [Tool 5]",0.0]
["VO2max Data","G22_Q0003","Any additionalÂ tools or comments about them?",4.0]
["VO2max Data","G22_Q0004","Have you learnt, changed or improved anything by collecting this data? (Please leave blank if not)",6.0]
["Waist Data","G23_Q0001","Please answer the following supplementary questions about how and why you collect(ed):Â \n\n\tWaistÂ Data\n\n\t(Please feel free to leave any of the answers blank)\n\n\tHow long have you been or were you collecting this data?",20.0]
["Waist Data","G23_Q0001 [Other]","Please answer the following supplementary questions about how and why you collect(ed):Â \n\n\tWaistÂ Data\n\n\t(Please feel free to leave any of the answers blank)\n\n\tHow long have you been or were you collecting this data? [Other]",0.0]
["Waist Data","G23_Q0002 [SQ001]","Which tools do or have you used?Â (One per box)\n\n\tThis is a very importantÂ question so please fill in as many tools as you can (e.g.Â Fitbit, Zeo, pen and paper, spreadsheet, bodymedia). [Tool 1]",20.0]
["Waist Data","G23_Q0002 [SQ002]","Which tools do or have you used?Â (One per box)\n\n\tThis is a very importantÂ question so please fill in as many tools as you can (e.g.Â Fitbit, Zeo, pen and paper, spreadsheet, bodymedia). [Tool 2]",6.0]
["Waist Data","G23_Q0002 [SQ003]","Which tools do or have you used?Â (One per box)\n\n\tThis is a very importantÂ question so please fill in as many tools as you can (e.g.Â Fitbit, Zeo, pen and paper, spreadsheet, bodymedia). [Tool 3]",0.0]
["Waist Data","G23_Q0002 [SQ004]","Which tools do or have you used?Â (One per box)\n\n\tThis is a very importantÂ question so please fill in as many tools as you can (e.g.Â Fitbit, Zeo, pen and paper, spreadsheet, bodymedia). [Tool 4]",0.0]
["Waist Data","G23_Q0002 [SQ005]","Which tools do or have you used?Â (One per box)\n\n\tThis is a very importantÂ question so please fill in as many tools as you can (e.g.Â Fitbit, Zeo, pen and paper, spreadsheet, bodymedia). [Tool 5]",0.0]
["Waist Data","G23_Q0003","Any additionalÂ tools or comments about them?",5.0]
["Waist Data","G23_Q0004","Have you learnt, changed or improved anything by collecting this data? (Please leave blank if not)",12.0]
["Weight Data","G24_Q0001","Please answer the following supplementary questions about how and why you collect(ed):Â \n\n\tWeightÂ Data\n\n\t(Please feel free to leave any of the answers blank)\n\n\tHow long have you been or were you collecting this data?",65.0]
["Weight Data","G24_Q0001 [Other]","Please answer the following supplementary questions about how and why you collect(ed):Â \n\n\tWeightÂ Data\n\n\t(Please feel free to leave any of the answers blank)\n\n\tHow long have you been or were you collecting this data? [Other]",1.0]
["Weight Data","G24_Q0002 [SQ001]","Which tools do or have you used?Â (One per box)\n\n\tThis is a very importantÂ question so please fill in as many tools as you can (e.g.Â Withings Scale, Fitbit Aria, pen and paper, spreadsheet). [Tool 1]",67.0]
["Weight Data","G24_Q0002 [SQ002]","Which tools do or have you used?Â (One per box)\n\n\tThis is a very importantÂ question so please fill in as many tools as you can (e.g.Â Withings Scale, Fitbit Aria, pen and paper, spreadsheet). [Tool 2]",22.0]
["Weight Data","G24_Q0002 [SQ003]","Which tools do or have you used?Â (One per box)\n\n\tThis is a very importantÂ question so please fill in as many tools as you can (e.g.Â Withings Scale, Fitbit Aria, pen and paper, spreadsheet). [Tool 3]",9.0]
["Weight Data","G24_Q0002 [SQ004]","Which tools do or have you used?Â (One per box)\n\n\tThis is a very importantÂ question so please fill in as many tools as you can (e.g.Â Withings Scale, Fitbit Aria, pen and paper, spreadsheet). [Tool 4]",0.0]
["Weight Data","G24_Q0002 [SQ005]","Which tools do or have you used?Â (One per box)\n\n\tThis is a very importantÂ question so please fill in as many tools as you can (e.g.Â Withings Scale, Fitbit Aria, pen and paper, spreadsheet). [Tool 5]",0.0]
["Weight Data","G24_Q0003","Any additionalÂ tools or comments about them?",10.0]
["Weight Data","G24_Q0004","Have you learnt, changed or improved anything by collecting this data? (Please leave blank if not)",38.0]
["Physical Data selected as 'Other'","G25_Q0001","Please answer the following supplementary questions about how and why you collect(ed):Â \n\n\tPhysical Data selected as 'Other'\n\n\t(Please feel free to leave any of the answers blank)\n\n\tHow long have you been or were you collecting this data?",8.0]
["Physical Data selected as 'Other'","G25_Q0001 [Other]","Please answer the following supplementary questions about how and why you collect(ed):Â \n\n\tPhysical Data selected as 'Other'\n\n\t(Please feel free to leave any of the answers blank)\n\n\tHow long have you been or were you collecting this data? [Other]",0.0]
["Physical Data selected as 'Other'","G25_Q0002 [SQ001]","Which tools do or have you used?Â (One per box)\n\n\tThis is a very importantÂ question so please fill in as many tools as you can (e.g.Â Fitbit, Zeo, pen and paper, spreadsheet, bodymedia). [Tool 1]",7.0]
["Physical Data selected as 'Other'","G25_Q0002 [SQ002]","Which tools do or have you used?Â (One per box)\n\n\tThis is a very importantÂ question so please fill in as many tools as you can (e.g.Â Fitbit, Zeo, pen and paper, spreadsheet, bodymedia). [Tool 2]",3.0]
["Physical Data selected as 'Other'","G25_Q0002 [SQ003]","Which tools do or have you used?Â (One per box)\n\n\tThis is a very importantÂ question so please fill in as many tools as you can (e.g.Â Fitbit, Zeo, pen and paper, spreadsheet, bodymedia). [Tool 3]",1.0]
["Physical Data selected as 'Other'","G25_Q0002 [SQ004]","Which tools do or have you used?Â (One per box)\n\n\tThis is a very importantÂ question so please fill in as many tools as you can (e.g.Â Fitbit, Zeo, pen and paper, spreadsheet, bodymedia). [Tool 4]",1.0]
["Physical Data selected as 'Other'","G25_Q0002 [SQ005]","Which tools do or have you used?Â (One per box)\n\n\tThis is a very importantÂ question so please fill in as many tools as you can (e.g.Â Fitbit, Zeo, pen and paper, spreadsheet, bodymedia). [Tool 5]",1.0]
["Physical Data selected as 'Other'","G25_Q0003","Any additionalÂ tools or comments about them?",3.0]
["Physical Data selected as 'Other'","G25_Q0004","Have you learnt, changed or improved anything by collecting this data? (Please leave blank if not)",7.0]
["[Creativity","G26_Q0001 [1]","Please select below any types of Emotional & Mental data you collect, have collected or would like to collect (Just leave the other data types as the default 'no answer'): [Creativity]",9.0]
["[Mood / Happiness","G26_Q0001 [2]","Please select below any types of Emotional & Mental data you collect, have collected or would like to collect (Just leave the other data types as the default 'no answer'): [Mood / Happiness]",42.0]
["[Intelligence (IQ, Brain-Training)","G26_Q0001 [3]","Please select below any types of Emotional & Mental data you collect, have collected or would like to collect (Just leave the other data types as the default 'no answer'): [Intelligence (IQ, Brain-Training)]",17.0]
["[Meditation","G26_Q0001 [4]","Please select below any types of Emotional & Mental data you collect, have collected or would like to collect (Just leave the other data types as the default 'no answer'): [Meditation]",17.0]
["[Psychometrics  (Personality profiling, MBTI etc.)","G26_Q0001 [5]","Please select below any types of Emotional & Mental data you collect, have collected or would like to collect (Just leave the other data types as the default 'no answer'): [Psychometrics  (Personality profiling, MBTI etc.)]",20.0]
["[Other (please specify in text box that will appear if option selected)","G26_Q0001 [6]","Please select below any types of Emotional & Mental data you collect, have collected or would like to collect (Just leave the other data types as the default 'no answer'): [Other (please specify in text box that will appear if option selected)]",7.0]
[" - Please Specify OtherÂ ","G26_Q0002","Please Specify OtherÂ ",7.0]
["Creativity Data","G27_Q0001","Please answer the following supplementary questions about how and why you collect(ed):Â \n\n\tCreativityÂ Data\n\n\t(Please feel free to leave any of the answers blank)\n\n\tHow long have you been or were you collecting this data?",1.0]
["Creativity Data","G27_Q0001 [Other]","Please answer the following supplementary questions about how and why you collect(ed):Â \n\n\tCreativityÂ Data\n\n\t(Please feel free to leave any of the answers blank)\n\n\tHow long have you been or were you collecting this data? [Other]",0.0]
["Creativity Data","G27_Q0002 [SQ001]","Which tools do or have you used?Â (One per box)\n\n\tThis is a very importantÂ question so please fill in as many tools as you can (e.g.Â Fitbit, Zeo, pen and paper, spreadsheet, bodymedia). [Tool 1]",1.0]
["Creativity Data","G27_Q0002 [SQ002]","Which tools do or have you used?Â (One per box)\n\n\tThis is a very importantÂ question so please fill in as many tools as you can (e.g.Â Fitbit, Zeo, pen and paper, spreadsheet, bodymedia). [Tool 2]",1.0]
["Creativity Data","G27_Q0002 [SQ003]","Which tools do or have you used?Â (One per box)\n\n\tThis is a very importantÂ question so please fill in as many tools as you can (e.g.Â Fitbit, Zeo, pen and paper, spreadsheet, bodymedia). [Tool 3]",0.0]
["Creativity Data","G27_Q0002 [SQ004]","Which tools do or have you used?Â (One per box)\n\n\tThis is a very importantÂ question so please fill in as many tools as you can (e.g.Â Fitbit, Zeo, pen and paper, spreadsheet, bodymedia). [Tool 4]",0.0]
["Creativity Data","G27_Q0002 [SQ005]","Which tools do or have you used?Â (One per box)\n\n\tThis is a very importantÂ question so please fill in as many tools as you can (e.g.Â Fitbit, Zeo, pen and paper, spreadsheet, bodymedia). [Tool 5]",0.0]
["Creativity Data","G27_Q0003","Any additionalÂ tools or comments about them?",0.0]
["Creativity Data","G27_Q0004","Have you learnt, changed or improved anything by collecting this data? (Please leave blank if not)",0.0]
["Mood / Happiness Data","G28_Q0001","Please answer the following supplementary questions about how and why you collect(ed):Â \n\n\tMood / HappinessÂ Data\n\n\t(Please feel free to leave any of the answers blank)\n\n\tHow long have you been or were you collecting this data?",30.0]
["Mood / Happiness Data","G28_Q0001 [Other]","Please answer the following supplementary questions about how and why you collect(ed):Â \n\n\tMood / HappinessÂ Data\n\n\t(Please feel free to leave any of the answers blank)\n\n\tHow long have you been or were you collecting this data? [Other]",0.0]
["Mood / Happiness Data","G28_Q0002 [SQ001]","Which tools do or have you used?Â (One per box)\n\n\tThis is a very importantÂ question so please fill in as many tools as you can (e.g.Â Fitbit, Zeo, pen and paper, spreadsheet, bodymedia). [Tool 1]",30.0]
["Mood / Happiness Data","G28_Q0002 [SQ002]","Which tools do or have you used?Â (One per box)\n\n\tThis is a very importantÂ question so please fill in as many tools as you can (e.g.Â Fitbit, Zeo, pen and paper, spreadsheet, bodymedia). [Tool 2]",18.0]
["Mood / Happiness Data","G28_Q0002 [SQ003]","Which tools do or have you used?Â (One per box)\n\n\tThis is a very importantÂ question so please fill in as many tools as you can (e.g.Â Fitbit, Zeo, pen and paper, spreadsheet, bodymedia). [Tool 3]",7.0]
["Mood / Happiness Data","G28_Q0002 [SQ004]","Which tools do or have you used?Â (One per box)\n\n\tThis is a very importantÂ question so please fill in as many tools as you can (e.g.Â Fitbit, Zeo, pen and paper, spreadsheet, bodymedia). [Tool 4]",2.0]
["Mood / Happiness Data","G28_Q0002 [SQ005]","Which tools do or have you used?Â (One per box)\n\n\tThis is a very importantÂ question so please fill in as many tools as you can (e.g.Â Fitbit, Zeo, pen and paper, spreadsheet, bodymedia). [Tool 5]",0.0]
["Mood / Happiness Data","G28_Q0003","Any additionalÂ tools or comments about them?",7.0]
["Mood / Happiness Data","G28_Q0004","Have you learnt, changed or improved anything by collecting this data? (Please leave blank if not)",18.0]
["Intelligence Data (IQ, Brain-Training)","G29_Q0001","Please answer the following supplementary questions about how and why you collect(ed):Â \n\n\tIntelligenceÂ DataÂ (IQ, Brain-Training)\n\n\t(Please feel free to leave any of the answers blank)\n\n\tHow long have you been or were you collecting this data?",8.0]
["Intelligence Data (IQ, Brain-Training)","G29_Q0001 [Other]","Please answer the following supplementary questions about how and why you collect(ed):Â \n\n\tIntelligenceÂ DataÂ (IQ, Brain-Training)\n\n\t(Please feel free to leave any of the answers blank)\n\n\tHow long have you been or were you collecting this data? [Other]",3.0]
["Intelligence Data (IQ, Brain-Training)","G29_Q0002 [SQ001]","Which tools do or have you used?Â (One per box)\n\n\tThis is a very importantÂ question so please fill in as many tools as you can (e.g.Â Fitbit, Zeo, pen and paper, spreadsheet, bodymedia). [Tool 1]",8.0]
["Intelligence Data (IQ, Brain-Training)","G29_Q0002 [SQ002]","Which tools do or have you used?Â (One per box)\n\n\tThis is a very importantÂ question so please fill in as many tools as you can (e.g.Â Fitbit, Zeo, pen and paper, spreadsheet, bodymedia). [Tool 2]",6.0]
["Intelligence Data (IQ, Brain-Training)","G29_Q0002 [SQ003]","Which tools do or have you used?Â (One per box)\n\n\tThis is a very importantÂ question so please fill in as many tools as you can (e.g.Â Fitbit, Zeo, pen and paper, spreadsheet, bodymedia). [Tool 3]",4.0]
["Intelligence Data (IQ, Brain-Training)","G29_Q0002 [SQ004]","Which tools do or have you used?Â (One per box)\n\n\tThis is a very importantÂ question so please fill in as many tools as you can (e.g.Â Fitbit, Zeo, pen and paper, spreadsheet, bodymedia). [Tool 4]",1.0]
["Intelligence Data (IQ, Brain-Training)","G29_Q0002 [SQ005]","Which tools do or have you used?Â (One per box)\n\n\tThis is a very importantÂ question so please fill in as many tools as you can (e.g.Â Fitbit, Zeo, pen and paper, spreadsheet, bodymedia). [Tool 5]",1.0]
["Intelligence Data (IQ, Brain-Training)","G29_Q0003","Any additionalÂ tools or comments about them?",2.0]
["Intelligence Data (IQ, Brain-Training)","G29_Q0004","Have you learnt, changed or improved anything by collecting this data? (Please leave blank if not)",6.0]
["Meditation Data","G30_Q0001","Please answer the following supplementary questions about how and why you collect(ed):Â \n\n\tMeditationÂ Data\n\n\t(Please feel free to leave any of the answers blank)\n\n\tHow long have you been or were you collecting this data?",8.0]
["Meditation Data","G30_Q0001 [Other]","Please answer the following supplementary questions about how and why you collect(ed):Â \n\n\tMeditationÂ Data\n\n\t(Please feel free to leave any of the answers blank)\n\n\tHow long have you been or were you collecting this data? [Other]",0.0]
["Meditation Data","G30_Q0002 [SQ001]","Which tools do or have you used?Â (One per box)\n\n\tThis is a very importantÂ question so please fill in as many tools as you can (e.g.Â Fitbit, Zeo, pen and paper, spreadsheet, bodymedia). [Tool 1]",8.0]
["Meditation Data","G30_Q0002 [SQ002]","Which tools do or have you used?Â (One per box)\n\n\tThis is a very importantÂ question so please fill in as many tools as you can (e.g.Â Fitbit, Zeo, pen and paper, spreadsheet, bodymedia). [Tool 2]",6.0]
["Meditation Data","G30_Q0002 [SQ003]","Which tools do or have you used?Â (One per box)\n\n\tThis is a very importantÂ question so please fill in as many tools as you can (e.g.Â Fitbit, Zeo, pen and paper, spreadsheet, bodymedia). [Tool 3]",3.0]
["Meditation Data","G30_Q0002 [SQ004]","Which tools do or have you used?Â (One per box)\n\n\tThis is a very importantÂ question so please fill in as many tools as you can (e.g.Â Fitbit, Zeo, pen and paper, spreadsheet, bodymedia). [Tool 4]",0.0]
["Meditation Data","G30_Q0002 [SQ005]","Which tools do or have you used?Â (One per box)\n\n\tThis is a very importantÂ question so please fill in as many tools as you can (e.g.Â Fitbit, Zeo, pen and paper, spreadsheet, bodymedia). [Tool 5]",0.0]
["Meditation Data","G30_Q0003","Any additionalÂ tools or comments about them?",0.0]
["Meditation Data","G30_Q0004","Have you learnt, changed or improved anything by collecting this data? (Please leave blank if not)",6.0]
["Psychometrics Data (Personality profiling, MBTI etc.)","G31_Q0001","Please answer the following supplementary questions about how and why you collect(ed):Â \n\n\tPsychometricsÂ DataÂ (Personality profiling, MBTI etc.)\n\n\t(Please feel free to leave any of the answers blank)\n\n\tHow long have you been or were you collecting this data?",15.0]
["Psychometrics Data (Personality profiling, MBTI etc.)","G31_Q0001 [Other]","Please answer the following supplementary questions about how and why you collect(ed):Â \n\n\tPsychometricsÂ DataÂ (Personality profiling, MBTI etc.)\n\n\t(Please feel free to leave any of the answers blank)\n\n\tHow long have you been or were you collecting this data? [Other]",5.0]
["Psychometrics Data (Personality profiling, MBTI etc.)","G31_Q0002 [SQ001]","Which tools do or have you used?Â (One per box)\n\n\tThis is a very importantÂ question so please fill in as many tools as you can (e.g.Â Fitbit, Zeo, pen and paper, spreadsheet, bodymedia). [Tool 1]",15.0]
["Psychometrics Data (Personality profiling, MBTI etc.)","G31_Q0002 [SQ002]","Which tools do or have you used?Â (One per box)\n\n\tThis is a very importantÂ question so please fill in as many tools as you can (e.g.Â Fitbit, Zeo, pen and paper, spreadsheet, bodymedia). [Tool 2]",5.0]
["Psychometrics Data (Personality profiling, MBTI etc.)","G31_Q0002 [SQ003]","Which tools do or have you used?Â (One per box)\n\n\tThis is a very importantÂ question so please fill in as many tools as you can (e.g.Â Fitbit, Zeo, pen and paper, spreadsheet, bodymedia). [Tool 3]",2.0]
["Psychometrics Data (Personality profiling, MBTI etc.)","G31_Q0002 [SQ004]","Which tools do or have you used?Â (One per box)\n\n\tThis is a very importantÂ question so please fill in as many tools as you can (e.g.Â Fitbit, Zeo, pen and paper, spreadsheet, bodymedia). [Tool 4]",1.0]
["Psychometrics Data (Personality profiling, MBTI etc.)","G31_Q0002 [SQ005]","Which tools do or have you used?Â (One per box)\n\n\tThis is a very importantÂ question so please fill in as many tools as you can (e.g.Â Fitbit, Zeo, pen and paper, spreadsheet, bodymedia). [Tool 5]",0.0]
["Psychometrics Data (Personality profiling, MBTI etc.)","G31_Q0003","Any additionalÂ tools or comments about them?",4.0]
["Psychometrics Data (Personality profiling, MBTI etc.)","G31_Q0004","Have you learnt, changed or improved anything by collecting this data? (Please leave blank if not)",9.0]
["Emotional & Mental Data selected as 'Other'","G32_Q0001","Please answer the following supplementary questions about how and why you collect(ed):Â \n\n\tEmotional & Mental Data selected as 'Other'\n\n\t(Please feel free to leave any of the answers blank)\n\n\tHow long have you been or were you collecting this data?",3.0]
["Emotional & Mental Data selected as 'Other'","G32_Q0001 [Other]","Please answer the following supplementary questions about how and why you collect(ed):Â \n\n\tEmotional & Mental Data selected as 'Other'\n\n\t(Please feel free to leave any of the answers blank)\n\n\tHow long have you been or were you collecting this data? [Other]",0.0]
["Emotional & Mental Data selected as 'Other'","G32_Q0002 [SQ001]","Which tools do or have you used?Â (One per box)\n\n\tThis is a very importantÂ question so please fill in as many tools as you can (e.g.Â Fitbit, Zeo, pen and paper, spreadsheet, bodymedia). [Tool 1]",3.0]
["Emotional & Mental Data selected as 'Other'","G32_Q0002 [SQ002]","Which tools do or have you used?Â (One per box)\n\n\tThis is a very importantÂ question so please fill in as many tools as you can (e.g.Â Fitbit, Zeo, pen and paper, spreadsheet, bodymedia). [Tool 2]",2.0]
["Emotional & Mental Data selected as 'Other'","G32_Q0002 [SQ003]","Which tools do or have you used?Â (One per box)\n\n\tThis is a very importantÂ question so please fill in as many tools as you can (e.g.Â Fitbit, Zeo, pen and paper, spreadsheet, bodymedia). [Tool 3]",1.0]
["Emotional & Mental Data selected as 'Other'","G32_Q0002 [SQ004]","Which tools do or have you used?Â (One per box)\n\n\tThis is a very importantÂ question so please fill in as many tools as you can (e.g.Â Fitbit, Zeo, pen and paper, spreadsheet, bodymedia). [Tool 4]",0.0]
["Emotional & Mental Data selected as 'Other'","G32_Q0002 [SQ005]","Which tools do or have you used?Â (One per box)\n\n\tThis is a very importantÂ question so please fill in as many tools as you can (e.g.Â Fitbit, Zeo, pen and paper, spreadsheet, bodymedia). [Tool 5]",0.0]
["Emotional & Mental Data selected as 'Other'","G32_Q0003","Any additionalÂ tools or comments about them?",0.0]
["Emotional & Mental Data selected as 'Other'","G32_Q0004","Have you learnt, changed or improved anything by collecting this data? (Please leave blank if not)",3.0]
["Activity Log / Timekeeping","G33_Q0001 [1]","Please select below any types of Activity & Consumption data that you collect, have collected or would like to collect (Just leave the other data types as the default 'no answer'): [Activity Log / Timekeeping]",46.0]
["Alcohol","G33_Q0001 [2]","Please select below any types of Activity & Consumption data that you collect, have collected or would like to collect (Just leave the other data types as the default 'no answer'): [Alcohol]",34.0]
["Caffeine","G33_Q0001 [3]","Please select below any types of Activity & Consumption data that you collect, have collected or would like to collect (Just leave the other data types as the default 'no answer'): [Caffeine]",23.0]
["Cycling","G33_Q0001 [4]","Please select below any types of Activity & Consumption data that you collect, have collected or would like to collect (Just leave the other data types as the default 'no answer'): [Cycling]",33.0]
["Eating / Diet / Supplements (e.g. vitamins & minerals)","G33_Q0001 [5]","Please select below any types of Activity & Consumption data that you collect, have collected or would like to collect (Just leave the other data types as the default 'no answer'): [Eating / Diet / Supplements (e.g. vitamins & minerals)]",49.0]
["Email","G33_Q0001 [6]","Please select below any types of Activity & Consumption data that you collect, have collected or would like to collect (Just leave the other data types as the default 'no answer'): [Email]",22.0]
["Energy (e.g. electricity use in the home)","G33_Q0001 [7]","Please select below any types of Activity & Consumption data that you collect, have collected or would like to collect (Just leave the other data types as the default 'no answer'): [Energy (e.g. electricity use in the home)]",24.0]
["Exercise (not including Running, Walking or Cycling)","G33_Q0001 [8]","Please select below any types of Activity & Consumption data that you collect, have collected or would like to collect (Just leave the other data types as the default 'no answer'): [Exercise (not including Running, Walking or Cycling)]",41.0]
["Fasting","G33_Q0001 [9]","Please select below any types of Activity & Consumption data that you collect, have collected or would like to collect (Just leave the other data types as the default 'no answer'): [Fasting]",10.0]
["Gym Workouts","G33_Q0001 [10]","Please select below any types of Activity & Consumption data that you collect, have collected or would like to collect (Just leave the other data types as the default 'no answer'): [Gym Workouts]",32.0]
["Internet Usage","G33_Q0001 [11]","Please select below any types of Activity & Consumption data that you collect, have collected or would like to collect (Just leave the other data types as the default 'no answer'): [Internet Usage]",15.0]
["Learning","G33_Q0001 [12]","Please select below any types of Activity & Consumption data that you collect, have collected or would like to collect (Just leave the other data types as the default 'no answer'): [Learning]",19.0]
["Location  / Position-logging / Altitude","G33_Q0001 [13]","Please select below any types of Activity & Consumption data that you collect, have collected or would like to collect (Just leave the other data types as the default 'no answer'): [Location  / Position-logging / Altitude]",29.0]
["Medication","G33_Q0001 [14]","Please select below any types of Activity & Consumption data that you collect, have collected or would like to collect (Just leave the other data types as the default 'no answer'): [Medication]",17.0]
["Music Consumption","G33_Q0001 [15]","Please select below any types of Activity & Consumption data that you collect, have collected or would like to collect (Just leave the other data types as the default 'no answer'): [Music Consumption]",14.0]
["Photographic / Film","G33_Q0001 [16]","Please select below any types of Activity & Consumption data that you collect, have collected or would like to collect (Just leave the other data types as the default 'no answer'): [Photographic / Film]",8.0]
["Productivity","G33_Q0001 [17]","Please select below any types of Activity & Consumption data that you collect, have collected or would like to collect (Just leave the other data types as the default 'no answer'): [Productivity]",27.0]
["Reading","G33_Q0001 [18]","Please select below any types of Activity & Consumption data that you collect, have collected or would like to collect (Just leave the other data types as the default 'no answer'): [Reading]",27.0]
["Running","G33_Q0001 [19]","Please select below any types of Activity & Consumption data that you collect, have collected or would like to collect (Just leave the other data types as the default 'no answer'): [Running]",41.0]
["Steps / Walking","G33_Q0001 [20]","Please select below any types of Activity & Consumption data that you collect, have collected or would like to collect (Just leave the other data types as the default 'no answer'): [Steps / Walking]",53.0]
["Travel / Places Visited","G33_Q0001 [21]","Please select below any types of Activity & Consumption data that you collect, have collected or would like to collect (Just leave the other data types as the default 'no answer'): [Travel / Places Visited]",24.0]
["TV viewing","G33_Q0001 [22]","Please select below any types of Activity & Consumption data that you collect, have collected or would like to collect (Just leave the other data types as the default 'no answer'): [TV viewing]",11.0]
["Water Intake","G33_Q0001 [23]","Please select below any types of Activity & Consumption data that you collect, have collected or would like to collect (Just leave the other data types as the default 'no answer'): [Water Intake]",19.0]
["Other (please specify in text box that will appear if option selected)","G33_Q0001 [24]","Please select below any types of Activity & Consumption data that you collect, have collected or would like to collect (Just leave the other data types as the default 'no answer'): [Other (please specify in text box that will appear if option selected)]",4.0]
[" - Please Specify OtherÂ ","G33_Q0002","Please Specify OtherÂ ",4.0]
["Activity Log / Timekeeping Data","G34_Q0001","Please answer the following supplementary questions about how and why you collect(ed):Â \n\n\tActivity Log / TimekeepingÂ Data\n\n\t(Please feel free to leave any of the answers blank)\n\n\tHow long have you been or were you collecting this data?",40.0]
["Activity Log / Timekeeping Data","G34_Q0001 [Other]","Please answer the following supplementary questions about how and why you collect(ed):Â \n\n\tActivity Log / TimekeepingÂ Data\n\n\t(Please feel free to leave any of the answers blank)\n\n\tHow long have you been or were you collecting this data? [Other]",2.0]
["Activity Log / Timekeeping Data","G34_Q0002 [SQ001]","Which tools do or have you used?Â (One per box)\n\n\tThis is a very importantÂ question so please fill in as many tools as you can (e.g.Â Fitbit, Zeo, pen and paper, spreadsheet, bodymedia). [Tool 1]",40.0]
["Activity Log / Timekeeping Data","G34_Q0002 [SQ002]","Which tools do or have you used?Â (One per box)\n\n\tThis is a very importantÂ question so please fill in as many tools as you can (e.g.Â Fitbit, Zeo, pen and paper, spreadsheet, bodymedia). [Tool 2]",22.0]
["Activity Log / Timekeeping Data","G34_Q0002 [SQ003]","Which tools do or have you used?Â (One per box)\n\n\tThis is a very importantÂ question so please fill in as many tools as you can (e.g.Â Fitbit, Zeo, pen and paper, spreadsheet, bodymedia). [Tool 3]",7.0]
["Activity Log / Timekeeping Data","G34_Q0002 [SQ004]","Which tools do or have you used?Â (One per box)\n\n\tThis is a very importantÂ question so please fill in as many tools as you can (e.g.Â Fitbit, Zeo, pen and paper, spreadsheet, bodymedia). [Tool 4]",2.0]
["Activity Log / Timekeeping Data","G34_Q0002 [SQ005]","Which tools do or have you used?Â (One per box)\n\n\tThis is a very importantÂ question so please fill in as many tools as you can (e.g.Â Fitbit, Zeo, pen and paper, spreadsheet, bodymedia). [Tool 5]",1.0]
["Activity Log / Timekeeping Data","G34_Q0003","Any additionalÂ tools or comments about them?",5.0]
["Activity Log / Timekeeping Data","G34_Q0004","Have you learnt, changed or improved anything by collecting this data? (Please leave blank if not)",19.0]
["Alcohol Data","G35_Q0001","Please answer the following supplementary questions about how and why you collect(ed):Â \n\n\tAlcoholÂ Data\n\n\t(Please feel free to leave any of the answers blank)\n\n\tHow long have you been or were you collecting this data?",22.0]
["Alcohol Data","G35_Q0001 [Other]","Please answer the following supplementary questions about how and why you collect(ed):Â \n\n\tAlcoholÂ Data\n\n\t(Please feel free to leave any of the answers blank)\n\n\tHow long have you been or were you collecting this data? [Other]",0.0]
["Alcohol Data","G35_Q0002 [SQ001]","Which tools do or have you used?Â (One per box)\n\n\tThis is a very importantÂ question so please fill in as many tools as you can (e.g.Â Fitbit, Zeo, pen and paper, spreadsheet, bodymedia). [Tool 1]",22.0]
["Alcohol Data","G35_Q0002 [SQ002]","Which tools do or have you used?Â (One per box)\n\n\tThis is a very importantÂ question so please fill in as many tools as you can (e.g.Â Fitbit, Zeo, pen and paper, spreadsheet, bodymedia). [Tool 2]",9.0]
["Alcohol Data","G35_Q0002 [SQ003]","Which tools do or have you used?Â (One per box)\n\n\tThis is a very importantÂ question so please fill in as many tools as you can (e.g.Â Fitbit, Zeo, pen and paper, spreadsheet, bodymedia). [Tool 3]",1.0]
["Alcohol Data","G35_Q0002 [SQ004]","Which tools do or have you used?Â (One per box)\n\n\tThis is a very importantÂ question so please fill in as many tools as you can (e.g.Â Fitbit, Zeo, pen and paper, spreadsheet, bodymedia). [Tool 4]",0.0]
["Alcohol Data","G35_Q0002 [SQ005]","Which tools do or have you used?Â (One per box)\n\n\tThis is a very importantÂ question so please fill in as many tools as you can (e.g.Â Fitbit, Zeo, pen and paper, spreadsheet, bodymedia). [Tool 5]",0.0]
["Alcohol Data","G35_Q0003","Any additionalÂ tools or comments about them?",5.0]
["Alcohol Data","G35_Q0004","Have you learnt, changed or improved anything by collecting this data? (Please leave blank if not)",12.0]
["Caffeine Data","G36_Q0001","Please answer the following supplementary questions about how and why you collect(ed):Â \n\n\tCaffeineÂ Data\n\n\t(Please feel free to leave any of the answers blank)\n\n\tHow long have you been or were you collecting this data?",10.0]
["Caffeine Data","G36_Q0001 [Other]","Please answer the following supplementary questions about how and why you collect(ed):Â \n\n\tCaffeineÂ Data\n\n\t(Please feel free to leave any of the answers blank)\n\n\tHow long have you been or were you collecting this data? [Other]",0.0]
["Caffeine Data","G36_Q0002 [SQ001]","Which tools do or have you used?Â (One per box)\n\n\tThis is a very importantÂ question so please fill in as many tools as you can (e.g.Â Fitbit, Zeo, pen and paper, spreadsheet, bodymedia). [Tool 1]",11.0]
["Caffeine Data","G36_Q0002 [SQ002]","Which tools do or have you used?Â (One per box)\n\n\tThis is a very importantÂ question so please fill in as many tools as you can (e.g.Â Fitbit, Zeo, pen and paper, spreadsheet, bodymedia). [Tool 2]",3.0]
["Caffeine Data","G36_Q0002 [SQ003]","Which tools do or have you used?Â (One per box)\n\n\tThis is a very importantÂ question so please fill in as many tools as you can (e.g.Â Fitbit, Zeo, pen and paper, spreadsheet, bodymedia). [Tool 3]",1.0]
["Caffeine Data","G36_Q0002 [SQ004]","Which tools do or have you used?Â (One per box)\n\n\tThis is a very importantÂ question so please fill in as many tools as you can (e.g.Â Fitbit, Zeo, pen and paper, spreadsheet, bodymedia). [Tool 4]",0.0]
["Caffeine Data","G36_Q0002 [SQ005]","Which tools do or have you used?Â (One per box)\n\n\tThis is a very importantÂ question so please fill in as many tools as you can (e.g.Â Fitbit, Zeo, pen and paper, spreadsheet, bodymedia). [Tool 5]",0.0]
["Caffeine Data","G36_Q0003","Any additionalÂ tools or comments about them?",2.0]
["Caffeine Data","G36_Q0004","Have you learnt, changed or improved anything by collecting this data? (Please leave blank if not)",8.0]
["Cycling Data","G37_Q0001","Please answer the following supplementary questions about how and why you collect(ed):Â \n\n\tCyclingÂ Data\n\n\t(Please feel free to leave any of the answers blank)\n\n\tHow long have you been or were you collecting this data?",25.0]
["Cycling Data","G37_Q0001 [Other]","Please answer the following supplementary questions about how and why you collect(ed):Â \n\n\tCyclingÂ Data\n\n\t(Please feel free to leave any of the answers blank)\n\n\tHow long have you been or were you collecting this data? [Other]",0.0]
["Cycling Data","G37_Q0002 [SQ001]","Which tools do or have you used?Â (One per box)\n\n\tThis is a very importantÂ question so please fill in as many tools as you can (e.g.Â Strava, RunKeeper, pen and paper, spreadsheet, bodymedia). [Tool 1]",25.0]
["Cycling Data","G37_Q0002 [SQ002]","Which tools do or have you used?Â (One per box)\n\n\tThis is a very importantÂ question so please fill in as many tools as you can (e.g.Â Strava, RunKeeper, pen and paper, spreadsheet, bodymedia). [Tool 2]",16.0]
["Cycling Data","G37_Q0002 [SQ003]","Which tools do or have you used?Â (One per box)\n\n\tThis is a very importantÂ question so please fill in as many tools as you can (e.g.Â Strava, RunKeeper, pen and paper, spreadsheet, bodymedia). [Tool 3]",7.0]
["Cycling Data","G37_Q0002 [SQ004]","Which tools do or have you used?Â (One per box)\n\n\tThis is a very importantÂ question so please fill in as many tools as you can (e.g.Â Strava, RunKeeper, pen and paper, spreadsheet, bodymedia). [Tool 4]",3.0]
["Cycling Data","G37_Q0002 [SQ005]","Which tools do or have you used?Â (One per box)\n\n\tThis is a very importantÂ question so please fill in as many tools as you can (e.g.Â Strava, RunKeeper, pen and paper, spreadsheet, bodymedia). [Tool 5]",1.0]
["Cycling Data","G37_Q0003","Any additionalÂ tools or comments about them?",6.0]
["Cycling Data","G37_Q0004","Have you learnt, changed or improved anything by collecting this data? (Please leave blank if not)",14.0]
["Eating / Diet / Supplement Data","G38_Q0001","Please answer the following supplementary questions about how and why you collect(ed):Â \n\n\tEating / Diet / Supplement Data\n\n\t(Please feel free to leave any of the answers blank)\n\n\tHow long have you been or were you collecting this data?",33.0]
["Eating / Diet / Supplement Data","G38_Q0001 [Other]","Please answer the following supplementary questions about how and why you collect(ed):Â \n\n\tEating / Diet / Supplement Data\n\n\t(Please feel free to leave any of the answers blank)\n\n\tHow long have you been or were you collecting this data? [Other]",1.0]
["Eating / Diet / Supplement Data","G38_Q0002 [SQ001]","Which tools do or have you used?Â (One per box)\n\n\tThis is a very importantÂ question so please fill in as many tools as you can (e.g.Â MyFitnessPal, Fitbit, pen and paper, spreadsheet, bodymedia). [Tool 1]",32.0]
["Eating / Diet / Supplement Data","G38_Q0002 [SQ002]","Which tools do or have you used?Â (One per box)\n\n\tThis is a very importantÂ question so please fill in as many tools as you can (e.g.Â MyFitnessPal, Fitbit, pen and paper, spreadsheet, bodymedia). [Tool 2]",12.0]
["Eating / Diet / Supplement Data","G38_Q0002 [SQ003]","Which tools do or have you used?Â (One per box)\n\n\tThis is a very importantÂ question so please fill in as many tools as you can (e.g.Â MyFitnessPal, Fitbit, pen and paper, spreadsheet, bodymedia). [Tool 3]",3.0]
["Eating / Diet / Supplement Data","G38_Q0002 [SQ004]","Which tools do or have you used?Â (One per box)\n\n\tThis is a very importantÂ question so please fill in as many tools as you can (e.g.Â MyFitnessPal, Fitbit, pen and paper, spreadsheet, bodymedia). [Tool 4]",0.0]
["Eating / Diet / Supplement Data","G38_Q0002 [SQ005]","Which tools do or have you used?Â (One per box)\n\n\tThis is a very importantÂ question so please fill in as many tools as you can (e.g.Â MyFitnessPal, Fitbit, pen and paper, spreadsheet, bodymedia). [Tool 5]",0.0]
["Eating / Diet / Supplement Data","G38_Q0003","Any additionalÂ tools or comments about them?",7.0]
["Eating / Diet / Supplement Data","G38_Q0004","Have you learnt, changed or improved anything by collecting this data? (Please leave blank if not)",22.0]
["Exercise Data (not including Running, Walking or Cycling)","G41_Q0001","Please answer the following supplementary questions about how and why you collect(ed):Â \n\n\tExercise Data (not including Running, Walking or Cycling)\n\n\t(Please feel free to leave any of the answers blank)\n\n\tHow long have you been or were you collecting this data?",32.0]
["Exercise Data (not including Running, Walking or Cycling)","G41_Q0001 [Other]","Please answer the following supplementary questions about how and why you collect(ed):Â \n\n\tExercise Data (not including Running, Walking or Cycling)\n\n\t(Please feel free to leave any of the answers blank)\n\n\tHow long have you been or were you collecting this data? [Other]",0.0]
["Exercise Data (not including Running, Walking or Cycling)","G41_Q0002 [SQ001]","Which tools do or have you used?Â (One per box)\n\n\tThis is a very importantÂ question so please fill in as many tools as you can (e.g.Â Fitbit, Zeo, pen and paper, spreadsheet, bodymedia). [Tool 1]",32.0]
["Exercise Data (not including Running, Walking or Cycling)","G41_Q0002 [SQ002]","Which tools do or have you used?Â (One per box)\n\n\tThis is a very importantÂ question so please fill in as many tools as you can (e.g.Â Fitbit, Zeo, pen and paper, spreadsheet, bodymedia). [Tool 2]",19.0]
["Exercise Data (not including Running, Walking or Cycling)","G41_Q0002 [SQ003]","Which tools do or have you used?Â (One per box)\n\n\tThis is a very importantÂ question so please fill in as many tools as you can (e.g.Â Fitbit, Zeo, pen and paper, spreadsheet, bodymedia). [Tool 3]",6.0]
["Exercise Data (not including Running, Walking or Cycling)","G41_Q0002 [SQ004]","Which tools do or have you used?Â (One per box)\n\n\tThis is a very importantÂ question so please fill in as many tools as you can (e.g.Â Fitbit, Zeo, pen and paper, spreadsheet, bodymedia). [Tool 4]",2.0]
["Exercise Data (not including Running, Walking or Cycling)","G41_Q0002 [SQ005]","Which tools do or have you used?Â (One per box)\n\n\tThis is a very importantÂ question so please fill in as many tools as you can (e.g.Â Fitbit, Zeo, pen and paper, spreadsheet, bodymedia). [Tool 5]",0.0]
["Exercise Data (not including Running, Walking or Cycling)","G41_Q0003","Any additionalÂ tools or comments about them?",7.0]
["Exercise Data (not including Running, Walking or Cycling)","G41_Q0004","Have you learnt, changed or improved anything by collecting this data? (Please leave blank if not)",16.0]
["Fasting Data","G42_Q0001","Please answer the following supplementary questions about how and why you collect(ed):Â \n\n\tFastingÂ Data\n\n\t(Please feel free to leave any of the answers blank)\n\n\tHow long have you been or were you collecting this data?",3.0]
["Fasting Data","G42_Q0001 [Other]","Please answer the following supplementary questions about how and why you collect(ed):Â \n\n\tFastingÂ Data\n\n\t(Please feel free to leave any of the answers blank)\n\n\tHow long have you been or were you collecting this data? [Other]",0.0]
["Fasting Data","G42_Q0002 [SQ001]","Which tools do or have you used?Â (One per box)\n\n\tThis is a very importantÂ question so please fill in as many tools as you can (e.g.Â Fitbit, Zeo, pen and paper, spreadsheet, bodymedia). [Tool 1]",3.0]
["Fasting Data","G42_Q0002 [SQ002]","Which tools do or have you used?Â (One per box)\n\n\tThis is a very importantÂ question so please fill in as many tools as you can (e.g.Â Fitbit, Zeo, pen and paper, spreadsheet, bodymedia). [Tool 2]",1.0]
["Fasting Data","G42_Q0002 [SQ003]","Which tools do or have you used?Â (One per box)\n\n\tThis is a very importantÂ question so please fill in as many tools as you can (e.g.Â Fitbit, Zeo, pen and paper, spreadsheet, bodymedia). [Tool 3]",0.0]
["Fasting Data","G42_Q0002 [SQ004]","Which tools do or have you used?Â (One per box)\n\n\tThis is a very importantÂ question so please fill in as many tools as you can (e.g.Â Fitbit, Zeo, pen and paper, spreadsheet, bodymedia). [Tool 4]",0.0]
["Fasting Data","G42_Q0002 [SQ005]","Which tools do or have you used?Â (One per box)\n\n\tThis is a very importantÂ question so please fill in as many tools as you can (e.g.Â Fitbit, Zeo, pen and paper, spreadsheet, bodymedia). [Tool 5]",0.0]
["Fasting Data","G42_Q0003","Any additionalÂ tools or comments about them?",0.0]
["Fasting Data","G42_Q0004","Have you learnt, changed or improved anything by collecting this data? (Please leave blank if not)",3.0]
["Gym Workouts Data","G43_Q0001","Please answer the following supplementary questions about how and why you collect(ed):Â \n\n\tGym WorkoutsÂ Data\n\n\t(Please feel free to leave any of the answers blank)\n\n\tHow long have you been or were you collecting this data?",25.0]
["Gym Workouts Data","G43_Q0001 [Other]","Please answer the following supplementary questions about how and why you collect(ed):Â \n\n\tGym WorkoutsÂ Data\n\n\t(Please feel free to leave any of the answers blank)\n\n\tHow long have you been or were you collecting this data? [Other]",0.0]
["Gym Workouts Data","G43_Q0002 [SQ001]","Which tools do or have you used?Â (One per box)\n\n\tThis is a very importantÂ question so please fill in as many tools as you can (e.g.Â Fitbit, Zeo, pen and paper, spreadsheet, bodymedia). [Tool 1]",25.0]
["Gym Workouts Data","G43_Q0002 [SQ002]","Which tools do or have you used?Â (One per box)\n\n\tThis is a very importantÂ question so please fill in as many tools as you can (e.g.Â Fitbit, Zeo, pen and paper, spreadsheet, bodymedia). [Tool 2]",10.0]
["Gym Workouts Data","G43_Q0002 [SQ003]","Which tools do or have you used?Â (One per box)\n\n\tThis is a very importantÂ question so please fill in as many tools as you can (e.g.Â Fitbit, Zeo, pen and paper, spreadsheet, bodymedia). [Tool 3]",2.0]
["Gym Workouts Data","G43_Q0002 [SQ004]","Which tools do or have you used?Â (One per box)\n\n\tThis is a very importantÂ question so please fill in as many tools as you can (e.g.Â Fitbit, Zeo, pen and paper, spreadsheet, bodymedia). [Tool 4]",1.0]
["Gym Workouts Data","G43_Q0002 [SQ005]","Which tools do or have you used?Â (One per box)\n\n\tThis is a very importantÂ question so please fill in as many tools as you can (e.g.Â Fitbit, Zeo, pen and paper, spreadsheet, bodymedia). [Tool 5]",0.0]
["Gym Workouts Data","G43_Q0003","Any additionalÂ tools or comments about them?",1.0]
["Gym Workouts Data","G43_Q0004","Have you learnt, changed or improved anything by collecting this data? (Please leave blank if not)",9.0]
["Internet Usage Data","G44_Q0001","Please answer the following supplementary questions about how and why you collect(ed):Â \n\n\tInternet UsageÂ Data\n\n\t(Please feel free to leave any of the answers blank)\n\n\tHow long have you been or were you collecting this data?",6.0]
["Internet Usage Data","G44_Q0001 [Other]","Please answer the following supplementary questions about how and why you collect(ed):Â \n\n\tInternet UsageÂ Data\n\n\t(Please feel free to leave any of the answers blank)\n\n\tHow long have you been or were you collecting this data? [Other]",0.0]
["Internet Usage Data","G44_Q0002 [SQ001]","Which tools do or have you used?Â (One per box)\n\n\tThis is a very importantÂ question so please fill in as many tools as you can (e.g.Â Fitbit, Zeo, pen and paper, spreadsheet, bodymedia). [Tool 1]",6.0]
["Internet Usage Data","G44_Q0002 [SQ002]","Which tools do or have you used?Â (One per box)\n\n\tThis is a very importantÂ question so please fill in as many tools as you can (e.g.Â Fitbit, Zeo, pen and paper, spreadsheet, bodymedia). [Tool 2]",1.0]
["Internet Usage Data","G44_Q0002 [SQ003]","Which tools do or have you used?Â (One per box)\n\n\tThis is a very importantÂ question so please fill in as many tools as you can (e.g.Â Fitbit, Zeo, pen and paper, spreadsheet, bodymedia). [Tool 3]",0.0]
["Internet Usage Data","G44_Q0002 [SQ004]","Which tools do or have you used?Â (One per box)\n\n\tThis is a very importantÂ question so please fill in as many tools as you can (e.g.Â Fitbit, Zeo, pen and paper, spreadsheet, bodymedia). [Tool 4]",0.0]
["Internet Usage Data","G44_Q0002 [SQ005]","Which tools do or have you used?Â (One per box)\n\n\tThis is a very importantÂ question so please fill in as many tools as you can (e.g.Â Fitbit, Zeo, pen and paper, spreadsheet, bodymedia). [Tool 5]",0.0]
["Internet Usage Data","G44_Q0003","Any additionalÂ tools or comments about them?",1.0]
["Internet Usage Data","G44_Q0004","Have you learnt, changed or improved anything by collecting this data? (Please leave blank if not)",3.0]
["Learning Data","G45_Q0001","Please answer the following supplementary questions about how and why you collect(ed):Â \n\n\tLearningÂ Data\n\n\t(Please feel free to leave any of the answers blank)\n\n\tHow long have you been or were you collecting this data?",12.0]
["Learning Data","G45_Q0001 [Other]","Please answer the following supplementary questions about how and why you collect(ed):Â \n\n\tLearningÂ Data\n\n\t(Please feel free to leave any of the answers blank)\n\n\tHow long have you been or were you collecting this data? [Other]",0.0]
["Learning Data","G45_Q0002 [SQ001]","Which tools do or have you used?Â (One per box)\n\n\tThis is a very importantÂ question so please fill in as many tools as you can (e.g.Â Fitbit, Zeo, pen and paper, spreadsheet, bodymedia). [Tool 1]",11.0]
["Learning Data","G45_Q0002 [SQ002]","Which tools do or have you used?Â (One per box)\n\n\tThis is a very importantÂ question so please fill in as many tools as you can (e.g.Â Fitbit, Zeo, pen and paper, spreadsheet, bodymedia). [Tool 2]",2.0]
["Learning Data","G45_Q0002 [SQ003]","Which tools do or have you used?Â (One per box)\n\n\tThis is a very importantÂ question so please fill in as many tools as you can (e.g.Â Fitbit, Zeo, pen and paper, spreadsheet, bodymedia). [Tool 3]",0.0]
["Learning Data","G45_Q0002 [SQ004]","Which tools do or have you used?Â (One per box)\n\n\tThis is a very importantÂ question so please fill in as many tools as you can (e.g.Â Fitbit, Zeo, pen and paper, spreadsheet, bodymedia). [Tool 4]",0.0]
["Learning Data","G45_Q0002 [SQ005]","Which tools do or have you used?Â (One per box)\n\n\tThis is a very importantÂ question so please fill in as many tools as you can (e.g.Â Fitbit, Zeo, pen and paper, spreadsheet, bodymedia). [Tool 5]",0.0]
["Learning Data","G45_Q0003","Any additionalÂ tools or comments about them?",1.0]
["Learning Data","G45_Q0004","Have you learnt, changed or improved anything by collecting this data? (Please leave blank if not)",9.0]
["Location / Position-logging / Altitude Data","G46_Q0001","Please answer the following supplementary questions about how and why you collect(ed):Â \n\n\tLocation / Position-logging / AltitudeÂ Data\n\n\t(Please feel free to leave any of the answers blank)\n\n\tHow long have you been or were you collecting this data?",21.0]
["Location / Position-logging / Altitude Data","G46_Q0001 [Other]","Please answer the following supplementary questions about how and why you collect(ed):Â \n\n\tLocation / Position-logging / AltitudeÂ Data\n\n\t(Please feel free to leave any of the answers blank)\n\n\tHow long have you been or were you collecting this data? [Other]",0.0]
["Location / Position-logging / Altitude Data","G46_Q0002 [SQ001]","Which tools do or have you used?Â (One per box)\n\n\tThis is a very importantÂ question so please fill in as many tools as you can (e.g.Â Moves, Foursquare, pen and paper, spreadsheet, bodymedia). [Tool 1]",20.0]
["Location / Position-logging / Altitude Data","G46_Q0002 [SQ002]","Which tools do or have you used?Â (One per box)\n\n\tThis is a very importantÂ question so please fill in as many tools as you can (e.g.Â Moves, Foursquare, pen and paper, spreadsheet, bodymedia). [Tool 2]",10.0]
["Location / Position-logging / Altitude Data","G46_Q0002 [SQ003]","Which tools do or have you used?Â (One per box)\n\n\tThis is a very importantÂ question so please fill in as many tools as you can (e.g.Â Moves, Foursquare, pen and paper, spreadsheet, bodymedia). [Tool 3]",3.0]
["Location / Position-logging / Altitude Data","G46_Q0002 [SQ004]","Which tools do or have you used?Â (One per box)\n\n\tThis is a very importantÂ question so please fill in as many tools as you can (e.g.Â Moves, Foursquare, pen and paper, spreadsheet, bodymedia). [Tool 4]",2.0]
["Location / Position-logging / Altitude Data","G46_Q0002 [SQ005]","Which tools do or have you used?Â (One per box)\n\n\tThis is a very importantÂ question so please fill in as many tools as you can (e.g.Â Moves, Foursquare, pen and paper, spreadsheet, bodymedia). [Tool 5]",1.0]
["Location / Position-logging / Altitude Data","G46_Q0003","Any additionalÂ tools or comments about them?",6.0]
["Location / Position-logging / Altitude Data","G46_Q0004","Have you learnt, changed or improved anything by collecting this data? (Please leave blank if not)",10.0]
["Medication Data","G47_Q0001","Please answer the following supplementary questions about how and why you collect(ed):Â \n\n\tMedicationÂ Data\n\n\t(Please feel free to leave any of the answers blank)\n\n\tHow long have you been or were you collecting this data?",8.0]
["Medication Data","G47_Q0001 [Other]","Please answer the following supplementary questions about how and why you collect(ed):Â \n\n\tMedicationÂ Data\n\n\t(Please feel free to leave any of the answers blank)\n\n\tHow long have you been or were you collecting this data? [Other]",0.0]
["Medication Data","G47_Q0002 [SQ001]","Which tools do or have you used?Â (One per box)\n\n\tThis is a very importantÂ question so please fill in as many tools as you can (e.g.Â Fitbit, Zeo, pen and paper, spreadsheet, bodymedia). [Tool 1]",7.0]
["Medication Data","G47_Q0002 [SQ002]","Which tools do or have you used?Â (One per box)\n\n\tThis is a very importantÂ question so please fill in as many tools as you can (e.g.Â Fitbit, Zeo, pen and paper, spreadsheet, bodymedia). [Tool 2]",3.0]
["Medication Data","G47_Q0002 [SQ003]","Which tools do or have you used?Â (One per box)\n\n\tThis is a very importantÂ question so please fill in as many tools as you can (e.g.Â Fitbit, Zeo, pen and paper, spreadsheet, bodymedia). [Tool 3]",0.0]
["Medication Data","G47_Q0002 [SQ004]","Which tools do or have you used?Â (One per box)\n\n\tThis is a very importantÂ question so please fill in as many tools as you can (e.g.Â Fitbit, Zeo, pen and paper, spreadsheet, bodymedia). [Tool 4]",0.0]
["Medication Data","G47_Q0002 [SQ005]","Which tools do or have you used?Â (One per box)\n\n\tThis is a very importantÂ question so please fill in as many tools as you can (e.g.Â Fitbit, Zeo, pen and paper, spreadsheet, bodymedia). [Tool 5]",0.0]
["Medication Data","G47_Q0003","Any additionalÂ tools or comments about them?",0.0]
["Medication Data","G47_Q0004","Have you learnt, changed or improved anything by collecting this data? (Please leave blank if not)",6.0]
["Music Consumption Data","G48_Q0001","Please answer the following supplementary questions about how and why you collect(ed):Â \n\n\tMusic ConsumptionÂ Data\n\n\t(Please feel free to leave any of the answers blank)\n\n\tHow long have you been or were you collecting this data?",8.0]
["Music Consumption Data","G48_Q0001 [Other]","Please answer the following supplementary questions about how and why you collect(ed):Â \n\n\tMusic ConsumptionÂ Data\n\n\t(Please feel free to leave any of the answers blank)\n\n\tHow long have you been or were you collecting this data? [Other]",0.0]
["Music Consumption Data","G48_Q0002 [SQ001]","Which tools do or have you used?Â (One per box)\n\n\tThis is a very importantÂ question so please fill in as many tools as you can (e.g.Â Fitbit, Zeo, pen and paper, spreadsheet, bodymedia). [Tool 1]",8.0]
["Music Consumption Data","G48_Q0002 [SQ002]","Which tools do or have you used?Â (One per box)\n\n\tThis is a very importantÂ question so please fill in as many tools as you can (e.g.Â Fitbit, Zeo, pen and paper, spreadsheet, bodymedia). [Tool 2]",1.0]
["Music Consumption Data","G48_Q0002 [SQ003]","Which tools do or have you used?Â (One per box)\n\n\tThis is a very importantÂ question so please fill in as many tools as you can (e.g.Â Fitbit, Zeo, pen and paper, spreadsheet, bodymedia). [Tool 3]",0.0]
["Music Consumption Data","G48_Q0002 [SQ004]","Which tools do or have you used?Â (One per box)\n\n\tThis is a very importantÂ question so please fill in as many tools as you can (e.g.Â Fitbit, Zeo, pen and paper, spreadsheet, bodymedia). [Tool 4]",0.0]
["Music Consumption Data","G48_Q0002 [SQ005]","Which tools do or have you used?Â (One per box)\n\n\tThis is a very importantÂ question so please fill in as many tools as you can (e.g.Â Fitbit, Zeo, pen and paper, spreadsheet, bodymedia). [Tool 5]",0.0]
["Music Consumption Data","G48_Q0003","Any additionalÂ tools or comments about them?",2.0]
["Music Consumption Data","G48_Q0004","Have you learnt, changed or improved anything by collecting this data? (Please leave blank if not)",5.0]
["Photographic / Film Data","G49_Q0001","Please answer the following supplementary questions about how and why you collect(ed):Â \n\n\tPhotographic / FilmÂ Data\n\n\t(Please feel free to leave any of the answers blank)\n\n\tHow long have you been or were you collecting this data?",3.0]
["Photographic / Film Data","G49_Q0001 [Other]","Please answer the following supplementary questions about how and why you collect(ed):Â \n\n\tPhotographic / FilmÂ Data\n\n\t(Please feel free to leave any of the answers blank)\n\n\tHow long have you been or were you collecting this data? [Other]",0.0]
["Photographic / Film Data","G49_Q0002 [SQ001]","Which tools do or have you used?Â (One per box)\n\n\tThis is a very importantÂ question so please fill in as many tools as you can (e.g.Â Fitbit, Zeo, pen and paper, spreadsheet, bodymedia). [Tool 1]",3.0]
["Photographic / Film Data","G49_Q0002 [SQ002]","Which tools do or have you used?Â (One per box)\n\n\tThis is a very importantÂ question so please fill in as many tools as you can (e.g.Â Fitbit, Zeo, pen and paper, spreadsheet, bodymedia). [Tool 2]",1.0]
["Photographic / Film Data","G49_Q0002 [SQ003]","Which tools do or have you used?Â (One per box)\n\n\tThis is a very importantÂ question so please fill in as many tools as you can (e.g.Â Fitbit, Zeo, pen and paper, spreadsheet, bodymedia). [Tool 3]",0.0]
["Photographic / Film Data","G49_Q0002 [SQ004]","Which tools do or have you used?Â (One per box)\n\n\tThis is a very importantÂ question so please fill in as many tools as you can (e.g.Â Fitbit, Zeo, pen and paper, spreadsheet, bodymedia). [Tool 4]",0.0]
["Photographic / Film Data","G49_Q0002 [SQ005]","Which tools do or have you used?Â (One per box)\n\n\tThis is a very importantÂ question so please fill in as many tools as you can (e.g.Â Fitbit, Zeo, pen and paper, spreadsheet, bodymedia). [Tool 5]",0.0]
["Photographic / Film Data","G49_Q0003","Any additionalÂ tools or comments about them?",0.0]
["Photographic / Film Data","G49_Q0004","Have you learnt, changed or improved anything by collecting this data? (Please leave blank if not)",1.0]
["Productivity Data","G50_Q0001","Please answer the following supplementary questions about how and why you collect(ed):Â \n\n\tProductivityÂ Data\n\n\t(Please feel free to leave any of the answers blank)\n\n\tHow long have you been or were you collecting this data?",16.0]
["Productivity Data","G50_Q0001 [Other]","Please answer the following supplementary questions about how and why you collect(ed):Â \n\n\tProductivityÂ Data\n\n\t(Please feel free to leave any of the answers blank)\n\n\tHow long have you been or were you collecting this data? [Other]",0.0]
["Productivity Data","G50_Q0002 [SQ001]","Which tools do or have you used?Â (One per box)\n\n\tThis is a very importantÂ question so please fill in as many tools as you can (e.g.Â Rescuetime, pen and paper, spreadsheet, bodymedia). [Tool 1]",15.0]
["Productivity Data","G50_Q0002 [SQ002]","Which tools do or have you used?Â (One per box)\n\n\tThis is a very importantÂ question so please fill in as many tools as you can (e.g.Â Rescuetime, pen and paper, spreadsheet, bodymedia). [Tool 2]",4.0]
["Productivity Data","G50_Q0002 [SQ003]","Which tools do or have you used?Â (One per box)\n\n\tThis is a very importantÂ question so please fill in as many tools as you can (e.g.Â Rescuetime, pen and paper, spreadsheet, bodymedia). [Tool 3]",1.0]
["Productivity Data","G50_Q0002 [SQ004]","Which tools do or have you used?Â (One per box)\n\n\tThis is a very importantÂ question so please fill in as many tools as you can (e.g.Â Rescuetime, pen and paper, spreadsheet, bodymedia). [Tool 4]",0.0]
["Productivity Data","G50_Q0002 [SQ005]","Which tools do or have you used?Â (One per box)\n\n\tThis is a very importantÂ question so please fill in as many tools as you can (e.g.Â Rescuetime, pen and paper, spreadsheet, bodymedia). [Tool 5]",0.0]
["Productivity Data","G50_Q0003","Any additionalÂ tools or comments about them?",0.0]
["Productivity Data","G50_Q0004","Have you learnt, changed or improved anything by collecting this data? (Please leave blank if not)",7.0]
["Reading Data","G51_Q0001","Please answer the following supplementary questions about how and why you collect(ed):Â \n\n\tReadingÂ Data\n\n\t(Please feel free to leave any of the answers blank)\n\n\tHow long have you been or were you collecting this data?",14.0]
["Reading Data","G51_Q0001 [Other]","Please answer the following supplementary questions about how and why you collect(ed):Â \n\n\tReadingÂ Data\n\n\t(Please feel free to leave any of the answers blank)\n\n\tHow long have you been or were you collecting this data? [Other]",0.0]
["Reading Data","G51_Q0002 [SQ001]","Which tools do or have you used?Â (One per box)\n\n\tThis is a very importantÂ question so please fill in as many tools as you can (e.g.Â Fitbit, Zeo, pen and paper, spreadsheet, bodymedia). [Tool 1]",15.0]
["Reading Data","G51_Q0002 [SQ002]","Which tools do or have you used?Â (One per box)\n\n\tThis is a very importantÂ question so please fill in as many tools as you can (e.g.Â Fitbit, Zeo, pen and paper, spreadsheet, bodymedia). [Tool 2]",4.0]
["Reading Data","G51_Q0002 [SQ003]","Which tools do or have you used?Â (One per box)\n\n\tThis is a very importantÂ question so please fill in as many tools as you can (e.g.Â Fitbit, Zeo, pen and paper, spreadsheet, bodymedia). [Tool 3]",0.0]
["Reading Data","G51_Q0002 [SQ004]","Which tools do or have you used?Â (One per box)\n\n\tThis is a very importantÂ question so please fill in as many tools as you can (e.g.Â Fitbit, Zeo, pen and paper, spreadsheet, bodymedia). [Tool 4]",0.0]
["Reading Data","G51_Q0002 [SQ005]","Which tools do or have you used?Â (One per box)\n\n\tThis is a very importantÂ question so please fill in as many tools as you can (e.g.Â Fitbit, Zeo, pen and paper, spreadsheet, bodymedia). [Tool 5]",0.0]
["Reading Data","G51_Q0003","Any additionalÂ tools or comments about them?",3.0]
["Reading Data","G51_Q0004","Have you learnt, changed or improved anything by collecting this data? (Please leave blank if not)",9.0]
["Running Data","G52_Q0001","Please answer the following supplementary questions about how and why you collect(ed):Â \n\n\tRunningÂ Data\n\n\t(Please feel free to leave any of the answers blank)\n\n\tHow long have you been or were you collecting this data?",37.0]
["Running Data","G52_Q0001 [Other]","Please answer the following supplementary questions about how and why you collect(ed):Â \n\n\tRunningÂ Data\n\n\t(Please feel free to leave any of the answers blank)\n\n\tHow long have you been or were you collecting this data? [Other]",0.0]
["Running Data","G52_Q0002 [SQ001]","Which tools do or have you used?Â (One per box)\n\n\tThis is a very importantÂ question so please fill in as many tools as you can (e.g.Â RunKeeper,Â Fitbit,Â Nike Fuelband, Jawbone Up, pen and paper, spreadsheet). [Tool 1]",37.0]
["Running Data","G52_Q0002 [SQ002]","Which tools do or have you used?Â (One per box)\n\n\tThis is a very importantÂ question so please fill in as many tools as you can (e.g.Â RunKeeper,Â Fitbit,Â Nike Fuelband, Jawbone Up, pen and paper, spreadsheet). [Tool 2]",20.0]
["Running Data","G52_Q0002 [SQ003]","Which tools do or have you used?Â (One per box)\n\n\tThis is a very importantÂ question so please fill in as many tools as you can (e.g.Â RunKeeper,Â Fitbit,Â Nike Fuelband, Jawbone Up, pen and paper, spreadsheet). [Tool 3]",11.0]
["Running Data","G52_Q0002 [SQ004]","Which tools do or have you used?Â (One per box)\n\n\tThis is a very importantÂ question so please fill in as many tools as you can (e.g.Â RunKeeper,Â Fitbit,Â Nike Fuelband, Jawbone Up, pen and paper, spreadsheet). [Tool 4]",6.0]
["Running Data","G52_Q0002 [SQ005]","Which tools do or have you used?Â (One per box)\n\n\tThis is a very importantÂ question so please fill in as many tools as you can (e.g.Â RunKeeper,Â Fitbit,Â Nike Fuelband, Jawbone Up, pen and paper, spreadsheet). [Tool 5]",0.0]
["Running Data","G52_Q0003","Any additionalÂ tools or comments about them?",6.0]
["Running Data","G52_Q0004","Have you learnt, changed or improved anything by collecting this data? (Please leave blank if not)",22.0]
["Steps / Walking Data","G53_Q0001","Please answer the following supplementary questions about how and why you collect(ed):Â \n\n\tSteps / WalkingÂ Data\n\n\t(Please feel free to leave any of the answers blank)\n\n\tHow long have you been or were you collecting this data?",50.0]
["Steps / Walking Data","G53_Q0001 [Other]","Please answer the following supplementary questions about how and why you collect(ed):Â \n\n\tSteps / WalkingÂ Data\n\n\t(Please feel free to leave any of the answers blank)\n\n\tHow long have you been or were you collecting this data? [Other]",0.0]
["Steps / Walking Data","G53_Q0002 [SQ001]","Which tools do or have you used?Â (One per box)\n\n\tThis is a very importantÂ question so please fill in as many tools as you can (e.g.Â Fitbit, Moves,Â Nike Fuelband, Jawbone Up,Â pen and paper, spreadsheet). [Tool 1]",50.0]
["Steps / Walking Data","G53_Q0002 [SQ002]","Which tools do or have you used?Â (One per box)\n\n\tThis is a very importantÂ question so please fill in as many tools as you can (e.g.Â Fitbit, Moves,Â Nike Fuelband, Jawbone Up,Â pen and paper, spreadsheet). [Tool 2]",13.0]
["Steps / Walking Data","G53_Q0002 [SQ003]","Which tools do or have you used?Â (One per box)\n\n\tThis is a very importantÂ question so please fill in as many tools as you can (e.g.Â Fitbit, Moves,Â Nike Fuelband, Jawbone Up,Â pen and paper, spreadsheet). [Tool 3]",8.0]
["Steps / Walking Data","G53_Q0002 [SQ004]","Which tools do or have you used?Â (One per box)\n\n\tThis is a very importantÂ question so please fill in as many tools as you can (e.g.Â Fitbit, Moves,Â Nike Fuelband, Jawbone Up,Â pen and paper, spreadsheet). [Tool 4]",3.0]
["Steps / Walking Data","G53_Q0002 [SQ005]","Which tools do or have you used?Â (One per box)\n\n\tThis is a very importantÂ question so please fill in as many tools as you can (e.g.Â Fitbit, Moves,Â Nike Fuelband, Jawbone Up,Â pen and paper, spreadsheet). [Tool 5]",1.0]
["Steps / Walking Data","G53_Q0003","Any additionalÂ tools or comments about them?",6.0]
["Steps / Walking Data","G53_Q0004","Have you learnt, changed or improved anything by collecting this data? (Please leave blank if not)",24.0]
["Travel / Places Visited Data","G54_Q0001","Please answer the following supplementary questions about how and why you collect(ed):Â \n\n\tTravel / Places VisitedÂ Data\n\n\t(Please feel free to leave any of the answers blank)\n\n\tHow long have you been or were you collecting this data?",18.0]
["Travel / Places Visited Data","G54_Q0001 [Other]","Please answer the following supplementary questions about how and why you collect(ed):Â \n\n\tTravel / Places VisitedÂ Data\n\n\t(Please feel free to leave any of the answers blank)\n\n\tHow long have you been or were you collecting this data? [Other]",0.0]
["Travel / Places Visited Data","G54_Q0002 [SQ001]","Which tools do or have you used?Â (One per box)\n\n\tThis is a very importantÂ question so please fill in as many tools as you can (e.g.Â Fitbit, Zeo, pen and paper, spreadsheet, bodymedia). [Tool 1]",17.0]
["Travel / Places Visited Data","G54_Q0002 [SQ002]","Which tools do or have you used?Â (One per box)\n\n\tThis is a very importantÂ question so please fill in as many tools as you can (e.g.Â Fitbit, Zeo, pen and paper, spreadsheet, bodymedia). [Tool 2]",8.0]
["Travel / Places Visited Data","G54_Q0002 [SQ003]","Which tools do or have you used?Â (One per box)\n\n\tThis is a very importantÂ question so please fill in as many tools as you can (e.g.Â Fitbit, Zeo, pen and paper, spreadsheet, bodymedia). [Tool 3]",2.0]
["Travel / Places Visited Data","G54_Q0002 [SQ004]","Which tools do or have you used?Â (One per box)\n\n\tThis is a very importantÂ question so please fill in as many tools as you can (e.g.Â Fitbit, Zeo, pen and paper, spreadsheet, bodymedia). [Tool 4]",2.0]
["Travel / Places Visited Data","G54_Q0002 [SQ005]","Which tools do or have you used?Â (One per box)\n\n\tThis is a very importantÂ question so please fill in as many tools as you can (e.g.Â Fitbit, Zeo, pen and paper, spreadsheet, bodymedia). [Tool 5]",1.0]
["Travel / Places Visited Data","G54_Q0003","Any additionalÂ tools or comments about them?",4.0]
["Travel / Places Visited Data","G54_Q0004","Have you learnt, changed or improved anything by collecting this data? (Please leave blank if not)",4.0]
["TV viewing Data","G55_Q0001","Please answer the following supplementary questions about how and why you collect(ed):Â \n\n\tTV viewingÂ Data\n\n\t(Please feel free to leave any of the answers blank)\n\n\tHow long have you been or were you collecting this data?",4.0]
["TV viewing Data","G55_Q0001 [Other]","Please answer the following supplementary questions about how and why you collect(ed):Â \n\n\tTV viewingÂ Data\n\n\t(Please feel free to leave any of the answers blank)\n\n\tHow long have you been or were you collecting this data? [Other]",0.0]
["TV viewing Data","G55_Q0002 [SQ001]","Which tools do or have you used?Â (One per box)\n\n\tThis is a very importantÂ question so please fill in as many tools as you can (e.g.Â Fitbit, Zeo, pen and paper, spreadsheet, bodymedia). [Tool 1]",5.0]
["TV viewing Data","G55_Q0002 [SQ002]","Which tools do or have you used?Â (One per box)\n\n\tThis is a very importantÂ question so please fill in as many tools as you can (e.g.Â Fitbit, Zeo, pen and paper, spreadsheet, bodymedia). [Tool 2]",1.0]
["TV viewing Data","G55_Q0002 [SQ003]","Which tools do or have you used?Â (One per box)\n\n\tThis is a very importantÂ question so please fill in as many tools as you can (e.g.Â Fitbit, Zeo, pen and paper, spreadsheet, bodymedia). [Tool 3]",0.0]
["TV viewing Data","G55_Q0002 [SQ004]","Which tools do or have you used?Â (One per box)\n\n\tThis is a very importantÂ question so please fill in as many tools as you can (e.g.Â Fitbit, Zeo, pen and paper, spreadsheet, bodymedia). [Tool 4]",0.0]
["TV viewing Data","G55_Q0002 [SQ005]","Which tools do or have you used?Â (One per box)\n\n\tThis is a very importantÂ question so please fill in as many tools as you can (e.g.Â Fitbit, Zeo, pen and paper, spreadsheet, bodymedia). [Tool 5]",0.0]
["TV viewing Data","G55_Q0003","Any additionalÂ tools or comments about them?",0.0]
["TV viewing Data","G55_Q0004","Have you learnt, changed or improved anything by collecting this data? (Please leave blank if not)",3.0]
["Water Intake Data","G56_Q0001","Please answer the following supplementary questions about how and why you collect(ed):Â \n\n\tWater IntakeÂ Data\n\n\t(Please feel free to leave any of the answers blank)\n\n\tHow long have you been or were you collecting this data?",7.0]
["Water Intake Data","G56_Q0001 [Other]","Please answer the following supplementary questions about how and why you collect(ed):Â \n\n\tWater IntakeÂ Data\n\n\t(Please feel free to leave any of the answers blank)\n\n\tHow long have you been or were you collecting this data? [Other]",0.0]
["Water Intake Data","G56_Q0002 [SQ001]","Which tools do or have you used?Â (One per box)\n\n\tThis is a very importantÂ question so please fill in as many tools as you can (e.g.Â Fitbit, Zeo, pen and paper, spreadsheet, bodymedia). [Tool 1]",8.0]
["Water Intake Data","G56_Q0002 [SQ002]","Which tools do or have you used?Â (One per box)\n\n\tThis is a very importantÂ question so please fill in as many tools as you can (e.g.Â Fitbit, Zeo, pen and paper, spreadsheet, bodymedia). [Tool 2]",0.0]
["Water Intake Data","G56_Q0002 [SQ003]","Which tools do or have you used?Â (One per box)\n\n\tThis is a very importantÂ question so please fill in as many tools as you can (e.g.Â Fitbit, Zeo, pen and paper, spreadsheet, bodymedia). [Tool 3]",0.0]
["Water Intake Data","G56_Q0002 [SQ004]","Which tools do or have you used?Â (One per box)\n\n\tThis is a very importantÂ question so please fill in as many tools as you can (e.g.Â Fitbit, Zeo, pen and paper, spreadsheet, bodymedia). [Tool 4]",0.0]
["Water Intake Data","G56_Q0002 [SQ005]","Which tools do or have you used?Â (One per box)\n\n\tThis is a very importantÂ question so please fill in as many tools as you can (e.g.Â Fitbit, Zeo, pen and paper, spreadsheet, bodymedia). [Tool 5]",0.0]
["Water Intake Data","G56_Q0003","Any additionalÂ tools or comments about them?",1.0]
["Water Intake Data","G56_Q0004","Have you learnt, changed or improved anything by collecting this data? (Please leave blank if not)",3.0]
["Activity & Consumption Data selected as 'Other'","G57_Q0001","Please answer the following supplementary questions about how and why you collect(ed):Â \n\n\tActivity & Consumption Data selected as 'Other'\n\n\t(Please feel free to leave any of the answers blank)\n\n\tHow long have you been or were you collecting this data?",3.0]
["Activity & Consumption Data selected as 'Other'","G57_Q0001 [Other]","Please answer the following supplementary questions about how and why you collect(ed):Â \n\n\tActivity & Consumption Data selected as 'Other'\n\n\t(Please feel free to leave any of the answers blank)\n\n\tHow long have you been or were you collecting this data? [Other]",1.0]
["Activity & Consumption Data selected as 'Other'","G57_Q0002 [SQ001]","Which tools do or have you used?Â (One per box)\n\n\tThis is a very importantÂ question so please fill in as many tools as you can (e.g.Â Fitbit, Zeo, pen and paper, spreadsheet, bodymedia). [Tool 1]",3.0]
["Activity & Consumption Data selected as 'Other'","G57_Q0002 [SQ002]","Which tools do or have you used?Â (One per box)\n\n\tThis is a very importantÂ question so please fill in as many tools as you can (e.g.Â Fitbit, Zeo, pen and paper, spreadsheet, bodymedia). [Tool 2]",2.0]
["Activity & Consumption Data selected as 'Other'","G57_Q0002 [SQ003]","Which tools do or have you used?Â (One per box)\n\n\tThis is a very importantÂ question so please fill in as many tools as you can (e.g.Â Fitbit, Zeo, pen and paper, spreadsheet, bodymedia). [Tool 3]",1.0]
["Activity & Consumption Data selected as 'Other'","G57_Q0002 [SQ004]","Which tools do or have you used?Â (One per box)\n\n\tThis is a very importantÂ question so please fill in as many tools as you can (e.g.Â Fitbit, Zeo, pen and paper, spreadsheet, bodymedia). [Tool 4]",1.0]
["Activity & Consumption Data selected as 'Other'","G57_Q0002 [SQ005]","Which tools do or have you used?Â (One per box)\n\n\tThis is a very importantÂ question so please fill in as many tools as you can (e.g.Â Fitbit, Zeo, pen and paper, spreadsheet, bodymedia). [Tool 5]",1.0]
["Activity & Consumption Data selected as 'Other'","G57_Q0003","Any additionalÂ tools or comments about them?",2.0]
["Activity & Consumption Data selected as 'Other'","G57_Q0004","Have you learnt, changed or improved anything by collecting this data? (Please leave blank if not)",3.0]
["[Energy","G58_Q0001 [1]","Please select below any types of Money-Related data that you collect, have collected or would like to collect (Just leave the other data types as the default 'no answer'): [Energy]",15.0]
["[Income","G58_Q0001 [2]","Please select below any types of Money-Related data that you collect, have collected or would like to collect (Just leave the other data types as the default 'no answer'): [Income]",38.0]
["[Investments","G58_Q0001 [3]","Please select below any types of Money-Related data that you collect, have collected or would like to collect (Just leave the other data types as the default 'no answer'): [Investments]",28.0]
["[Spending & Purchases","G58_Q0001 [4]","Please select below any types of Money-Related data that you collect, have collected or would like to collect (Just leave the other data types as the default 'no answer'): [Spending & Purchases]",47.0]
["[Other (Please Specify)","G58_Q0001 [5]","Please select below any types of Money-Related data that you collect, have collected or would like to collect (Just leave the other data types as the default 'no answer'): [Other (Please Specify)]",1.0]
["Please Specify OtherÂ ","G58_Q0002","Please Specify OtherÂ ",1.0]
["Energy Data (e.g. electricity use in the home)","G40_Q0001","Please answer the following supplementary questions about how and why you collect(ed):Â \n\n\tEnergy Data (e.g. electricity use in the home)\n\n\t(Please feel free to leave any of the answers blank)\n\n\tHow long have you been or were you collecting this data?",13.0]
["Energy Data (e.g. electricity use in the home)","G40_Q0001 [Other]","Please answer the following supplementary questions about how and why you collect(ed):Â \n\n\tEnergy Data (e.g. electricity use in the home)\n\n\t(Please feel free to leave any of the answers blank)\n\n\tHow long have you been or were you collecting this data? [Other]",0.0]
["Energy Data (e.g. electricity use in the home)","G40_Q0002 [SQ001]","Which tools do or have you used?Â (One per box)\n\n\tThis is a very importantÂ question so please fill in as many tools as you can (e.g.Â Fitbit, Zeo, pen and paper, spreadsheet, bodymedia). [Tool 1]",12.0]
["Energy Data (e.g. electricity use in the home)","G40_Q0002 [SQ002]","Which tools do or have you used?Â (One per box)\n\n\tThis is a very importantÂ question so please fill in as many tools as you can (e.g.Â Fitbit, Zeo, pen and paper, spreadsheet, bodymedia). [Tool 2]",3.0]
["Energy Data (e.g. electricity use in the home)","G40_Q0002 [SQ003]","Which tools do or have you used?Â (One per box)\n\n\tThis is a very importantÂ question so please fill in as many tools as you can (e.g.Â Fitbit, Zeo, pen and paper, spreadsheet, bodymedia). [Tool 3]",1.0]
["Energy Data (e.g. electricity use in the home)","G40_Q0002 [SQ004]","Which tools do or have you used?Â (One per box)\n\n\tThis is a very importantÂ question so please fill in as many tools as you can (e.g.Â Fitbit, Zeo, pen and paper, spreadsheet, bodymedia). [Tool 4]",0.0]
["Energy Data (e.g. electricity use in the home)","G40_Q0002 [SQ005]","Which tools do or have you used?Â (One per box)\n\n\tThis is a very importantÂ question so please fill in as many tools as you can (e.g.Â Fitbit, Zeo, pen and paper, spreadsheet, bodymedia). [Tool 5]",0.0]
["Energy Data (e.g. electricity use in the home)","G40_Q0003","Any additionalÂ tools or comments about them?",4.0]
["Energy Data (e.g. electricity use in the home)","G40_Q0004","Have you learnt, changed or improved anything by collecting this data? (Please leave blank if not)",7.0]
["Income Data","G59_Q0001","Please answer the following supplementary questions about how and why you collect(ed):Â \n\n\tIncomeÂ Data\n\n\t(Please feel free to leave any of the answers blank)\n\n\tHow long have you been or were you collecting this data?",28.0]
["Income Data","G59_Q0001 [Other]","Please answer the following supplementary questions about how and why you collect(ed):Â \n\n\tIncomeÂ Data\n\n\t(Please feel free to leave any of the answers blank)\n\n\tHow long have you been or were you collecting this data? [Other]",0.0]
["Income Data","G59_Q0002 [SQ001]","Which tools do or have you used?Â (One per box)\n\n\tThis is a very importantÂ question so please fill in as many tools as you can (e.g.Â Fitbit, Zeo, pen and paper, spreadsheet, bodymedia). [Tool 1]",28.0]
["Income Data","G59_Q0002 [SQ002]","Which tools do or have you used?Â (One per box)\n\n\tThis is a very importantÂ question so please fill in as many tools as you can (e.g.Â Fitbit, Zeo, pen and paper, spreadsheet, bodymedia). [Tool 2]",10.0]
["Income Data","G59_Q0002 [SQ003]","Which tools do or have you used?Â (One per box)\n\n\tThis is a very importantÂ question so please fill in as many tools as you can (e.g.Â Fitbit, Zeo, pen and paper, spreadsheet, bodymedia). [Tool 3]",1.0]
["Income Data","G59_Q0002 [SQ004]","Which tools do or have you used?Â (One per box)\n\n\tThis is a very importantÂ question so please fill in as many tools as you can (e.g.Â Fitbit, Zeo, pen and paper, spreadsheet, bodymedia). [Tool 4]",0.0]
["Income Data","G59_Q0002 [SQ005]","Which tools do or have you used?Â (One per box)\n\n\tThis is a very importantÂ question so please fill in as many tools as you can (e.g.Â Fitbit, Zeo, pen and paper, spreadsheet, bodymedia). [Tool 5]",0.0]
["Income Data","G59_Q0003","Any additionalÂ tools or comments about them?",3.0]
["Income Data","G59_Q0004","Have you learnt, changed or improved anything by collecting this data? (Please leave blank if not)",11.0]
["Investments Data","G60_Q0001","Please answer the following supplementary questions about how and why you collect(ed):Â \n\n\tInvestmentsÂ Data\n\n\t(Please feel free to leave any of the answers blank)\n\n\tHow long have you been or were you collecting this data?",18.0]
["Investments Data","G60_Q0001 [Other]","Please answer the following supplementary questions about how and why you collect(ed):Â \n\n\tInvestmentsÂ Data\n\n\t(Please feel free to leave any of the answers blank)\n\n\tHow long have you been or were you collecting this data? [Other]",0.0]
["Investments Data","G60_Q0002 [SQ001]","Which tools do or have you used?Â (One per box)\n\n\tThis is a very importantÂ question so please fill in as many tools as you can (e.g.Â Fitbit, Zeo, pen and paper, spreadsheet, bodymedia). [Tool 1]",19.0]
["Investments Data","G60_Q0002 [SQ002]","Which tools do or have you used?Â (One per box)\n\n\tThis is a very importantÂ question so please fill in as many tools as you can (e.g.Â Fitbit, Zeo, pen and paper, spreadsheet, bodymedia). [Tool 2]",2.0]
["Investments Data","G60_Q0002 [SQ003]","Which tools do or have you used?Â (One per box)\n\n\tThis is a very importantÂ question so please fill in as many tools as you can (e.g.Â Fitbit, Zeo, pen and paper, spreadsheet, bodymedia). [Tool 3]",0.0]
["Investments Data","G60_Q0002 [SQ004]","Which tools do or have you used?Â (One per box)\n\n\tThis is a very importantÂ question so please fill in as many tools as you can (e.g.Â Fitbit, Zeo, pen and paper, spreadsheet, bodymedia). [Tool 4]",0.0]
["Investments Data","G60_Q0002 [SQ005]","Which tools do or have you used?Â (One per box)\n\n\tThis is a very importantÂ question so please fill in as many tools as you can (e.g.Â Fitbit, Zeo, pen and paper, spreadsheet, bodymedia). [Tool 5]",0.0]
["Investments Data","G60_Q0003","Any additionalÂ tools or comments about them?",1.0]
["Investments Data","G60_Q0004","Have you learnt, changed or improved anything by collecting this data? (Please leave blank if not)",5.0]
["Spending & Purchases Data","G61_Q0001","Please answer the following supplementary questions about how and why you collect(ed):Â \n\n\tSpending & PurchasesÂ Data\n\n\t(Please feel free to leave any of the answers blank)\n\n\tHow long have you been or were you collecting this data?",36.0]
["Spending & Purchases Data","G61_Q0001 [Other]","Please answer the following supplementary questions about how and why you collect(ed):Â \n\n\tSpending & PurchasesÂ Data\n\n\t(Please feel free to leave any of the answers blank)\n\n\tHow long have you been or were you collecting this data? [Other]",0.0]
["Spending & Purchases Data","G61_Q0002 [SQ001]","Which tools do or have you used?Â (One per box)\n\n\tThis is a very importantÂ question so please fill in as many tools as you can (e.g.Â Fitbit, Zeo, pen and paper, spreadsheet, bodymedia). [Tool 1]",35.0]
["Spending & Purchases Data","G61_Q0002 [SQ002]","Which tools do or have you used?Â (One per box)\n\n\tThis is a very importantÂ question so please fill in as many tools as you can (e.g.Â Fitbit, Zeo, pen and paper, spreadsheet, bodymedia). [Tool 2]",15.0]
["Spending & Purchases Data","G61_Q0002 [SQ003]","Which tools do or have you used?Â (One per box)\n\n\tThis is a very importantÂ question so please fill in as many tools as you can (e.g.Â Fitbit, Zeo, pen and paper, spreadsheet, bodymedia). [Tool 3]",3.0]
["Spending & Purchases Data","G61_Q0002 [SQ004]","Which tools do or have you used?Â (One per box)\n\n\tThis is a very importantÂ question so please fill in as many tools as you can (e.g.Â Fitbit, Zeo, pen and paper, spreadsheet, bodymedia). [Tool 4]",0.0]
["Spending & Purchases Data","G61_Q0002 [SQ005]","Which tools do or have you used?Â (One per box)\n\n\tThis is a very importantÂ question so please fill in as many tools as you can (e.g.Â Fitbit, Zeo, pen and paper, spreadsheet, bodymedia). [Tool 5]",0.0]
["Spending & Purchases Data","G61_Q0003","Any additionalÂ tools or comments about them?",3.0]
["Spending & Purchases Data","G61_Q0004","Have you learnt, changed or improved anything by collecting this data? (Please leave blank if not)",12.0]
["Money / Personal Finance Data selected as 'Other'","G62_Q0001","Please answer the following supplementary questions about how and why you collect(ed):Â \n\n\tMoney / Personal Finance Data selected as 'Other'\n\n\t(Please feel free to leave any of the answers blank)\n\n\tHow long have you been or were you collecting this data?",0.0]
["Money / Personal Finance Data selected as 'Other'","G62_Q0001 [Other]","Please answer the following supplementary questions about how and why you collect(ed):Â \n\n\tMoney / Personal Finance Data selected as 'Other'\n\n\t(Please feel free to leave any of the answers blank)\n\n\tHow long have you been or were you collecting this data? [Other]",0.0]
["Money / Personal Finance Data selected as 'Other'","G62_Q0002 [SQ001]","Which tools do or have you used?Â (One per box)\n\n\tThis is a very importantÂ question so please fill in as many tools as you can (e.g.Â Fitbit, Zeo, pen and paper, spreadsheet, bodymedia). [Tool 1]",0.0]
["Money / Personal Finance Data selected as 'Other'","G62_Q0002 [SQ002]","Which tools do or have you used?Â (One per box)\n\n\tThis is a very importantÂ question so please fill in as many tools as you can (e.g.Â Fitbit, Zeo, pen and paper, spreadsheet, bodymedia). [Tool 2]",0.0]
["Money / Personal Finance Data selected as 'Other'","G62_Q0002 [SQ003]","Which tools do or have you used?Â (One per box)\n\n\tThis is a very importantÂ question so please fill in as many tools as you can (e.g.Â Fitbit, Zeo, pen and paper, spreadsheet, bodymedia). [Tool 3]",0.0]
["Money / Personal Finance Data selected as 'Other'","G62_Q0002 [SQ004]","Which tools do or have you used?Â (One per box)\n\n\tThis is a very importantÂ question so please fill in as many tools as you can (e.g.Â Fitbit, Zeo, pen and paper, spreadsheet, bodymedia). [Tool 4]",0.0]
["Money / Personal Finance Data selected as 'Other'","G62_Q0002 [SQ005]","Which tools do or have you used?Â (One per box)\n\n\tThis is a very importantÂ question so please fill in as many tools as you can (e.g.Â Fitbit, Zeo, pen and paper, spreadsheet, bodymedia). [Tool 5]",0.0]
["Money / Personal Finance Data selected as 'Other'","G62_Q0003","Any additionalÂ tools or comments about them?",0.0]
["Money / Personal Finance Data selected as 'Other'","G62_Q0004","Have you learnt, changed or improved anything by collecting this data? (Please leave blank if not)",0.0]
["Contacts / Network Connections / Email Analysis","G63_Q0001 [1]","Please select below the types of Social data you collect, have collected or would like to collect (Just leave the other data types as the default 'no answer'): [Contacts / Network Connections / Email Analysis]",13.0]
["People You Are With","G63_Q0001 [2]","Please select below the types of Social data you collect, have collected or would like to collect (Just leave the other data types as the default 'no answer'): [People You Are With]",8.0]
["Social Media Usage (Facebook, Twitter, del.icio.us, Tumblr etc.)","G63_Q0001 [3]","Please select below the types of Social data you collect, have collected or would like to collect (Just leave the other data types as the default 'no answer'): [Social Media Usage (Facebook, Twitter, del.icio.us, Tumblr etc.)]",11.0]
["Other (please specify in text box that will appear if option selected)","G63_Q0001 [4]","Please select below the types of Social data you collect, have collected or would like to collect (Just leave the other data types as the default 'no answer'): [Other (please specify in text box that will appear if option selected)]",1.0]
["Please Specify OtherÂ ","G63_Q0002","Please Specify OtherÂ ",1.0]
["Email / Contacts / Network Connections Data","G39_Q0001","Please answer the following supplementary questions about how and why you collect(ed):Â \n\n\tEmail / Contacts / Network Connections Data\n\n\t(Please feel free to leave any of the answers blank)\n\n\tHow long have you been or were you collecting this data?",15.0]
["Email / Contacts / Network Connections Data","G39_Q0001 [Other]","Please answer the following supplementary questions about how and why you collect(ed):Â \n\n\tEmail / Contacts / Network Connections Data\n\n\t(Please feel free to leave any of the answers blank)\n\n\tHow long have you been or were you collecting this data? [Other]",1.0]
["Email / Contacts / Network Connections Data","G39_Q0002 [SQ001]","Which tools do or have you used?Â (One per box)\n\n\tThis is a very importantÂ question so please fill in as many tools as you can (e.g.Â Fitbit, Zeo, pen and paper, spreadsheet, bodymedia). [Tool 1]",12.0]
["Email / Contacts / Network Connections Data","G39_Q0002 [SQ002]","Which tools do or have you used?Â (One per box)\n\n\tThis is a very importantÂ question so please fill in as many tools as you can (e.g.Â Fitbit, Zeo, pen and paper, spreadsheet, bodymedia). [Tool 2]",5.0]
["Email / Contacts / Network Connections Data","G39_Q0002 [SQ003]","Which tools do or have you used?Â (One per box)\n\n\tThis is a very importantÂ question so please fill in as many tools as you can (e.g.Â Fitbit, Zeo, pen and paper, spreadsheet, bodymedia). [Tool 3]",2.0]
["Email / Contacts / Network Connections Data","G39_Q0002 [SQ004]","Which tools do or have you used?Â (One per box)\n\n\tThis is a very importantÂ question so please fill in as many tools as you can (e.g.Â Fitbit, Zeo, pen and paper, spreadsheet, bodymedia). [Tool 4]",1.0]
["Email / Contacts / Network Connections Data","G39_Q0002 [SQ005]","Which tools do or have you used?Â (One per box)\n\n\tThis is a very importantÂ question so please fill in as many tools as you can (e.g.Â Fitbit, Zeo, pen and paper, spreadsheet, bodymedia). [Tool 5]",0.0]
["Email / Contacts / Network Connections Data","G39_Q0003","Any additionalÂ tools or comments about them?",3.0]
["Email / Contacts / Network Connections Data","G39_Q0004","Have you learnt, changed or improved anything by collecting this data? (Please leave blank if not)",6.0]
["People You Are With Data","G64_Q0001","Please answer the following supplementary questions about how and why you collect(ed):Â \n\n\tPeople You Are WithÂ Data\n\n\t(Please feel free to leave any of the answers blank)\n\n\tHow long have you been or were you collecting this data?",2.0]
["People You Are With Data","G64_Q0001 [Other]","Please answer the following supplementary questions about how and why you collect(ed):Â \n\n\tPeople You Are WithÂ Data\n\n\t(Please feel free to leave any of the answers blank)\n\n\tHow long have you been or were you collecting this data? [Other]",0.0]
["People You Are With Data","G64_Q0002 [SQ001]","Which tools do or have you used?Â (One per box)\n\n\tThis is a very importantÂ question so please fill in as many tools as you can (e.g.Â Fitbit, Zeo, pen and paper, spreadsheet, bodymedia). [Tool 1]",2.0]
["People You Are With Data","G64_Q0002 [SQ002]","Which tools do or have you used?Â (One per box)\n\n\tThis is a very importantÂ question so please fill in as many tools as you can (e.g.Â Fitbit, Zeo, pen and paper, spreadsheet, bodymedia). [Tool 2]",2.0]
["People You Are With Data","G64_Q0002 [SQ003]","Which tools do or have you used?Â (One per box)\n\n\tThis is a very importantÂ question so please fill in as many tools as you can (e.g.Â Fitbit, Zeo, pen and paper, spreadsheet, bodymedia). [Tool 3]",0.0]
["People You Are With Data","G64_Q0002 [SQ004]","Which tools do or have you used?Â (One per box)\n\n\tThis is a very importantÂ question so please fill in as many tools as you can (e.g.Â Fitbit, Zeo, pen and paper, spreadsheet, bodymedia). [Tool 4]",0.0]
["People You Are With Data","G64_Q0002 [SQ005]","Which tools do or have you used?Â (One per box)\n\n\tThis is a very importantÂ question so please fill in as many tools as you can (e.g.Â Fitbit, Zeo, pen and paper, spreadsheet, bodymedia). [Tool 5]",0.0]
["People You Are With Data","G64_Q0003","Any additionalÂ tools or comments about them?",1.0]
["People You Are With Data","G64_Q0004","Have you learnt, changed or improved anything by collecting this data? (Please leave blank if not)",2.0]
["Social Media Usage Data (Facebook, Twitter, del.icio.us, Tumblr etc.)","G65_Q0001","Please answer the following supplementary questions about how and why you collect(ed):Â \n\n\tSocial Media UsageÂ DataÂ (Facebook, Twitter, del.icio.us, Tumblr etc.)\n\n\t(Please feel free to leave any of the answers blank)\n\n\tHow long have you been or were you collecting this data?",5.0]
["Social Media Usage Data (Facebook, Twitter, del.icio.us, Tumblr etc.)","G65_Q0001 [Other]","Please answer the following supplementary questions about how and why you collect(ed):Â \n\n\tSocial Media UsageÂ DataÂ (Facebook, Twitter, del.icio.us, Tumblr etc.)\n\n\t(Please feel free to leave any of the answers blank)\n\n\tHow long have you been or were you collecting this data? [Other]",1.0]
["Social Media Usage Data (Facebook, Twitter, del.icio.us, Tumblr etc.)","G65_Q0002 [SQ001]","Which tools do or have you used?Â (One per box)\n\n\tThis is a very importantÂ question so please fill in as many tools as you can (e.g.Â Fitbit, Zeo, pen and paper, spreadsheet, bodymedia). [Tool 1]",5.0]
["Social Media Usage Data (Facebook, Twitter, del.icio.us, Tumblr etc.)","G65_Q0002 [SQ002]","Which tools do or have you used?Â (One per box)\n\n\tThis is a very importantÂ question so please fill in as many tools as you can (e.g.Â Fitbit, Zeo, pen and paper, spreadsheet, bodymedia). [Tool 2]",2.0]
["Social Media Usage Data (Facebook, Twitter, del.icio.us, Tumblr etc.)","G65_Q0002 [SQ003]","Which tools do or have you used?Â (One per box)\n\n\tThis is a very importantÂ question so please fill in as many tools as you can (e.g.Â Fitbit, Zeo, pen and paper, spreadsheet, bodymedia). [Tool 3]",1.0]
["Social Media Usage Data (Facebook, Twitter, del.icio.us, Tumblr etc.)","G65_Q0002 [SQ004]","Which tools do or have you used?Â (One per box)\n\n\tThis is a very importantÂ question so please fill in as many tools as you can (e.g.Â Fitbit, Zeo, pen and paper, spreadsheet, bodymedia). [Tool 4]",1.0]
["Social Media Usage Data (Facebook, Twitter, del.icio.us, Tumblr etc.)","G65_Q0002 [SQ005]","Which tools do or have you used?Â (One per box)\n\n\tThis is a very importantÂ question so please fill in as many tools as you can (e.g.Â Fitbit, Zeo, pen and paper, spreadsheet, bodymedia). [Tool 5]",1.0]
["Social Media Usage Data (Facebook, Twitter, del.icio.us, Tumblr etc.)","G65_Q0003","Any additionalÂ tools or comments about them?",3.0]
["Social Media Usage Data (Facebook, Twitter, del.icio.us, Tumblr etc.)","G65_Q0004","Have you learnt, changed or improved anything by collecting this data? (Please leave blank if not)",4.0]
["Other Data Tracking","G66_Q0001","Please answer the following supplementary questions about how and why you collect(ed):Â \n\n\tScoial Data selected as 'Other'\n\n\t(Please feel free to leave any of the answers blank)\n\n\tHow long have you been or were you collecting this data?",1.0]
["Other Data Tracking","G66_Q0001 [Other]","Please answer the following supplementary questions about how and why you collect(ed):Â \n\n\tScoial Data selected as 'Other'\n\n\t(Please feel free to leave any of the answers blank)\n\n\tHow long have you been or were you collecting this data? [Other]",0.0]
["Other Data Tracking","G66_Q0002 [SQ001]","Which tools do or have you used?Â (One per box)\n\n\tThis is a very importantÂ question so please fill in as many tools as you can (e.g.Â Fitbit, Zeo, pen and paper, spreadsheet, bodymedia). [Tool 1]",1.0]
["Other Data Tracking","G66_Q0002 [SQ002]","Which tools do or have you used?Â (One per box)\n\n\tThis is a very importantÂ question so please fill in as many tools as you can (e.g.Â Fitbit, Zeo, pen and paper, spreadsheet, bodymedia). [Tool 2]",0.0]
["Other Data Tracking","G66_Q0002 [SQ003]","Which tools do or have you used?Â (One per box)\n\n\tThis is a very importantÂ question so please fill in as many tools as you can (e.g.Â Fitbit, Zeo, pen and paper, spreadsheet, bodymedia). [Tool 3]",0.0]
["Other Data Tracking","G66_Q0002 [SQ004]","Which tools do or have you used?Â (One per box)\n\n\tThis is a very importantÂ question so please fill in as many tools as you can (e.g.Â Fitbit, Zeo, pen and paper, spreadsheet, bodymedia). [Tool 4]",0.0]
["Other Data Tracking","G66_Q0002 [SQ005]","Which tools do or have you used?Â (One per box)\n\n\tThis is a very importantÂ question so please fill in as many tools as you can (e.g.Â Fitbit, Zeo, pen and paper, spreadsheet, bodymedia). [Tool 5]",0.0]
["Other Data Tracking","G66_Q0003","Any additionalÂ tools or comments about them?",0.0]
["Other Data Tracking","G66_Q0004","Have you learnt, changed or improved anything by collecting this data? (Please leave blank if not)",1.0]
["Other Data Tracking","G72_Q0001","You're almost finished but, just before we go to the final section, are there any other specific data collection activities that you'd like to tell us about?Â ",105.0]
["Other Data Tracking","G72_Q0002","Exactly what data were/are you trying to capture? (e.g. hours slept every night)",13.0]
["Other Data Tracking","G72_Q0003","How long have you been or were you collecting this data?",12.0]
["Other Data Tracking","G72_Q0003 [Other]","How long have you been or were you collecting this data? [Other]",2.0]
["Other Data Tracking","G72_Q0004 [SQ001]","Which tools do or have you used?Â (One per box)\n\n\tThis is a very importantÂ question so please fill in as many tools as you can (e.g.Â Fitbit, Zeo, pen and paper, spreadsheet, bodymedia). [Tool 1]",11.0]
["Other Data Tracking","G72_Q0004 [SQ002]","Which tools do or have you used?Â (One per box)\n\n\tThis is a very importantÂ question so please fill in as many tools as you can (e.g.Â Fitbit, Zeo, pen and paper, spreadsheet, bodymedia). [Tool 2]",4.0]
["Other Data Tracking","G72_Q0004 [SQ003]","Which tools do or have you used?Â (One per box)\n\n\tThis is a very importantÂ question so please fill in as many tools as you can (e.g.Â Fitbit, Zeo, pen and paper, spreadsheet, bodymedia). [Tool 3]",0.0]
["Other Data Tracking","G72_Q0004 [SQ004]","Which tools do or have you used?Â (One per box)\n\n\tThis is a very importantÂ question so please fill in as many tools as you can (e.g.Â Fitbit, Zeo, pen and paper, spreadsheet, bodymedia). [Tool 4]",0.0]
["Other Data Tracking","G72_Q0004 [SQ005]","Which tools do or have you used?Â (One per box)\n\n\tThis is a very importantÂ question so please fill in as many tools as you can (e.g.Â Fitbit, Zeo, pen and paper, spreadsheet, bodymedia). [Tool 5]",0.0]
["Other Data Tracking","G72_Q0005","Any additionalÂ tools or comments about them?",4.0]
["General Questions","G72_Q0006","Have you learnt, changed or improved anything by collecting this data? (Please leave blank if not)",9.0]
["General Questions","G74_Q0001","Final Section - General Questions",0.0,"YES","NO"]
["General Questions","G74_Q0002 [1]","Do you have any particular motivation(s) for collecting personal data? [General health & wellbeing]",105.0,93.0,12.0]
["General Questions","G74_Q0002 [2]","Do you have any particular motivation(s) for collecting personal data? [Specific health issue]",105.0,29.0,76.0]
["General Questions","G74_Q0002 [3]","Do you have any particular motivation(s) for collecting personal data? [Productivity / skills development]",105.0,45.0,60.0]
["General Questions","G74_Q0002 [4]","Do you have any particular motivation(s) for collecting personal data? [Research]",105.0,33.0,72.0]
["General Questions","G74_Q0002 [5]","Do you have any particular motivation(s) for collecting personal data? [Curiosity]",105.0,70.0,35.0]
["General Questions","G74_Q0002 [6]","Do you have any particular motivation(s) for collecting personal data? [Self-knowledge]",105.0,70.0,35.0]
["General Questions","G74_Q0002 [7]","Do you have any particular motivation(s) for collecting personal data? [Self-improvement]",105.0,82.0,23.0]
["General Questions","G74_Q0002 [8]","Do you have any particular motivation(s) for collecting personal data? [Aid / encode memory]",105.0,17.0,88.0]
["General Questions","G74_Q0002 [Other]","Do you have any particular motivation(s) for collecting personal data? [Other]",11.0]
["General Questions","G74_Q0003","Any specific challenges with data collection?Â (e.g. Sensor accuracy, lack of time, can't find the right tools etc.)Â ",72.0]
["General Questions","G74_Q0004","Are there any of theÂ tools that you've used you'd recommend? (Please just leave blank if not)",54.0]
["General Questions","G74_Q0005","Are there any other tools that you'd like to bring to our attention? (Please just leave blank if not)",9.0]
["General Questions","G74_Q0005b","Would you consider making some of your personal data available as open data?",96.0]
["General Questions","G74_Q0005b [Other]","Would you consider making some of your personal data available as open data? [Other]",10.0,"Yes","No"]
["General Questions","G74_Q0006 [1]","Do you have anyÂ major concernsÂ regarding yourÂ QS activityÂ & data? [Data Privacy (i.e. your data getting shared/used against your wishes)]",105.0,50.0,55.0]
["General Questions","G74_Q0006 [2]","Do you have anyÂ major concernsÂ regarding yourÂ QS activityÂ & data? [Data Security (i.e. your data getting lost or stolen)]",105.0,40.0,65.0]
["General Questions","G74_Q0006 [3]","Do you have anyÂ major concernsÂ regarding yourÂ QS activityÂ & data? [Data Ownership (i.e. import/export of data & storing data)]",105.0,53.0,52.0]
["General Questions","G74_Q0006 [4]","Do you have anyÂ major concernsÂ regarding yourÂ QS activityÂ & data? [Data Formats (i.e. open formats, data access, transferability)]",105.0,49.0,56.0]
["General Questions","G74_Q0006 [5]","Do you have anyÂ major concernsÂ regarding yourÂ QS activityÂ & data? [Commercial involvement (i.e. excessive exploitation/control)]",105.0,35.0,70.0]
["General Questions","G74_Q0006b","Please describe these concerns and/or any others you feel relevant:\n\n\t(This is a veryÂ importantÂ question so please be asÂ specificÂ as you can)",47.0,"Yes","No"]
["General Questions","G74_Q0007","Do you analyseÂ your data?",105.0,77.0,28.0]
["General Questions","G74_Q0008","What kind(s) of analysisÂ do you do? (e.g., I use device reports or I do my own analysis in a spreadsheet)",69.0]
["General Questions","G74_Q0008b","â€‹Any specific reasons why you don't do analysis on your data? (e.g. lack of time, insufficient stats knowlegde, can't be bothered)",23.0]
["General Questions","G74_Q0009","In terms of personal data, is there anything you're trying to achieve that you can't yet do? (Please leave blank if not)",49.0]
["General Questions","G74_Q0010","How could the QS community help you more?",39.0]
["General Questions","G74_Q0011","A few questions about you. These are all optional so please feel free to skip any that you'd prefer not to answer:",0.0,"Yes","No"]
["General Questions","G74_Q0012 [SQ001]","Your Gender: [Female]",105.0,22.0,83.0]
["General Questions","G74_Q0012 [SQ002]","Your Gender: [Male]",105.0]
["General Questions","G74_Q0013","Your Age:",98.0]
["General Questions","G74_Q0014","Your Location: (City or nearest city please)",96.0,"Yes","No"]
["General Questions","G74_Q0018 [SQ001]","What kind of mobile device(s) do you currently use? [iPhone / iOS]",105.0,55.0,50.0]
["General Questions","G74_Q0018 [SQ002]","What kind of mobile device(s) do you currently use? [Android]",105.0,52.0,53.0]
["General Questions","G74_Q0018 [SQ003]","What kind of mobile device(s) do you currently use? [Windows]",105.0,6.0,99.0]
["General Questions","G74_Q0018 [Other]","What kind of mobile device(s) do you currently use? [Other]",5.0,"Yes","No"]
["General Questions","G74_Q0015 [1]","Do you feel you have any particular QS Related Skills? (Leave blank if none) [Software Development (e.g. coding)]",105.0,32.0,73.0]
["General Questions","G74_Q0015 [2]","Do you feel you have any particular QS Related Skills? (Leave blank if none) [Data Analysis]",105.0,48.0,57.0]
["General Questions","G74_Q0015 [3]","Do you feel you have any particular QS Related Skills? (Leave blank if none) [Visualisation & Design]",105.0,37.0,68.0]
["General Questions","G74_Q0015 [4]","Do you feel you have any particular QS Related Skills? (Leave blank if none) [Making (e.g. building sensors)]",105.0,7.0,98.0]
["General Questions","G74_Q0015 [Other]","Do you feel you have any particular QS Related Skills? (Leave blank if none) [Other]",8.0]
["General Questions","G74_Q0016","Would you like us to contact you with the results and details of any follow-up projects from this questionnaire? If so, please enter your preferred email address:",0.0]
["General Questions","G74_Q0017","Finally, are there any other comments or suggestions that you would like to add regarding the questionnaire or any aspect(s) of personal data we haven't covered?",24.0]